Workbook

Sheet 1.0 LDC Info
A1: LRAMVA Model version 1.0 © CHEC | T1: 2
A9: LDC Info
D11: Utility Name | E11: Wasaga Distribution
D13: Service Territory | E13: Wasaga Beach
D15: Assigned EB Number | E15: EB-2015-0107
D17: Name of Contact and Title | E17: Brandon Weiss
D19: Phone Number | E19: 705-429-2517
D21: Email Address | E21: B.weiss@wasagadist.ca
D23: Bridge Year | E23: 2015
D25: Test Year | E25: 2016
D27: Last Rebasing Year | E27: 2012 | F27: =IF(Test_Year-Last_Rebasing_Year>6, "Number of Years exceeds between CoS exceeds 6 years","") -> 
B29: Notes
C31: Pale green cells represent input cells.
C33: White cells contain fixed values, automatically generated values or formulae.

Sheet 2.0 Customer Classes
A1: LRAMVA Model version 1.0 © CHEC | T1: 2
A9: Customer Class & Current Tariff Sheet
A12: Customer Class Name | B12: Existing/ Proposed | C12: MSC Metric | D12: Usage Metric
A13: Residential | B13: Exisitng | C13: Customer | D13: kWh
A14: General Service < 50 kW | B14: Existing | C14: Customer | D14: kWh
A15: General Service > 50 to 4999 kW | B15: Existing | C15: Customer | D15: kW
A16: Standy Power - Approved on an Interim Basis | B16: Existing | C16: Customer | D16: kW
A17: Unmetered Scattered Load | B17: Existing | C17: Connection | D17: kWh
A18: Sentinel Lighting | B18: Existing | C18: Connection | D18: kW
A19: Street Lighting | B19: Existing | C19: Connection | D19: kW
A20: other
A21: other
A22: other

Sheet Instructions (hidden)
A1: Worksheet | B1: Notes
A2: LRAM VA Register | B2: Table 1 provides a summary of account balance history for account 1568 for each year. Amounts cleared through Rate Order are input by rate class.
A3: Approved Load Forecast | B3: Input kWh/kW savings included in most recent approved load forecast in Table 2. Table 3 will calculate dollars for LRAMVA account 1568.
A4: Carrying Charges | B4: Input most recent Board-approved rate in Table 4 as available; Cumulative carrying charges are calculated in Table 5.
A5: Rates | B5: Input approved distribution rates in Table 6 from rate orders. Only the Distribution Volumetric Rate and the Rate Rider for Application of Tax Change are used.
A6: 2011LostRev | B6: Table 7 - Input program details, report status, kWh and kW net savings from OPA 2011 Final Annual Report Data - Table 5; Input allocation % for each rate class.
A7: 2012LostRev | B7: Table 8 - Input program details, report status, kWh and kW net savings from Final Verified Annual 2012 CDM Report_Local Distribution Corporation/Table 1 - 2012 Savings & Table 2 - Adjustments due to Errors and Omissions; OPA report provided in pdf with exception of a few LDCs; Input allocation % for each rate class.
A8: 2012 Gross to Net Savings | B8: Table 9 - Retrieve the "Gross to Net Savings" report for the LDC from the OPA website: https://portal.ieso.ca - select your LDC under Community Projects/Documents/Conservation Officer - LDC Reports/Documents. NOTE: Check the values in the "Net Annual Summer Peak Demand Savings - MWh" (column O) against LDC Results for the corresponding year. Also check any prior year true-ups against the LDC True-Up report - ensure that figures reconcile to the OPA reports; Check the values in the "Net Annual Energy Savings - MWh" (column AS) against LDC Results for the corresponding year. Also check any prior year true-ups against the LDC True-Up report - ensure that figures reconcile to the OPA reports.
A9: 2013LostRev | B9: Table 10 - Input program details, report status, kWh and kW net savings from OPA 2013 Final Annual Report Data (excel format) when available; Input allocation % for each rate class.
A10: 2014LostRev | B10: Table 11 - Input program details, report status, kWh and kW net savings from OPA 2014 Final Annual Report (excel format) when available; Input allocation % for each rate class.
A11: Persistence/2011 | B11: 2011 OPA final report was provided in excel. Copy MW and GWh from Annual OPA Report - Progress Toward Targets (Tables 6 and 7_ sheet 3.1.1 Summary – LDC) in the 2011 Final Annual Report to row 7 and row 25 in Table 12 and 13 - Persistence tab. This data provides the information that LDCS require to calculate persistence for 2011 OPA Programs.
A12: Persistence/2012 | B12: Copy MW and GWh from 2012 Gross to Net Savings to Report / Progress Toward Targets to row 8 and row 26 in Table 12 and 13 - Persistence tab. This data provides the information that LDCS require to calculate persistence for 2012 OPA Programs.
A13: Persistence/2013 | B13: Copy MW and GWh from 2013 Final Annual OPA Report/Progress Toward Targets to row 9 and row 27 in Table 12 and 13 - Persistence tab when available. If the report is provided in excel format, data may be copied directly to appropriate cells in Persistence tab.
A14: Classes Billed on kW | B14: Annual Savings Methodology
A15: GS > 50 kW Initiatives excluding Demand Response 3 | B15: Apply 12 months of peak demand to the kW results in the OPA final verified CDM results to determine the annual savings.
A16: GS > 50 kW Demand Response 3 Initiative | B16: Apply 5 months of peak demand to the kW results in the OPA final verified CDM results to determine the annual savings.
B17: References:
A18: EB-2013-0148 | B18: Lakefront Utilities Inc.
B19: LUI_replySUB_BrdStaff_VECC_20140116, pages 2-3
B20: BrdStaff_SUB_Lakefront Utilities_20131218, pages 4-6
A22: EB-2012-0107 | B22: Bluewater Power Distribution Corporation
B23: dec_order_rates_Bluewater_20130425, Settlement Agreement, page 48
B24: Bluewater_appl_CoS_EDR_Ex 9_Deferral and Variance Accounts_20121022, Exhibit 9, Tab 3, Schedule 1, Attachment 2

Sheet 3.0 LRAMVA Register
C1: LRAMVA Model version 1.0 © CHEC
G6: Table 1 - LRAMVA register
C9: Verified results updated | D9: 2015
C11: Description | D11: ='2.0 Customer Classes'!$A13 -> Residential | E11: ='2.0 Customer Classes'!$A14 -> General Service < 50 kW | F11: ='2.0 Customer Classes'!$A15 -> General Service > 50 to 4999 kW | G11: ='2.0 Customer Classes'!$A16 -> Standy Power - Approved on an Interim Basis | H11: ='2.0 Customer Classes'!$A17 -> Unmetered Scattered Load | I11: ='2.0 Customer Classes'!$A18 -> Sentinel Lighting | J11: ='2.0 Customer Classes'!$A19 -> Street Lighting | K11: ='2.0 Customer Classes'!$A20 -> other | L11: ='2.0 Customer Classes'!$A21 -> other | M11: ='2.0 Customer Classes'!$A22 -> other | N11: Total
C12: 2011 Forecast | D12: =-'4.0 Approved Load Forecast'!D36 -> 0 | E12: =-'4.0 Approved Load Forecast'!E36 -> 0 | F12: =-'4.0 Approved Load Forecast'!F36 -> 0 | G12: =-'4.0 Approved Load Forecast'!G36 -> 0 | H12: =-'4.0 Approved Load Forecast'!H36 -> 0 | I12: =-'4.0 Approved Load Forecast'!I36 -> 0 | J12: =-'4.0 Approved Load Forecast'!J36 -> 0 | N12: =SUM(D12:M12) -> 0
C13: 2011 Verified | D13: ='7.0 2011LostRev'!F49 -> 2609.45483 | E13: ='7.0 2011LostRev'!G49 -> 1488.270632 | F13: ='7.0 2011LostRev'!H49 -> 1660.288295 | G13: ='7.0 2011LostRev'!I49 -> 0 | H13: ='7.0 2011LostRev'!J49 -> 0 | I13: ='7.0 2011LostRev'!K49 -> 0 | J13: ='7.0 2011LostRev'!L49 -> 0 | N13: =SUM(D13:M13) -> 5758.013758
C14: 2011 Cleared | N14: 0
C16: 2012 Forecast | D16: =-'4.0 Approved Load Forecast'!D37 -> -7988.48265 | E16: =-'4.0 Approved Load Forecast'!E37 -> -1541.201 | F16: =-'4.0 Approved Load Forecast'!F37 -> -1341.606425 | G16: =-'4.0 Approved Load Forecast'!G37 -> 0 | H16: =-'4.0 Approved Load Forecast'!H37 -> 0 | I16: =-'4.0 Approved Load Forecast'!I37 -> 0 | J16: =-'4.0 Approved Load Forecast'!J37 -> 0 | N16: -10871.29008
C17: 2012 Verified | D17: ='8.0 2012LostRev'!F63 -> 4204.826598 | E17: ='8.0 2012LostRev'!G63 -> 2799.938639 | F17: ='8.0 2012LostRev'!H63 -> 5522.447387 | G17: ='8.0 2012LostRev'!I63 -> 0 | H17: ='8.0 2012LostRev'!J63 -> 0 | I17: ='8.0 2012LostRev'!K63 -> 0 | J17: ='8.0 2012LostRev'!L63 -> 0 | N17: 12527.21262
C18: 2012 Cleared | N18: 0
C20: 2013 Forecast | D20: =-'4.0 Approved Load Forecast'!D38 -> -7811.3751 | E20: =-'4.0 Approved Load Forecast'!E38 -> -1525.865667 | F20: =-'4.0 Approved Load Forecast'!F38 -> -1325.563981 | G20: =-'4.0 Approved Load Forecast'!G38 -> 0 | H20: =-'4.0 Approved Load Forecast'!H38 -> 0 | I20: =-'4.0 Approved Load Forecast'!I38 -> 0 | J20: =-'4.0 Approved Load Forecast'!J38 -> 0 | N20: -10662.80475
C21: 2013 Actuals | D21: ='9.0 2013LostRev'!F70 -> 5796.961156 | E21: ='9.0 2013LostRev'!G70 -> 3482.035679 | F21: ='9.0 2013LostRev'!H70 -> 5932.153825 | G21: ='9.0 2013LostRev'!I70 -> 0 | H21: ='9.0 2013LostRev'!J70 -> 0 | I21: ='9.0 2013LostRev'!K70 -> 0 | J21: ='9.0 2013LostRev'!L70 -> 0 | N21: 15211.15066
C22: 2013 Cleared | N22: 0
C24: 2014 Forecast | D24: =-'4.0 Approved Load Forecast'!D39 -> -7904.5896 | E24: =-'4.0 Approved Load Forecast'!E39 -> -1545.034833 | F24: =-'4.0 Approved Load Forecast'!F39 -> -1342.722506 | G24: =-'4.0 Approved Load Forecast'!G39 -> 0 | H24: =-'4.0 Approved Load Forecast'!H39 -> 0 | I24: =-'4.0 Approved Load Forecast'!I39 -> 0 | J24: =-'4.0 Approved Load Forecast'!J39 -> 0 | N24: -10792.34694
C25: 2014 Actuals | D25: ='10.0 2014LostRev'!F57 -> 11092.4681 | E25: ='10.0 2014LostRev'!G57 -> 5997.74726 | F25: ='10.0 2014LostRev'!H57 -> 6279.163583 | G25: ='10.0 2014LostRev'!I57 -> 0 | H25: ='10.0 2014LostRev'!J57 -> 0 | I25: ='10.0 2014LostRev'!K57 -> 0 | J25: ='10.0 2014LostRev'!L57 -> 0 | N25: 23369.37895
C26: 2014 Cleared | N26: 0
C28: 2015 Forecast | D28: =-'4.0 Approved Load Forecast'!D40 -> -8016.447 | E28: =-'4.0 Approved Load Forecast'!E40 -> -1568.037833 | F28: =-'4.0 Approved Load Forecast'!F40 -> -1364.646209 | G28: =-'4.0 Approved Load Forecast'!G40 -> 0 | H28: =-'4.0 Approved Load Forecast'!H40 -> 0 | I28: =-'4.0 Approved Load Forecast'!I40 -> 0 | J28: =-'4.0 Approved Load Forecast'!J40 -> 0 | N28: =SUM(D28:J28) -> -10949.13104
C29: 2015 Actuals | D29: ='11.0 2015 Lost Revenue'!E17 -> 10501.63374 | E29: ='11.0 2015 Lost Revenue'!F17 -> 5605.135112 | F29: ='11.0 2015 Lost Revenue'!G17 -> 4728.964918 | G29: 0 | H29: 0 | I29: 0 | J29: 0 | N29: =SUM(D29:M29) -> 20835.73377 | O29: 2011-2014 Persistence
C30: 2015 Cleared | N30: =SUM(D30:M30) -> 0 | O30: (FROM FINAL CDM)
C32: Carrying Charges1 | D32: ='5.0 Carrying Charges'!D114 -> -3.957462966 | E32: ='5.0 Carrying Charges'!E114 -> 371.306312 | F32: ='5.0 Carrying Charges'!F114 -> 636.9247271 | G32: 0 | H32: 0 | I32: 0 | J32: 0 | N32: =SUM(D32:J32) -> 1004.273576
C33: Balance | D33: =SUM(D12:D32) -> 2480.492617 | E33: =SUM(E12:E32) -> 13564.2943 | F33: 19385.40361 | G33: 0 | H33: 0 | I33: 0 | J33: 0 | K33: =SUM(K12:K32) -> 0 | L33: =SUM(L12:L32) -> 0 | M33: =SUM(M12:M32) -> 0 | N33: =SUM(N12:N32) -> 35430.19053
C35: Excluding 2015 Persistence for 2011-2014 CDM Portfolio:
C37: Carrying Charges1 | D37: -25.79 | E37: 335.84 | F37: 607.37 | G37: 0 | H37: 0 | I37: 0 | J37: 0 | K37: =SUM('5.0 Carrying Charges'!K96:K104) -> 0 | L37: =SUM('5.0 Carrying Charges'!L96:L104) -> 0 | M37: =SUM('5.0 Carrying Charges'!M96:M104) -> 0 | N37: =SUM(D37:M37) -> 917.42 | O37: Carrying charges up to April 30,2016
C38: Balance | D38: =SUM(D12:D26)+D37 -> -26.526664 | E38: 9491.730711 | F38: 15991.53018 | G38: 0 | H38: 0 | I38: 0 | J38: 0 | K38: 0 | L38: 0 | M38: 0 | N38: 25456.73422
C41: Input amounts cleared by rate class.
C42: 1 Update formula for most recent rate year

Sheet 4.0 Approved Load Forecast
A1: LRAMVA Model version 1.0 © CHEC
B8: CDM Targets
B10: Forecast Year
D11: kWh | E11: kW
B12: 2011 | D12: 0 | E12: =E13*0.5 -> -145.57572
B13: 2012 | D13: 802000 | E13: =N65 -> -291.15144
B14: 2013 | D14: =+D13 -> 802000 | E14: =N78 -> -291.15144
B15: 2014 | D15: =+D14 -> 802000 | E15: =N91 -> -291.15144
B16: 2015 | D16: =D15 -> 802000 | E16: =E15 -> -291.15144
B19: Table 2 - Savings Due to CDM Included in Approved Load Forecast
B21: Forecast Year | D21: ='3.0 LRAMVA Register'!D$11 -> Residential | E21: ='3.0 LRAMVA Register'!E$11 -> General Service < 50 kW | F21: ='3.0 LRAMVA Register'!F$11 -> General Service > 50 to 4999 kW | G21: ='3.0 LRAMVA Register'!G$11 -> Standy Power - Approved on an Interim Basis | H21: ='3.0 LRAMVA Register'!H$11 -> Unmetered Scattered Load | I21: ='3.0 LRAMVA Register'!I$11 -> Sentinel Lighting | J21: ='3.0 LRAMVA Register'!J$11 -> Street Lighting | K21: ='3.0 LRAMVA Register'!K$11 -> other | L21: ='3.0 LRAMVA Register'!L$11 -> other | M21: ='3.0 LRAMVA Register'!M$11 -> other | N21: ='3.0 LRAMVA Register'!N11 -> Total
D22: ='2.0 Customer Classes'!$D13 -> kWh | E22: ='2.0 Customer Classes'!$D14 -> kWh | F22: ='2.0 Customer Classes'!$D15 -> kW | G22: ='2.0 Customer Classes'!$D16 -> kW | H22: ='2.0 Customer Classes'!$D17 -> kWh | I22: ='2.0 Customer Classes'!$D18 -> kW | J22: ='2.0 Customer Classes'!$D19 -> kW | K22: ='2.0 Customer Classes'!$D20 -> 0 | L22: ='2.0 Customer Classes'!$D21 -> 0 | M22: ='2.0 Customer Classes'!$D22 -> 0
B23: 2011 | D23: 0 | E23: 0 | F23: 0 | G23: 0 | H23: 0 | I23: 0 | J23: 0
B24: 2012 | D24: =-D61 -> 559287 | E24: =-E61 -> 115015 | F24: =-F65 -> 291.15144 | G24: =-G65 -> 0 | H24: =-H61 -> 0 | I24: =-I65 -> 0 | J24: =-J65 -> 0
B25: 2013 | D25: =-D74 -> 559287 | E25: =-E74 -> 115015 | F25: =-F78 -> 291.15144 | G25: =-G78 -> 0 | H25: =-H74 -> 0 | I25: =-I78 -> 0 | J25: =-J78 -> 0
B26: 2014 | D26: =-D87 -> 559287 | E26: =-E87 -> 115015 | F26: =-F91 -> 291.15144 | G26: =-G91 -> 0 | H26: =-H87 -> 0 | I26: =-I91 -> 0 | J26: =-J91 -> 0
B27: 2014 | D27: =-D100 -> 559287 | E27: =-E100 -> 115015 | F27: =-F104 -> 291.15144 | G27: 0 | H27: 0 | I27: 0 | J27: 0
B29: Notes: | D29: No CDM for 2011-2014 assumed in the most recent load forecast (2010 Cost of Service application)
B32: Table 3 - Forecast Loss Revenue by Class
B34: Forecast Year | D34: =D21 -> Residential | E34: General Service < 50 kW | F34: General Service > 50 to 4999 kW | G34: Standy Power - Approved on an Interim Basis | H34: Unmetered Scattered Load | I34: Sentinel Lighting | J34: Street Lighting | K34: other | L34: other | M34: other | N34: Total
D35: $ | E35: $ | F35: $ | G35: $ | H35: $ | I35: $ | J35: $ | K35: $ | L35: $ | M35: $ | N35: $
B36: 2011 | D36: =D23*'6.0 Rates'!C15 -> 0 | E36: =E23*'6.0 Rates'!C16 -> 0 | F36: =F23*'6.0 Rates'!C17 -> 0 | G36: =G23*'6.0 Rates'!C18 -> 0 | H36: =H23*'6.0 Rates'!C19 -> 0 | I36: =I23*'6.0 Rates'!C20 -> 0 | J36: =J23*'6.0 Rates'!C21 -> 0 | N36: =SUM(D36:M36) -> 0
B37: 2012 | D37: =D24*'6.0 Rates'!D15 -> 7988.48265 | E37: =E24*'6.0 Rates'!D16 -> 1541.201 | F37: =F24*'6.0 Rates'!D17 -> 1341.606425 | G37: =G24*'6.0 Rates'!D18 -> 0 | H37: =H24*'6.0 Rates'!D19 -> 0 | I37: =I24*'6.0 Rates'!D20 -> 0 | J37: =J24*'6.0 Rates'!D21 -> 0 | N37: =SUM(D37:M37) -> 10871.29008
B38: 2013 | D38: =D25*'6.0 Rates'!E15 -> 7811.3751 | E38: =E25*'6.0 Rates'!E16 -> 1525.865667 | F38: =F25*'6.0 Rates'!E17 -> 1325.563981 | G38: =G25*'6.0 Rates'!E18 -> 0 | H38: =H25*'6.0 Rates'!E19 -> 0 | I38: =I25*'6.0 Rates'!E20 -> 0 | J38: =J25*'6.0 Rates'!E21 -> 0 | N38: 10662.80475
B39: 2014 | D39: =D26*'6.0 Rates'!F15 -> 7904.5896 | E39: =E26*'6.0 Rates'!F16 -> 1545.034833 | F39: =F26*'6.0 Rates'!F17 -> 1342.722506 | G39: =G26*'6.0 Rates'!F18 -> 0 | H39: =H26*'6.0 Rates'!F19 -> 0 | I39: =I26*'6.0 Rates'!F20 -> 0 | J39: =J26*'6.0 Rates'!F21 -> 0 | N39: 10792.34694
B40: 2015 | D40: =D26*'6.0 Rates'!G15 -> 8016.447 | E40: =E26*'6.0 Rates'!G16 -> 1568.037833 | F40: =F26*'6.0 Rates'!G17 -> 1364.646209 | G40: =G28*'6.0 Rates'!F19 -> 0 | H40: =H28*'6.0 Rates'!F20 -> 0 | I40: =I28*'6.0 Rates'!F21 -> 0 | J40: =J28*'6.0 Rates'!F22 -> 0 | N40: =SUM(D40:M40) -> 10949.13104
A44: CDM Adjustment as Approved in last Cost of Service
B46: 2011 | D46: =D34 -> Residential | E46: =E34 -> General Service < 50 kW | F46: General Service > 50 to 4999 kW | G46: Standy Power - Approved on an Interim Basis | H46: Unmetered Scattered Load | I46: Sentinel Lighting | J46: Street Lighting | K46: other | L46: other | M46: other | N46: Total
B48: Approved Load Forecast | D48: 92721561 | E48: 19067748 | F48: 22680860 | H48: 321139 | J48: 1828859 | N48: =SUM(D48:M48) -> 136620167
B49: % of Billed | D49: =D48/$N$48 -> 0.6786813619 | E49: 0.139567594 | F49: 0.166013997 | G49: 0 | H49: 0.002350597332 | I49: 0 | J49: 0.01338644975 | K49: =K48/$N$48 -> 0 | L49: 0 | M49: =M48/$N$48 -> 0 | N49: =SUM(D49:M49) -> 1
B50: CDM Spread kWh | D50: =-$D$12*D49 -> 0 | E50: 0 | F50: 0 | G50: 0 | H50: 0 | I50: 0 | J50: =-$D$12*J49 -> 0 | K50: 0 | L50: 0 | M50: =-$D$12*M49 -> 0 | N50: =SUM(D50:M50) -> 0
B51: Adjusted Billed kWh with CDM Applied | D51: =D48+D50 -> 92721561 | E51: =E48+E50 -> 19067748 | F51: 22680860 | G51: 0 | H51: 321139 | I51: 0 | J51: 1828859 | K51: 0 | L51: 0 | M51: 0 | N51: =SUM(D51:M52) -> 136620167
D53: No CDM was applied to Load Forecast since to 2010. The tables below will be used to show the OEB approved billed data from which CDM adjustments are derived
B57: 2012 | D57: =D46 -> Residential | E57: General Service < 50 kW | F57: General Service > 50 to 4999 kW | G57: Standy Power - Approved on an Interim Basis | H57: Unmetered Scattered Load | I57: Sentinel Lighting | J57: Street Lighting | K57: other | L57: other | M57: other | N57: Total
B58: kWh
B59: Approved Billed Forecast Non CDM Adj | D59: 92721561 | E59: 19067748 | F59: 22680860 | H59: 321139 | J59: 1828859 | N59: =SUM(D59:M59) -> 136620167
B60: % of Billed | D60: =D59/$N$59 -> 0.6786813619 | E60: =E59/$N$59 -> 0.139567594 | F60: =F59/$N$59 -> 0.166013997 | G60: 0 | H60: 0.002350597332 | I60: 0 | J60: =J59/$N$59 -> 0.01338644975 | K60: 0 | L60: 0 | M60: =M59/$N$59 -> 0 | N60: =SUM(D60:M60) -> 1
B61: Applied CDM kWh | D61: -559287 | E61: -115015 | F61: -127698 | G61: 0 | H61: 0 | I61: 0 | J61: 0 | K61: 0 | L61: 0 | M61: 0 | N61: =SUM(D61:M61) -> -802000
B62: Adjusted Billed kWh with CDM Applied | D62: =D59+D61 -> 92162274 | E62: =E59+E61 -> 18952733 | F62: =F59+F61 -> 22553162 | G62: =G59+G61 -> 0 | H62: =H59+H61 -> 321139 | I62: =I59+I61 -> 0 | J62: 1828859 | K62: 0 | L62: 0 | M62: =M59+M61 -> 0 | N62: =SUM(D62:M63) -> 135818167
B63: kW
B64: 2012 Weather Normal Billed kW | D64: =D59*D67 -> 0 | E64: 0 | F64: =F59*F67 -> 51712.3608 | G64: =G59*G67 -> 0 | H64: 0 | I64: 0 | J64: =J59*J67 -> 0 | K64: 0 | L64: 0 | M64: 0 | N64: =SUM(D64:M64) -> 51712.3608
B65: CDM kW Reduction | D65: =D61*D67 -> 0 | E65: 0 | F65: =F61*F67 -> -291.15144 | G65: =G61*G67 -> 0 | H65: 0 | I65: 0 | J65: =J61*J67 -> 0 | K65: 0 | L65: 0 | M65: 0 | N65: =SUM(D65:M65) -> -291.15144
B66: Adjusted Billed kWh with CDM Applied | D66: =D64+D65 -> 0 | E66: 0 | F66: =F64+F65 -> 51421.20936 | G66: =G64+G65 -> 0 | H66: 0 | I66: 0 | J66: =J64+J65 -> 0 | K66: 0 | L66: 0 | M66: 0 | N66: =SUM(D66:M66) -> 51421.20936
B67: kWh to KW Ratio | F67: 0.00228
B70: 2013 | D70: =D57 -> Residential | E70: =E57 -> General Service < 50 kW | F70: General Service > 50 to 4999 kW | G70: Standy Power - Approved on an Interim Basis | H70: Unmetered Scattered Load | I70: Sentinel Lighting | J70: Street Lighting | K70: other | L70: other | M70: other | N70: Total
B71: kWh
B72: Approved Billed Forecast Non CDM Adj | D72: =+D59 -> 92721561 | E72: =+E59 -> 19067748 | F72: 22680860 | H72: 321139 | J72: 1828859 | N72: =SUM(D72:M72) -> 136620167
B73: % of Billed | D73: =D72/$N$72 -> 0.6786813619 | E73: 0.139567594 | F73: 0.166013997 | G73: 0 | H73: 0.002350597332 | I73: 0 | J73: 0.01338644975 | K73: 0 | L73: 0 | M73: 0 | N73: =SUM(D73:M73) -> 1
B74: Applied CDM kWh | D74: -559287 | E74: -115015 | F74: -127698 | G74: 0 | H74: 0 | I74: 0 | J74: 0 | K74: 0 | L74: 0 | M74: 0 | N74: =SUM(D74:M74) -> -802000
B75: Adjusted Billed kWh with CDM Applied | D75: =D72+D74 -> 92162274 | E75: =E72+E74 -> 18952733 | F75: =F72+F74 -> 22553162 | G75: =G72+G74 -> 0 | H75: =H72+H74 -> 321139 | I75: =I72+I74 -> 0 | J75: 1828859 | K75: 0 | L75: 0 | M75: =M72+M74 -> 0 | N75: =SUM(D75:M76) -> 135818167
B76: kW
B77: 2012 Weather Normal Billed kW | D77: =D72*D80 -> 0 | E77: =E72*E80 -> 0 | F77: =F72*F80 -> 51712.3608 | G77: =G72*G80 -> 0 | H77: 0 | I77: 0 | J77: =J72*J80 -> 0 | K77: 0 | L77: 0 | M77: 0 | N77: =SUM(D77:M77) -> 51712.3608
B78: CDM kW Reduction | D78: =D74*D80 -> 0 | E78: =E74*E80 -> 0 | F78: =F74*F80 -> -291.15144 | G78: =G74*G80 -> 0 | H78: 0 | I78: 0 | J78: =J74*J80 -> 0 | K78: 0 | L78: 0 | M78: 0 | N78: =SUM(D78:M78) -> -291.15144
B79: Adjusted Billed kWh with CDM Applied | D79: =D77+D78 -> 0 | E79: =E77+E78 -> 0 | F79: =F77+F78 -> 51421.20936 | G79: =G77+G78 -> 0 | H79: =H77+H78 -> 0 | I79: =I77+I78 -> 0 | J79: 0 | K79: 0 | L79: 0 | M79: 0 | N79: =SUM(D79:M79) -> 51421.20936
B80: kWh to KW Ratio | F80: =+F67 -> 0.00228
B83: 2014 | D83: =D70 -> Residential | E83: =E70 -> General Service < 50 kW | F83: General Service > 50 to 4999 kW | G83: Standy Power - Approved on an Interim Basis | H83: Unmetered Scattered Load | I83: Sentinel Lighting | J83: Street Lighting | K83: other | L83: other | M83: other | N83: Total
B84: kWh
B85: Approved Billed Forecast Non CDM Adj | D85: =+D72 -> 92721561 | E85: =+E72 -> 19067748 | F85: 22680860 | H85: 321139 | J85: 1828859 | N85: =SUM(D85:M85) -> 136620167
B86: % of Billed | D86: =D85/$N$85 -> 0.6786813619 | E86: 0.139567594 | F86: 0.166013997 | G86: 0 | H86: 0.002350597332 | I86: 0 | J86: 0.01338644975 | K86: 0 | L86: 0 | M86: 0 | N86: =SUM(D86:M86) -> 1
B87: Applied CDM kWh | D87: -559287 | E87: -115015 | F87: -127698 | G87: 0 | H87: 0 | I87: 0 | J87: 0 | K87: 0 | L87: 0 | M87: 0 | N87: =SUM(D87:M87) -> -802000
B88: Adjusted Billed kWh with CDM Applied | D88: =D85+D87 -> 92162274 | E88: =E85+E87 -> 18952733 | F88: =F85+F87 -> 22553162 | G88: =G85+G87 -> 0 | H88: =H85+H87 -> 321139 | I88: =I85+I87 -> 0 | J88: 1828859 | K88: 0 | L88: 0 | M88: =M85+M87 -> 0 | N88: =SUM(D88:M89) -> 135818167
B89: kW
B90: 2012 Weather Normal Billed kW | D90: =D85*D93 -> 0 | E90: 0 | F90: =F85*F93 -> 51712.3608 | G90: =G85*G93 -> 0 | H90: 0 | I90: 0 | J90: =J85*J93 -> 0 | K90: 0 | L90: 0 | M90: 0 | N90: =SUM(D90:M90) -> 51712.3608
B91: CDM kW Reduction | D91: =D87*D93 -> 0 | E91: 0 | F91: =F87*F93 -> -291.15144 | G91: =G87*G93 -> 0 | H91: 0 | I91: 0 | J91: =J87*J93 -> 0 | K91: 0 | L91: 0 | M91: 0 | N91: =SUM(D91:M91) -> -291.15144
B92: Adjusted Billed kWh with CDM Applied | D92: =D90+D91 -> 0 | E92: 0 | F92: =F90+F91 -> 51421.20936 | G92: =G90+G91 -> 0 | H92: =H90+H91 -> 0 | I92: =I90+I91 -> 0 | J92: 0 | K92: 0 | L92: 0 | M92: 0 | N92: =SUM(D92:M92) -> 51421.20936
B93: kWh to KW Ratio | F93: =+F80 -> 0.00228
B96: 2015 | D96: =D83 -> Residential | E96: =E83 -> General Service < 50 kW | F96: General Service > 50 to 4999 kW | G96: Standy Power - Approved on an Interim Basis | H96: Unmetered Scattered Load | I96: Sentinel Lighting | J96: Street Lighting | K96: other | L96: other | M96: other | N96: Total
B97: kWh
B98: Approved Billed Forecast Non CDM Adj | D98: =+D85 -> 92721561 | E98: =+E85 -> 19067748 | F98: 22680860 | H98: 321139 | J98: 1828859 | N98: =SUM(D98:M98) -> 136620167
B99: % of Billed | D99: =D98/$N$85 -> 0.6786813619 | E99: 0.139567594 | F99: 0.166013997 | G99: 0 | H99: 0.002350597332 | I99: 0 | J99: 0.01338644975 | K99: 0 | L99: 0 | M99: 0 | N99: =SUM(D99:M99) -> 1
B100: Applied CDM kWh | D100: -559287 | E100: -115015 | F100: -127698 | G100: 0 | H100: 0 | I100: 0 | J100: 0 | K100: 0 | L100: 0 | M100: 0 | N100: =SUM(D100:M100) -> -802000
B101: Adjusted Billed kWh with CDM Applied | D101: =D98+D100 -> 92162274 | E101: =E98+E100 -> 18952733 | F101: 22553162 | G101: 0 | H101: 321139 | I101: 0 | J101: 1828859 | K101: 0 | L101: 0 | M101: 0 | N101: =SUM(D101:M102) -> 135818167
B102: kW
B103: 2012 Weather Normal Billed kW | D103: =D98*D106 -> 0 | E103: 0 | F103: =F98*F106 -> 51712.3608 | G103: =G98*G106 -> 0 | H103: 0 | I103: 0 | J103: 0 | K103: 0 | L103: 0 | M103: 0 | N103: =SUM(D103:M103) -> 51712.3608
B104: CDM kW Reduction | D104: =D100*D106 -> 0 | E104: 0 | F104: =F100*F106 -> -291.15144 | G104: =G100*G106 -> 0 | H104: 0 | I104: 0 | J104: 0 | K104: 0 | L104: 0 | M104: 0 | N104: =SUM(D104:M104) -> -291.15144
B105: Adjusted Billed kWh with CDM Applied | D105: =D103+D104 -> 0 | E105: 0 | F105: =F103+F104 -> 51421.20936 | G105: =G103+G104 -> 0 | H105: 0 | I105: 0 | J105: 0 | K105: 0 | L105: 0 | M105: 0 | N105: =SUM(D105:M105) -> 51421.20936
B106: kWh to KW Ratio | F106: =+F93 -> 0.00228

Sheet 5.0 Carrying Charges
A1: LRAMVA Model version 1.0 © CHEC
E9: Table 4 - Carrying Charges Prescribed Rates
E11: Period | F11: Board specified | G11: Estimated | H11: Used in calculations
E12: 2011 Q1 | F12: 0.0147 | H12: =IF(F12<>0,F12,G12) -> 0.0147
E13: 2011 Q2 | F13: 0.0147 | H13: =IF(F13<>0,F13,G13) -> 0.0147
E14: 2011 Q3 | F14: 0.0147 | H14: 0.0147
E15: 2011 Q4 | F15: 0.0147 | H15: 0.0147
E16: 2012 Q1 | F16: 0.0147 | H16: 0.0147
E17: 2012 Q2 | F17: 0.0147 | H17: 0.0147
E18: 2012 Q3 | F18: 0.0147 | H18: 0.0147
E19: 2012 Q4 | F19: 0.0147 | H19: 0.0147
E20: 2013 Q1 | F20: 0.0147 | H20: 0.0147
E21: 2013 Q2 | F21: 0.0147 | H21: 0.0147
E22: 2013 Q3 | F22: 0.0147 | H22: 0.0147
E23: 2013 Q4 | F23: 0.0147 | H23: 0.0147
E24: 2014 Q1 | F24: 0.0147 | H24: 0.0147
E25: 2014 Q2 | F25: 0.0147 | H25: 0.0147
E26: 2014 Q3 | G26: 0.0147 | H26: 0.0147
E27: 2014 Q4 | G27: 0.0147 | H27: 0.0147
E28: 2015 Q1 | G28: 0.0147 | H28: 0.0147
E29: 2015 Q2 - PRESENT | G29: 0.011 | H29: 0.011
E31: Table 5 - Carrying Charges by Rate Class
A33: Month | B33: Quarter | C33: Monthly Rate | D33: ='3.0 LRAMVA Register'!D11 -> Residential | E33: ='3.0 LRAMVA Register'!E11 -> General Service < 50 kW | F33: ='3.0 LRAMVA Register'!F11 -> General Service > 50 to 4999 kW | G33: ='3.0 LRAMVA Register'!G11 -> Standy Power - Approved on an Interim Basis | H33: ='3.0 LRAMVA Register'!H11 -> Unmetered Scattered Load | I33: ='3.0 LRAMVA Register'!I11 -> Sentinel Lighting | J33: ='3.0 LRAMVA Register'!J11 -> Street Lighting | K33: ='3.0 LRAMVA Register'!K11 -> other | L33: ='3.0 LRAMVA Register'!L11 -> other | M33: ='3.0 LRAMVA Register'!M11 -> other | N33: ='3.0 LRAMVA Register'!N11 -> Total
A34: 2011-01-01 | B34: Q1 | C34: =H$12/12 -> 0.001225
A35: 2011-02-01 | B35: Q1 | C35: =H$12/12 -> 0.001225 | D35: =SUM('3.0 LRAMVA Register'!D$12:D$13)*(MONTH($A35)-1)/12*$C35 -> 0.2663818472 | E35: =SUM('3.0 LRAMVA Register'!E$12:E$13)*(MONTH($A35)-1)/12*$C35 -> 0.1519276271 | F35: =SUM('3.0 LRAMVA Register'!F$12:F$13)*(MONTH($A35)-1)/12*$C35 -> 0.1694877635 | G35: =SUM('3.0 LRAMVA Register'!G$12:G$13)*(MONTH($A35)-1)/12*$C35 -> 0 | H35: =SUM('3.0 LRAMVA Register'!H$12:H$13)*(MONTH($A35)-1)/12*$C35 -> 0 | I35: =SUM('3.0 LRAMVA Register'!I$12:I$13)*(MONTH($A35)-1)/12*$C35 -> 0 | J35: =SUM('3.0 LRAMVA Register'!J$12:J$13)*(MONTH($A35)-1)/12*$C35 -> 0 | K35: =SUM('3.0 LRAMVA Register'!K$12:K$13)*(MONTH($A35)-1)/12*$C35 -> 0 | L35: =SUM('3.0 LRAMVA Register'!L$12:L$13)*(MONTH($A35)-1)/12*$C35 -> 0 | M35: =SUM('3.0 LRAMVA Register'!M$12:M$13)*(MONTH($A35)-1)/12*$C35 -> 0 | N35: =SUM(D35:M35) -> 0.5877972378
A36: 2011-03-01 | B36: Q1 | C36: =H$12/12 -> 0.001225 | D36: =SUM('3.0 LRAMVA Register'!D$12:D$13)*(MONTH($A36)-1)/12*$C36 -> 0.5327636944 | E36: =SUM('3.0 LRAMVA Register'!E$12:E$13)*(MONTH($A36)-1)/12*$C36 -> 0.3038552541 | F36: =SUM('3.0 LRAMVA Register'!F$12:F$13)*(MONTH($A36)-1)/12*$C36 -> 0.338975527 | G36: =SUM('3.0 LRAMVA Register'!G$12:G$13)*(MONTH($A36)-1)/12*$C36 -> 0 | H36: =SUM('3.0 LRAMVA Register'!H$12:H$13)*(MONTH($A36)-1)/12*$C36 -> 0 | I36: =SUM('3.0 LRAMVA Register'!I$12:I$13)*(MONTH($A36)-1)/12*$C36 -> 0 | J36: =SUM('3.0 LRAMVA Register'!J$12:J$13)*(MONTH($A36)-1)/12*$C36 -> 0 | K36: =SUM('3.0 LRAMVA Register'!K$12:K$13)*(MONTH($A36)-1)/12*$C36 -> 0 | L36: =SUM('3.0 LRAMVA Register'!L$12:L$13)*(MONTH($A36)-1)/12*$C36 -> 0 | M36: =SUM('3.0 LRAMVA Register'!M$12:M$13)*(MONTH($A36)-1)/12*$C36 -> 0 | N36: =SUM(D36:M36) -> 1.175594476
A37: 2011-04-01 | B37: Q2 | C37: =H$13/12 -> 0.001225 | D37: =SUM('3.0 LRAMVA Register'!D$12:D$13)*(MONTH($A37)-1)/12*$C37 -> 0.7991455416 | E37: =SUM('3.0 LRAMVA Register'!E$12:E$13)*(MONTH($A37)-1)/12*$C37 -> 0.4557828812 | F37: =SUM('3.0 LRAMVA Register'!F$12:F$13)*(MONTH($A37)-1)/12*$C37 -> 0.5084632905 | G37: =SUM('3.0 LRAMVA Register'!G$12:G$13)*(MONTH($A37)-1)/12*$C37 -> 0 | H37: =SUM('3.0 LRAMVA Register'!H$12:H$13)*(MONTH($A37)-1)/12*$C37 -> 0 | I37: =SUM('3.0 LRAMVA Register'!I$12:I$13)*(MONTH($A37)-1)/12*$C37 -> 0 | J37: =SUM('3.0 LRAMVA Register'!J$12:J$13)*(MONTH($A37)-1)/12*$C37 -> 0 | K37: =SUM('3.0 LRAMVA Register'!K$12:K$13)*(MONTH($A37)-1)/12*$C37 -> 0 | L37: =SUM('3.0 LRAMVA Register'!L$12:L$13)*(MONTH($A37)-1)/12*$C37 -> 0 | M37: =SUM('3.0 LRAMVA Register'!M$12:M$13)*(MONTH($A37)-1)/12*$C37 -> 0 | N37: 1.763391713
A38: Total for rate year 2010 | D38: =SUM(D34:D37) -> 1.598291083 | E38: =SUM(E34:E37) -> 0.9115657623 | F38: 1.016926581 | G38: 0 | H38: 0 | I38: 0 | J38: 0 | K38: 0 | L38: 0 | M38: 0 | N38: 3.526783427
A39: Amount Cleared | N39: =SUM(D39:M39) -> 0
A40: Opening Balance for rate year 2011 | D40: =D38+D39 -> 1.598291083 | E40: =E38+E39 -> 0.9115657623 | F40: =F38+F39 -> 1.016926581 | G40: =G38+G39 -> 0 | H40: 0 | I40: 0 | J40: 0 | K40: 0 | L40: 0 | M40: 0 | N40: =N38+N39 -> 3.526783427
A41: 2011-05-01 | B41: Q2 | C41: =H$13/12 -> 0.001225 | D41: =SUM('3.0 LRAMVA Register'!D$12:D$13)*(MONTH($A41)-1)/12*$C41 -> 1.065527389 | E41: =SUM('3.0 LRAMVA Register'!E$12:E$13)*(MONTH($A41)-1)/12*$C41 -> 0.6077105082 | F41: =SUM('3.0 LRAMVA Register'!F$12:F$13)*(MONTH($A41)-1)/12*$C41 -> 0.677951054 | G41: =SUM('3.0 LRAMVA Register'!G$12:G$13)*(MONTH($A41)-1)/12*$C41 -> 0 | H41: =SUM('3.0 LRAMVA Register'!H$12:H$13)*(MONTH($A41)-1)/12*$C41 -> 0 | I41: =SUM('3.0 LRAMVA Register'!I$12:I$13)*(MONTH($A41)-1)/12*$C41 -> 0 | J41: =SUM('3.0 LRAMVA Register'!J$12:J$13)*(MONTH($A41)-1)/12*$C41 -> 0 | K41: =SUM('3.0 LRAMVA Register'!K$12:K$13)*(MONTH($A41)-1)/12*$C41 -> 0 | L41: =SUM('3.0 LRAMVA Register'!L$12:L$13)*(MONTH($A41)-1)/12*$C41 -> 0 | M41: =SUM('3.0 LRAMVA Register'!M$12:M$13)*(MONTH($A41)-1)/12*$C41 -> 0 | N41: =SUM(D41:M41) -> 2.351188951
A42: 2011-06-01 | B42: Q2 | C42: =H$13/12 -> 0.001225 | D42: =SUM('3.0 LRAMVA Register'!D$12:D$13)*(MONTH($A42)-1)/12*$C42 -> 1.331909236 | E42: =SUM('3.0 LRAMVA Register'!E$12:E$13)*(MONTH($A42)-1)/12*$C42 -> 0.7596381353 | F42: =SUM('3.0 LRAMVA Register'!F$12:F$13)*(MONTH($A42)-1)/12*$C42 -> 0.8474388175 | G42: =SUM('3.0 LRAMVA Register'!G$12:G$13)*(MONTH($A42)-1)/12*$C42 -> 0 | H42: =SUM('3.0 LRAMVA Register'!H$12:H$13)*(MONTH($A42)-1)/12*$C42 -> 0 | I42: =SUM('3.0 LRAMVA Register'!I$12:I$13)*(MONTH($A42)-1)/12*$C42 -> 0 | J42: =SUM('3.0 LRAMVA Register'!J$12:J$13)*(MONTH($A42)-1)/12*$C42 -> 0 | K42: =SUM('3.0 LRAMVA Register'!K$12:K$13)*(MONTH($A42)-1)/12*$C42 -> 0 | L42: =SUM('3.0 LRAMVA Register'!L$12:L$13)*(MONTH($A42)-1)/12*$C42 -> 0 | M42: =SUM('3.0 LRAMVA Register'!M$12:M$13)*(MONTH($A42)-1)/12*$C42 -> 0 | N42: =SUM(D42:M42) -> 2.938986189
A43: 2011-07-01 | B43: Q3 | C43: =H$14/12 -> 0.001225 | D43: =SUM('3.0 LRAMVA Register'!D$12:D$13)*(MONTH($A43)-1)/12*$C43 -> 1.598291083 | E43: =SUM('3.0 LRAMVA Register'!E$12:E$13)*(MONTH($A43)-1)/12*$C43 -> 0.9115657623 | F43: =SUM('3.0 LRAMVA Register'!F$12:F$13)*(MONTH($A43)-1)/12*$C43 -> 1.016926581 | G43: =SUM('3.0 LRAMVA Register'!G$12:G$13)*(MONTH($A43)-1)/12*$C43 -> 0 | H43: =SUM('3.0 LRAMVA Register'!H$12:H$13)*(MONTH($A43)-1)/12*$C43 -> 0 | I43: =SUM('3.0 LRAMVA Register'!I$12:I$13)*(MONTH($A43)-1)/12*$C43 -> 0 | J43: =SUM('3.0 LRAMVA Register'!J$12:J$13)*(MONTH($A43)-1)/12*$C43 -> 0 | K43: =SUM('3.0 LRAMVA Register'!K$12:K$13)*(MONTH($A43)-1)/12*$C43 -> 0 | L43: =SUM('3.0 LRAMVA Register'!L$12:L$13)*(MONTH($A43)-1)/12*$C43 -> 0 | M43: =SUM('3.0 LRAMVA Register'!M$12:M$13)*(MONTH($A43)-1)/12*$C43 -> 0 | N43: 3.526783427
A44: 2011-08-01 | B44: Q3 | C44: =H$14/12 -> 0.001225 | D44: =SUM('3.0 LRAMVA Register'!D$12:D$13)*(MONTH($A44)-1)/12*$C44 -> 1.86467293 | E44: =SUM('3.0 LRAMVA Register'!E$12:E$13)*(MONTH($A44)-1)/12*$C44 -> 1.063493389 | F44: =SUM('3.0 LRAMVA Register'!F$12:F$13)*(MONTH($A44)-1)/12*$C44 -> 1.186414344 | G44: =SUM('3.0 LRAMVA Register'!G$12:G$13)*(MONTH($A44)-1)/12*$C44 -> 0 | H44: =SUM('3.0 LRAMVA Register'!H$12:H$13)*(MONTH($A44)-1)/12*$C44 -> 0 | I44: =SUM('3.0 LRAMVA Register'!I$12:I$13)*(MONTH($A44)-1)/12*$C44 -> 0 | J44: =SUM('3.0 LRAMVA Register'!J$12:J$13)*(MONTH($A44)-1)/12*$C44 -> 0 | K44: =SUM('3.0 LRAMVA Register'!K$12:K$13)*(MONTH($A44)-1)/12*$C44 -> 0 | L44: =SUM('3.0 LRAMVA Register'!L$12:L$13)*(MONTH($A44)-1)/12*$C44 -> 0 | M44: =SUM('3.0 LRAMVA Register'!M$12:M$13)*(MONTH($A44)-1)/12*$C44 -> 0 | N44: 4.114580664
A45: 2011-09-01 | B45: Q3 | C45: =H$14/12 -> 0.001225 | D45: =SUM('3.0 LRAMVA Register'!D$12:D$13)*(MONTH($A45)-1)/12*$C45 -> 2.131054778 | E45: =SUM('3.0 LRAMVA Register'!E$12:E$13)*(MONTH($A45)-1)/12*$C45 -> 1.215421016 | F45: =SUM('3.0 LRAMVA Register'!F$12:F$13)*(MONTH($A45)-1)/12*$C45 -> 1.355902108 | G45: =SUM('3.0 LRAMVA Register'!G$12:G$13)*(MONTH($A45)-1)/12*$C45 -> 0 | H45: =SUM('3.0 LRAMVA Register'!H$12:H$13)*(MONTH($A45)-1)/12*$C45 -> 0 | I45: =SUM('3.0 LRAMVA Register'!I$12:I$13)*(MONTH($A45)-1)/12*$C45 -> 0 | J45: =SUM('3.0 LRAMVA Register'!J$12:J$13)*(MONTH($A45)-1)/12*$C45 -> 0 | K45: =SUM('3.0 LRAMVA Register'!K$12:K$13)*(MONTH($A45)-1)/12*$C45 -> 0 | L45: =SUM('3.0 LRAMVA Register'!L$12:L$13)*(MONTH($A45)-1)/12*$C45 -> 0 | M45: =SUM('3.0 LRAMVA Register'!M$12:M$13)*(MONTH($A45)-1)/12*$C45 -> 0 | N45: 4.702377902
A46: 2011-10-01 | B46: Q4 | C46: =H$15/12 -> 0.001225 | D46: =SUM('3.0 LRAMVA Register'!D$12:D$13)*(MONTH($A46)-1)/12*$C46 -> 2.397436625 | E46: =SUM('3.0 LRAMVA Register'!E$12:E$13)*(MONTH($A46)-1)/12*$C46 -> 1.367348644 | F46: =SUM('3.0 LRAMVA Register'!F$12:F$13)*(MONTH($A46)-1)/12*$C46 -> 1.525389871 | G46: =SUM('3.0 LRAMVA Register'!G$12:G$13)*(MONTH($A46)-1)/12*$C46 -> 0 | H46: =SUM('3.0 LRAMVA Register'!H$12:H$13)*(MONTH($A46)-1)/12*$C46 -> 0 | I46: =SUM('3.0 LRAMVA Register'!I$12:I$13)*(MONTH($A46)-1)/12*$C46 -> 0 | J46: =SUM('3.0 LRAMVA Register'!J$12:J$13)*(MONTH($A46)-1)/12*$C46 -> 0 | K46: =SUM('3.0 LRAMVA Register'!K$12:K$13)*(MONTH($A46)-1)/12*$C46 -> 0 | L46: =SUM('3.0 LRAMVA Register'!L$12:L$13)*(MONTH($A46)-1)/12*$C46 -> 0 | M46: =SUM('3.0 LRAMVA Register'!M$12:M$13)*(MONTH($A46)-1)/12*$C46 -> 0 | N46: 5.29017514
A47: 2011-11-01 | B47: Q4 | C47: =H$15/12 -> 0.001225 | D47: =SUM('3.0 LRAMVA Register'!D$12:D$13)*(MONTH($A47)-1)/12*$C47 -> 2.663818472 | E47: =SUM('3.0 LRAMVA Register'!E$12:E$13)*(MONTH($A47)-1)/12*$C47 -> 1.519276271 | F47: =SUM('3.0 LRAMVA Register'!F$12:F$13)*(MONTH($A47)-1)/12*$C47 -> 1.694877635 | G47: =SUM('3.0 LRAMVA Register'!G$12:G$13)*(MONTH($A47)-1)/12*$C47 -> 0 | H47: =SUM('3.0 LRAMVA Register'!H$12:H$13)*(MONTH($A47)-1)/12*$C47 -> 0 | I47: =SUM('3.0 LRAMVA Register'!I$12:I$13)*(MONTH($A47)-1)/12*$C47 -> 0 | J47: =SUM('3.0 LRAMVA Register'!J$12:J$13)*(MONTH($A47)-1)/12*$C47 -> 0 | K47: =SUM('3.0 LRAMVA Register'!K$12:K$13)*(MONTH($A47)-1)/12*$C47 -> 0 | L47: =SUM('3.0 LRAMVA Register'!L$12:L$13)*(MONTH($A47)-1)/12*$C47 -> 0 | M47: =SUM('3.0 LRAMVA Register'!M$12:M$13)*(MONTH($A47)-1)/12*$C47 -> 0 | N47: 5.877972378
A48: 2011-12-01 | B48: Q4 | C48: =H$15/12 -> 0.001225 | D48: =SUM('3.0 LRAMVA Register'!D$12:D$13)*(MONTH($A48)-1)/12*$C48 -> 2.930200319 | E48: =SUM('3.0 LRAMVA Register'!E$12:E$13)*(MONTH($A48)-1)/12*$C48 -> 1.671203898 | F48: =SUM('3.0 LRAMVA Register'!F$12:F$13)*(MONTH($A48)-1)/12*$C48 -> 1.864365398 | G48: =SUM('3.0 LRAMVA Register'!G$12:G$13)*(MONTH($A48)-1)/12*$C48 -> 0 | H48: =SUM('3.0 LRAMVA Register'!H$12:H$13)*(MONTH($A48)-1)/12*$C48 -> 0 | I48: =SUM('3.0 LRAMVA Register'!I$12:I$13)*(MONTH($A48)-1)/12*$C48 -> 0 | J48: =SUM('3.0 LRAMVA Register'!J$12:J$13)*(MONTH($A48)-1)/12*$C48 -> 0 | K48: =SUM('3.0 LRAMVA Register'!K$12:K$13)*(MONTH($A48)-1)/12*$C48 -> 0 | L48: =SUM('3.0 LRAMVA Register'!L$12:L$13)*(MONTH($A48)-1)/12*$C48 -> 0 | M48: =SUM('3.0 LRAMVA Register'!M$12:M$13)*(MONTH($A48)-1)/12*$C48 -> 0 | N48: 6.465769615
A49: 2012-01-01 | B49: Q1 | C49: =H$16/12 -> 0.001225 | D49: =(SUM('3.0 LRAMVA Register'!D$12:D$14)+SUM('3.0 LRAMVA Register'!D$16:D$17)*(MONTH($A49)-1)/12)*$C49 -> 3.196582167 | E49: =(SUM('3.0 LRAMVA Register'!E$12:E$14)+SUM('3.0 LRAMVA Register'!E$16:E$17)*(MONTH($A49)-1)/12)*$C49 -> 1.823131525 | F49: =(SUM('3.0 LRAMVA Register'!F$12:F$14)+SUM('3.0 LRAMVA Register'!F$16:F$17)*(MONTH($A49)-1)/12)*$C49 -> 2.033853162 | G49: =(SUM('3.0 LRAMVA Register'!G$12:G$14)+SUM('3.0 LRAMVA Register'!G$16:G$17)*(MONTH($A49)-1)/12)*$C49 -> 0 | H49: =(SUM('3.0 LRAMVA Register'!H$12:H$14)+SUM('3.0 LRAMVA Register'!H$16:H$17)*(MONTH($A49)-1)/12)*$C49 -> 0 | I49: =(SUM('3.0 LRAMVA Register'!I$12:I$14)+SUM('3.0 LRAMVA Register'!I$16:I$17)*(MONTH($A49)-1)/12)*$C49 -> 0 | J49: =(SUM('3.0 LRAMVA Register'!J$12:J$14)+SUM('3.0 LRAMVA Register'!J$16:J$17)*(MONTH($A49)-1)/12)*$C49 -> 0 | K49: =(SUM('3.0 LRAMVA Register'!K$12:K$14)+SUM('3.0 LRAMVA Register'!K$16:K$17)*(MONTH($A49)-1)/12)*$C49 -> 0 | L49: =(SUM('3.0 LRAMVA Register'!L$12:L$14)+SUM('3.0 LRAMVA Register'!L$16:L$17)*(MONTH($A49)-1)/12)*$C49 -> 0 | M49: =(SUM('3.0 LRAMVA Register'!M$12:M$14)+SUM('3.0 LRAMVA Register'!M$16:M$17)*(MONTH($A49)-1)/12)*$C49 -> 0 | N49: 7.053566853
A50: 2012-02-01 | B50: Q1 | C50: =H$16/12 -> 0.001225 | D50: =(SUM('3.0 LRAMVA Register'!D$12:D$14)+SUM('3.0 LRAMVA Register'!D$16:D$17)*(MONTH($A50)-1)/12)*$C50 -> 2.810333944 | E50: =(SUM('3.0 LRAMVA Register'!E$12:E$14)+SUM('3.0 LRAMVA Register'!E$16:E$17)*(MONTH($A50)-1)/12)*$C50 -> 1.951627659 | F50: =(SUM('3.0 LRAMVA Register'!F$12:F$14)+SUM('3.0 LRAMVA Register'!F$16:F$17)*(MONTH($A50)-1)/12)*$C50 -> 2.460647343 | G50: =(SUM('3.0 LRAMVA Register'!G$12:G$14)+SUM('3.0 LRAMVA Register'!G$16:G$17)*(MONTH($A50)-1)/12)*$C50 -> 0 | H50: =(SUM('3.0 LRAMVA Register'!H$12:H$14)+SUM('3.0 LRAMVA Register'!H$16:H$17)*(MONTH($A50)-1)/12)*$C50 -> 0 | I50: =(SUM('3.0 LRAMVA Register'!I$12:I$14)+SUM('3.0 LRAMVA Register'!I$16:I$17)*(MONTH($A50)-1)/12)*$C50 -> 0 | J50: =(SUM('3.0 LRAMVA Register'!J$12:J$14)+SUM('3.0 LRAMVA Register'!J$16:J$17)*(MONTH($A50)-1)/12)*$C50 -> 0 | K50: =(SUM('3.0 LRAMVA Register'!K$12:K$14)+SUM('3.0 LRAMVA Register'!K$16:K$17)*(MONTH($A50)-1)/12)*$C50 -> 0 | L50: =(SUM('3.0 LRAMVA Register'!L$12:L$14)+SUM('3.0 LRAMVA Register'!L$16:L$17)*(MONTH($A50)-1)/12)*$C50 -> 0 | M50: =(SUM('3.0 LRAMVA Register'!M$12:M$14)+SUM('3.0 LRAMVA Register'!M$16:M$17)*(MONTH($A50)-1)/12)*$C50 -> 0 | N50: 7.222608947
A51: 2012-03-01 | B51: Q1 | C51: =H$16/12 -> 0.001225 | D51: =(SUM('3.0 LRAMVA Register'!D$12:D$14)+SUM('3.0 LRAMVA Register'!D$16:D$17)*(MONTH($A51)-1)/12)*$C51 -> 2.424085722 | E51: =(SUM('3.0 LRAMVA Register'!E$12:E$14)+SUM('3.0 LRAMVA Register'!E$16:E$17)*(MONTH($A51)-1)/12)*$C51 -> 2.080123793 | F51: =(SUM('3.0 LRAMVA Register'!F$12:F$14)+SUM('3.0 LRAMVA Register'!F$16:F$17)*(MONTH($A51)-1)/12)*$C51 -> 2.887441525 | G51: =(SUM('3.0 LRAMVA Register'!G$12:G$14)+SUM('3.0 LRAMVA Register'!G$16:G$17)*(MONTH($A51)-1)/12)*$C51 -> 0 | H51: =(SUM('3.0 LRAMVA Register'!H$12:H$14)+SUM('3.0 LRAMVA Register'!H$16:H$17)*(MONTH($A51)-1)/12)*$C51 -> 0 | I51: =(SUM('3.0 LRAMVA Register'!I$12:I$14)+SUM('3.0 LRAMVA Register'!I$16:I$17)*(MONTH($A51)-1)/12)*$C51 -> 0 | J51: =(SUM('3.0 LRAMVA Register'!J$12:J$14)+SUM('3.0 LRAMVA Register'!J$16:J$17)*(MONTH($A51)-1)/12)*$C51 -> 0 | K51: =(SUM('3.0 LRAMVA Register'!K$12:K$14)+SUM('3.0 LRAMVA Register'!K$16:K$17)*(MONTH($A51)-1)/12)*$C51 -> 0 | L51: =(SUM('3.0 LRAMVA Register'!L$12:L$14)+SUM('3.0 LRAMVA Register'!L$16:L$17)*(MONTH($A51)-1)/12)*$C51 -> 0 | M51: =(SUM('3.0 LRAMVA Register'!M$12:M$14)+SUM('3.0 LRAMVA Register'!M$16:M$17)*(MONTH($A51)-1)/12)*$C51 -> 0 | N51: 7.39165104
A52: 2012-04-01 | B52: Q2 | C52: =H$17/12 -> 0.001225 | D52: =(SUM('3.0 LRAMVA Register'!D$12:D$14)+SUM('3.0 LRAMVA Register'!D$16:D$17)*(MONTH($A52)-1)/12)*$C52 -> 2.0378375 | E52: =(SUM('3.0 LRAMVA Register'!E$12:E$14)+SUM('3.0 LRAMVA Register'!E$16:E$17)*(MONTH($A52)-1)/12)*$C52 -> 2.208619927 | F52: =(SUM('3.0 LRAMVA Register'!F$12:F$14)+SUM('3.0 LRAMVA Register'!F$16:F$17)*(MONTH($A52)-1)/12)*$C52 -> 3.314235706 | G52: =(SUM('3.0 LRAMVA Register'!G$12:G$14)+SUM('3.0 LRAMVA Register'!G$16:G$17)*(MONTH($A52)-1)/12)*$C52 -> 0 | H52: =(SUM('3.0 LRAMVA Register'!H$12:H$14)+SUM('3.0 LRAMVA Register'!H$16:H$17)*(MONTH($A52)-1)/12)*$C52 -> 0 | I52: =(SUM('3.0 LRAMVA Register'!I$12:I$14)+SUM('3.0 LRAMVA Register'!I$16:I$17)*(MONTH($A52)-1)/12)*$C52 -> 0 | J52: =(SUM('3.0 LRAMVA Register'!J$12:J$14)+SUM('3.0 LRAMVA Register'!J$16:J$17)*(MONTH($A52)-1)/12)*$C52 -> 0 | K52: =(SUM('3.0 LRAMVA Register'!K$12:K$14)+SUM('3.0 LRAMVA Register'!K$16:K$17)*(MONTH($A52)-1)/12)*$C52 -> 0 | L52: =(SUM('3.0 LRAMVA Register'!L$12:L$14)+SUM('3.0 LRAMVA Register'!L$16:L$17)*(MONTH($A52)-1)/12)*$C52 -> 0 | M52: =(SUM('3.0 LRAMVA Register'!M$12:M$14)+SUM('3.0 LRAMVA Register'!M$16:M$17)*(MONTH($A52)-1)/12)*$C52 -> 0 | N52: =SUM(D52:M52) -> 7.560693133
A53: Total for rate year 2011 | D53: =SUM(D40:D52) -> 28.05004125 | E53: =SUM(E40:E52) -> 18.09072629 | F53: 21.88237013 | G53: 0 | H53: 0 | I53: 0 | J53: 0 | K53: =SUM(K40:K52) -> 0 | L53: 0 | M53: 0 | N53: 68.02313767
A54: Amount Cleared | N54: =SUM(D54:M54) -> 0
A55: Opening Balance for rate year 2012 | D55: =D53+D54 -> 28.05004125 | E55: 18.09072629 | F55: 21.88237013 | G55: 0 | H55: 0 | I55: 0 | J55: 0 | K55: 0 | L55: 0 | M55: 0 | N55: =N53+N54 -> 68.02313767
A56: 2012-05-01 | B56: Q2 | C56: =H$17/12 -> 0.001225 | D56: =(SUM('3.0 LRAMVA Register'!D$12:D$14)+SUM('3.0 LRAMVA Register'!D$16:D$17)*(MONTH($A56)-1)/12)*$C56 -> 1.651589278 | E56: =(SUM('3.0 LRAMVA Register'!E$12:E$14)+SUM('3.0 LRAMVA Register'!E$16:E$17)*(MONTH($A56)-1)/12)*$C56 -> 2.337116061 | F56: =(SUM('3.0 LRAMVA Register'!F$12:F$14)+SUM('3.0 LRAMVA Register'!F$16:F$17)*(MONTH($A56)-1)/12)*$C56 -> 3.741029888 | G56: =(SUM('3.0 LRAMVA Register'!G$12:G$14)+SUM('3.0 LRAMVA Register'!G$16:G$17)*(MONTH($A56)-1)/12)*$C56 -> 0 | H56: =(SUM('3.0 LRAMVA Register'!H$12:H$14)+SUM('3.0 LRAMVA Register'!H$16:H$17)*(MONTH($A56)-1)/12)*$C56 -> 0 | I56: =(SUM('3.0 LRAMVA Register'!I$12:I$14)+SUM('3.0 LRAMVA Register'!I$16:I$17)*(MONTH($A56)-1)/12)*$C56 -> 0 | J56: =(SUM('3.0 LRAMVA Register'!J$12:J$14)+SUM('3.0 LRAMVA Register'!J$16:J$17)*(MONTH($A56)-1)/12)*$C56 -> 0 | K56: =(SUM('3.0 LRAMVA Register'!K$12:K$14)+SUM('3.0 LRAMVA Register'!K$16:K$17)*(MONTH($A56)-1)/12)*$C56 -> 0 | L56: =(SUM('3.0 LRAMVA Register'!L$12:L$14)+SUM('3.0 LRAMVA Register'!L$16:L$17)*(MONTH($A56)-1)/12)*$C56 -> 0 | M56: =(SUM('3.0 LRAMVA Register'!M$12:M$14)+SUM('3.0 LRAMVA Register'!M$16:M$17)*(MONTH($A56)-1)/12)*$C56 -> 0 | N56: =SUM(D56:M56) -> 7.729735227
A57: 2012-06-01 | B57: Q2 | C57: =H$17/12 -> 0.001225 | D57: =(SUM('3.0 LRAMVA Register'!D$12:D$14)+SUM('3.0 LRAMVA Register'!D$16:D$17)*(MONTH($A57)-1)/12)*$C57 -> 1.265341056 | E57: =(SUM('3.0 LRAMVA Register'!E$12:E$14)+SUM('3.0 LRAMVA Register'!E$16:E$17)*(MONTH($A57)-1)/12)*$C57 -> 2.465612195 | F57: =(SUM('3.0 LRAMVA Register'!F$12:F$14)+SUM('3.0 LRAMVA Register'!F$16:F$17)*(MONTH($A57)-1)/12)*$C57 -> 4.167824069 | G57: =(SUM('3.0 LRAMVA Register'!G$12:G$14)+SUM('3.0 LRAMVA Register'!G$16:G$17)*(MONTH($A57)-1)/12)*$C57 -> 0 | H57: =(SUM('3.0 LRAMVA Register'!H$12:H$14)+SUM('3.0 LRAMVA Register'!H$16:H$17)*(MONTH($A57)-1)/12)*$C57 -> 0 | I57: =(SUM('3.0 LRAMVA Register'!I$12:I$14)+SUM('3.0 LRAMVA Register'!I$16:I$17)*(MONTH($A57)-1)/12)*$C57 -> 0 | J57: =(SUM('3.0 LRAMVA Register'!J$12:J$14)+SUM('3.0 LRAMVA Register'!J$16:J$17)*(MONTH($A57)-1)/12)*$C57 -> 0 | K57: =(SUM('3.0 LRAMVA Register'!K$12:K$14)+SUM('3.0 LRAMVA Register'!K$16:K$17)*(MONTH($A57)-1)/12)*$C57 -> 0 | L57: =(SUM('3.0 LRAMVA Register'!L$12:L$14)+SUM('3.0 LRAMVA Register'!L$16:L$17)*(MONTH($A57)-1)/12)*$C57 -> 0 | M57: =(SUM('3.0 LRAMVA Register'!M$12:M$14)+SUM('3.0 LRAMVA Register'!M$16:M$17)*(MONTH($A57)-1)/12)*$C57 -> 0 | N57: 7.89877732
A58: 2012-07-01 | B58: Q3 | C58: =H$18/12 -> 0.001225 | D58: =(SUM('3.0 LRAMVA Register'!D$12:D$14)+SUM('3.0 LRAMVA Register'!D$16:D$17)*(MONTH($A58)-1)/12)*$C58 -> 0.8790928345 | E58: =(SUM('3.0 LRAMVA Register'!E$12:E$14)+SUM('3.0 LRAMVA Register'!E$16:E$17)*(MONTH($A58)-1)/12)*$C58 -> 2.594108329 | F58: =(SUM('3.0 LRAMVA Register'!F$12:F$14)+SUM('3.0 LRAMVA Register'!F$16:F$17)*(MONTH($A58)-1)/12)*$C58 -> 4.594618251 | G58: =(SUM('3.0 LRAMVA Register'!G$12:G$14)+SUM('3.0 LRAMVA Register'!G$16:G$17)*(MONTH($A58)-1)/12)*$C58 -> 0 | H58: =(SUM('3.0 LRAMVA Register'!H$12:H$14)+SUM('3.0 LRAMVA Register'!H$16:H$17)*(MONTH($A58)-1)/12)*$C58 -> 0 | I58: =(SUM('3.0 LRAMVA Register'!I$12:I$14)+SUM('3.0 LRAMVA Register'!I$16:I$17)*(MONTH($A58)-1)/12)*$C58 -> 0 | J58: =(SUM('3.0 LRAMVA Register'!J$12:J$14)+SUM('3.0 LRAMVA Register'!J$16:J$17)*(MONTH($A58)-1)/12)*$C58 -> 0 | K58: =(SUM('3.0 LRAMVA Register'!K$12:K$14)+SUM('3.0 LRAMVA Register'!K$16:K$17)*(MONTH($A58)-1)/12)*$C58 -> 0 | L58: =(SUM('3.0 LRAMVA Register'!L$12:L$14)+SUM('3.0 LRAMVA Register'!L$16:L$17)*(MONTH($A58)-1)/12)*$C58 -> 0 | M58: =(SUM('3.0 LRAMVA Register'!M$12:M$14)+SUM('3.0 LRAMVA Register'!M$16:M$17)*(MONTH($A58)-1)/12)*$C58 -> 0 | N58: 8.067819414
A59: 2012-08-01 | B59: Q3 | C59: =H$18/12 -> 0.001225 | D59: =(SUM('3.0 LRAMVA Register'!D$12:D$14)+SUM('3.0 LRAMVA Register'!D$16:D$17)*(MONTH($A59)-1)/12)*$C59 -> 0.4928446125 | E59: =(SUM('3.0 LRAMVA Register'!E$12:E$14)+SUM('3.0 LRAMVA Register'!E$16:E$17)*(MONTH($A59)-1)/12)*$C59 -> 2.722604462 | F59: =(SUM('3.0 LRAMVA Register'!F$12:F$14)+SUM('3.0 LRAMVA Register'!F$16:F$17)*(MONTH($A59)-1)/12)*$C59 -> 5.021412432 | G59: =(SUM('3.0 LRAMVA Register'!G$12:G$14)+SUM('3.0 LRAMVA Register'!G$16:G$17)*(MONTH($A59)-1)/12)*$C59 -> 0 | H59: =(SUM('3.0 LRAMVA Register'!H$12:H$14)+SUM('3.0 LRAMVA Register'!H$16:H$17)*(MONTH($A59)-1)/12)*$C59 -> 0 | I59: =(SUM('3.0 LRAMVA Register'!I$12:I$14)+SUM('3.0 LRAMVA Register'!I$16:I$17)*(MONTH($A59)-1)/12)*$C59 -> 0 | J59: =(SUM('3.0 LRAMVA Register'!J$12:J$14)+SUM('3.0 LRAMVA Register'!J$16:J$17)*(MONTH($A59)-1)/12)*$C59 -> 0 | K59: =(SUM('3.0 LRAMVA Register'!K$12:K$14)+SUM('3.0 LRAMVA Register'!K$16:K$17)*(MONTH($A59)-1)/12)*$C59 -> 0 | L59: =(SUM('3.0 LRAMVA Register'!L$12:L$14)+SUM('3.0 LRAMVA Register'!L$16:L$17)*(MONTH($A59)-1)/12)*$C59 -> 0 | M59: =(SUM('3.0 LRAMVA Register'!M$12:M$14)+SUM('3.0 LRAMVA Register'!M$16:M$17)*(MONTH($A59)-1)/12)*$C59 -> 0 | N59: 8.236861507
A60: 2012-09-01 | B60: Q3 | C60: =H$18/12 -> 0.001225 | D60: =(SUM('3.0 LRAMVA Register'!D$12:D$14)+SUM('3.0 LRAMVA Register'!D$16:D$17)*(MONTH($A60)-1)/12)*$C60 -> 0.1065963905 | E60: =(SUM('3.0 LRAMVA Register'!E$12:E$14)+SUM('3.0 LRAMVA Register'!E$16:E$17)*(MONTH($A60)-1)/12)*$C60 -> 2.851100596 | F60: =(SUM('3.0 LRAMVA Register'!F$12:F$14)+SUM('3.0 LRAMVA Register'!F$16:F$17)*(MONTH($A60)-1)/12)*$C60 -> 5.448206614 | G60: =(SUM('3.0 LRAMVA Register'!G$12:G$14)+SUM('3.0 LRAMVA Register'!G$16:G$17)*(MONTH($A60)-1)/12)*$C60 -> 0 | H60: =(SUM('3.0 LRAMVA Register'!H$12:H$14)+SUM('3.0 LRAMVA Register'!H$16:H$17)*(MONTH($A60)-1)/12)*$C60 -> 0 | I60: =(SUM('3.0 LRAMVA Register'!I$12:I$14)+SUM('3.0 LRAMVA Register'!I$16:I$17)*(MONTH($A60)-1)/12)*$C60 -> 0 | J60: =(SUM('3.0 LRAMVA Register'!J$12:J$14)+SUM('3.0 LRAMVA Register'!J$16:J$17)*(MONTH($A60)-1)/12)*$C60 -> 0 | K60: =(SUM('3.0 LRAMVA Register'!K$12:K$14)+SUM('3.0 LRAMVA Register'!K$16:K$17)*(MONTH($A60)-1)/12)*$C60 -> 0 | L60: =(SUM('3.0 LRAMVA Register'!L$12:L$14)+SUM('3.0 LRAMVA Register'!L$16:L$17)*(MONTH($A60)-1)/12)*$C60 -> 0 | M60: =(SUM('3.0 LRAMVA Register'!M$12:M$14)+SUM('3.0 LRAMVA Register'!M$16:M$17)*(MONTH($A60)-1)/12)*$C60 -> 0 | N60: 8.4059036
A61: 2012-10-01 | B61: Q4 | C61: =H$19/12 -> 0.001225 | D61: =(SUM('3.0 LRAMVA Register'!D$12:D$14)+SUM('3.0 LRAMVA Register'!D$16:D$17)*(MONTH($A61)-1)/12)*$C61 -> -0.2796518315 | E61: =(SUM('3.0 LRAMVA Register'!E$12:E$14)+SUM('3.0 LRAMVA Register'!E$16:E$17)*(MONTH($A61)-1)/12)*$C61 -> 2.97959673 | F61: =(SUM('3.0 LRAMVA Register'!F$12:F$14)+SUM('3.0 LRAMVA Register'!F$16:F$17)*(MONTH($A61)-1)/12)*$C61 -> 5.875000795 | G61: =(SUM('3.0 LRAMVA Register'!G$12:G$14)+SUM('3.0 LRAMVA Register'!G$16:G$17)*(MONTH($A61)-1)/12)*$C61 -> 0 | H61: =(SUM('3.0 LRAMVA Register'!H$12:H$14)+SUM('3.0 LRAMVA Register'!H$16:H$17)*(MONTH($A61)-1)/12)*$C61 -> 0 | I61: =(SUM('3.0 LRAMVA Register'!I$12:I$14)+SUM('3.0 LRAMVA Register'!I$16:I$17)*(MONTH($A61)-1)/12)*$C61 -> 0 | J61: =(SUM('3.0 LRAMVA Register'!J$12:J$14)+SUM('3.0 LRAMVA Register'!J$16:J$17)*(MONTH($A61)-1)/12)*$C61 -> 0 | K61: =(SUM('3.0 LRAMVA Register'!K$12:K$14)+SUM('3.0 LRAMVA Register'!K$16:K$17)*(MONTH($A61)-1)/12)*$C61 -> 0 | L61: =(SUM('3.0 LRAMVA Register'!L$12:L$14)+SUM('3.0 LRAMVA Register'!L$16:L$17)*(MONTH($A61)-1)/12)*$C61 -> 0 | M61: =(SUM('3.0 LRAMVA Register'!M$12:M$14)+SUM('3.0 LRAMVA Register'!M$16:M$17)*(MONTH($A61)-1)/12)*$C61 -> 0 | N61: 8.574945694
A62: 2012-11-01 | B62: Q4 | C62: =H$19/12 -> 0.001225 | D62: =(SUM('3.0 LRAMVA Register'!D$12:D$14)+SUM('3.0 LRAMVA Register'!D$16:D$17)*(MONTH($A62)-1)/12)*$C62 -> -0.6659000536 | E62: =(SUM('3.0 LRAMVA Register'!E$12:E$14)+SUM('3.0 LRAMVA Register'!E$16:E$17)*(MONTH($A62)-1)/12)*$C62 -> 3.108092864 | F62: =(SUM('3.0 LRAMVA Register'!F$12:F$14)+SUM('3.0 LRAMVA Register'!F$16:F$17)*(MONTH($A62)-1)/12)*$C62 -> 6.301794976 | G62: =(SUM('3.0 LRAMVA Register'!G$12:G$14)+SUM('3.0 LRAMVA Register'!G$16:G$17)*(MONTH($A62)-1)/12)*$C62 -> 0 | H62: =(SUM('3.0 LRAMVA Register'!H$12:H$14)+SUM('3.0 LRAMVA Register'!H$16:H$17)*(MONTH($A62)-1)/12)*$C62 -> 0 | I62: =(SUM('3.0 LRAMVA Register'!I$12:I$14)+SUM('3.0 LRAMVA Register'!I$16:I$17)*(MONTH($A62)-1)/12)*$C62 -> 0 | J62: =(SUM('3.0 LRAMVA Register'!J$12:J$14)+SUM('3.0 LRAMVA Register'!J$16:J$17)*(MONTH($A62)-1)/12)*$C62 -> 0 | K62: =(SUM('3.0 LRAMVA Register'!K$12:K$14)+SUM('3.0 LRAMVA Register'!K$16:K$17)*(MONTH($A62)-1)/12)*$C62 -> 0 | L62: =(SUM('3.0 LRAMVA Register'!L$12:L$14)+SUM('3.0 LRAMVA Register'!L$16:L$17)*(MONTH($A62)-1)/12)*$C62 -> 0 | M62: =(SUM('3.0 LRAMVA Register'!M$12:M$14)+SUM('3.0 LRAMVA Register'!M$16:M$17)*(MONTH($A62)-1)/12)*$C62 -> 0 | N62: 8.743987787
A63: 2012-12-01 | B63: Q4 | C63: =H$19/12 -> 0.001225 | D63: =(SUM('3.0 LRAMVA Register'!D$12:D$14)+SUM('3.0 LRAMVA Register'!D$16:D$17)*(MONTH($A63)-1)/12)*$C63 -> -1.052148276 | E63: =(SUM('3.0 LRAMVA Register'!E$12:E$14)+SUM('3.0 LRAMVA Register'!E$16:E$17)*(MONTH($A63)-1)/12)*$C63 -> 3.236588998 | F63: =(SUM('3.0 LRAMVA Register'!F$12:F$14)+SUM('3.0 LRAMVA Register'!F$16:F$17)*(MONTH($A63)-1)/12)*$C63 -> 6.728589158 | G63: =(SUM('3.0 LRAMVA Register'!G$12:G$14)+SUM('3.0 LRAMVA Register'!G$16:G$17)*(MONTH($A63)-1)/12)*$C63 -> 0 | H63: =(SUM('3.0 LRAMVA Register'!H$12:H$14)+SUM('3.0 LRAMVA Register'!H$16:H$17)*(MONTH($A63)-1)/12)*$C63 -> 0 | I63: =(SUM('3.0 LRAMVA Register'!I$12:I$14)+SUM('3.0 LRAMVA Register'!I$16:I$17)*(MONTH($A63)-1)/12)*$C63 -> 0 | J63: =(SUM('3.0 LRAMVA Register'!J$12:J$14)+SUM('3.0 LRAMVA Register'!J$16:J$17)*(MONTH($A63)-1)/12)*$C63 -> 0 | K63: =(SUM('3.0 LRAMVA Register'!K$12:K$14)+SUM('3.0 LRAMVA Register'!K$16:K$17)*(MONTH($A63)-1)/12)*$C63 -> 0 | L63: =(SUM('3.0 LRAMVA Register'!L$12:L$14)+SUM('3.0 LRAMVA Register'!L$16:L$17)*(MONTH($A63)-1)/12)*$C63 -> 0 | M63: =(SUM('3.0 LRAMVA Register'!M$12:M$14)+SUM('3.0 LRAMVA Register'!M$16:M$17)*(MONTH($A63)-1)/12)*$C63 -> 0 | N63: 8.913029881
A64: 2013-01-01 | B64: Q1 | C64: =H$20/12 -> 0.001225 | D64: =(SUM('3.0 LRAMVA Register'!D$12:D$18)+SUM('3.0 LRAMVA Register'!D$20:D$21)*(MONTH($A64)-1)/12)*$C64 -> -1.438396498 | E64: =(SUM('3.0 LRAMVA Register'!E$12:E$18)+SUM('3.0 LRAMVA Register'!E$20:E$21)*(MONTH($A64)-1)/12)*$C64 -> 3.365085132 | F64: =(SUM('3.0 LRAMVA Register'!F$12:F$18)+SUM('3.0 LRAMVA Register'!F$20:F$21)*(MONTH($A64)-1)/12)*$C64 -> 7.155383339 | G64: =(SUM('3.0 LRAMVA Register'!G$12:G$18)+SUM('3.0 LRAMVA Register'!G$20:G$21)*(MONTH($A64)-1)/12)*$C64 -> 0 | H64: =(SUM('3.0 LRAMVA Register'!H$12:H$18)+SUM('3.0 LRAMVA Register'!H$20:H$21)*(MONTH($A64)-1)/12)*$C64 -> 0 | I64: =(SUM('3.0 LRAMVA Register'!I$12:I$18)+SUM('3.0 LRAMVA Register'!I$20:I$21)*(MONTH($A64)-1)/12)*$C64 -> 0 | J64: =(SUM('3.0 LRAMVA Register'!J$12:J$18)+SUM('3.0 LRAMVA Register'!J$20:J$21)*(MONTH($A64)-1)/12)*$C64 -> 0 | K64: =(SUM('3.0 LRAMVA Register'!K$12:K$18)+SUM('3.0 LRAMVA Register'!K$20:K$21)*(MONTH($A64)-1)/12)*$C64 -> 0 | L64: =(SUM('3.0 LRAMVA Register'!L$12:L$18)+SUM('3.0 LRAMVA Register'!L$20:L$21)*(MONTH($A64)-1)/12)*$C64 -> 0 | M64: =(SUM('3.0 LRAMVA Register'!M$12:M$18)+SUM('3.0 LRAMVA Register'!M$20:M$21)*(MONTH($A64)-1)/12)*$C64 -> 0 | N64: 9.082071974
A65: 2013-02-01 | B65: Q1 | C65: =H$20/12 -> 0.001225 | D65: =(SUM('3.0 LRAMVA Register'!D$12:D$18)+SUM('3.0 LRAMVA Register'!D$20:D$21)*(MONTH($A65)-1)/12)*$C65 -> -1.644034588 | E65: =(SUM('3.0 LRAMVA Register'!E$12:E$18)+SUM('3.0 LRAMVA Register'!E$20:E$21)*(MONTH($A65)-1)/12)*$C65 -> 3.564777488 | F65: =(SUM('3.0 LRAMVA Register'!F$12:F$18)+SUM('3.0 LRAMVA Register'!F$20:F$21)*(MONTH($A65)-1)/12)*$C65 -> 7.625639386 | G65: =(SUM('3.0 LRAMVA Register'!G$12:G$18)+SUM('3.0 LRAMVA Register'!G$20:G$21)*(MONTH($A65)-1)/12)*$C65 -> 0 | H65: =(SUM('3.0 LRAMVA Register'!H$12:H$18)+SUM('3.0 LRAMVA Register'!H$20:H$21)*(MONTH($A65)-1)/12)*$C65 -> 0 | I65: =(SUM('3.0 LRAMVA Register'!I$12:I$18)+SUM('3.0 LRAMVA Register'!I$20:I$21)*(MONTH($A65)-1)/12)*$C65 -> 0 | J65: =(SUM('3.0 LRAMVA Register'!J$12:J$18)+SUM('3.0 LRAMVA Register'!J$20:J$21)*(MONTH($A65)-1)/12)*$C65 -> 0 | K65: =(SUM('3.0 LRAMVA Register'!K$12:K$18)+SUM('3.0 LRAMVA Register'!K$20:K$21)*(MONTH($A65)-1)/12)*$C65 -> 0 | L65: =(SUM('3.0 LRAMVA Register'!L$12:L$18)+SUM('3.0 LRAMVA Register'!L$20:L$21)*(MONTH($A65)-1)/12)*$C65 -> 0 | M65: =(SUM('3.0 LRAMVA Register'!M$12:M$18)+SUM('3.0 LRAMVA Register'!M$20:M$21)*(MONTH($A65)-1)/12)*$C65 -> 0 | N65: 9.546382286
A66: 2013-03-01 | B66: Q1 | C66: =H$20/12 -> 0.001225 | D66: =(SUM('3.0 LRAMVA Register'!D$12:D$18)+SUM('3.0 LRAMVA Register'!D$20:D$21)*(MONTH($A66)-1)/12)*$C66 -> -1.849672678 | E66: =(SUM('3.0 LRAMVA Register'!E$12:E$18)+SUM('3.0 LRAMVA Register'!E$20:E$21)*(MONTH($A66)-1)/12)*$C66 -> 3.764469843 | F66: =(SUM('3.0 LRAMVA Register'!F$12:F$18)+SUM('3.0 LRAMVA Register'!F$20:F$21)*(MONTH($A66)-1)/12)*$C66 -> 8.095895432 | G66: =(SUM('3.0 LRAMVA Register'!G$12:G$18)+SUM('3.0 LRAMVA Register'!G$20:G$21)*(MONTH($A66)-1)/12)*$C66 -> 0 | H66: =(SUM('3.0 LRAMVA Register'!H$12:H$18)+SUM('3.0 LRAMVA Register'!H$20:H$21)*(MONTH($A66)-1)/12)*$C66 -> 0 | I66: =(SUM('3.0 LRAMVA Register'!I$12:I$18)+SUM('3.0 LRAMVA Register'!I$20:I$21)*(MONTH($A66)-1)/12)*$C66 -> 0 | J66: =(SUM('3.0 LRAMVA Register'!J$12:J$18)+SUM('3.0 LRAMVA Register'!J$20:J$21)*(MONTH($A66)-1)/12)*$C66 -> 0 | K66: =(SUM('3.0 LRAMVA Register'!K$12:K$18)+SUM('3.0 LRAMVA Register'!K$20:K$21)*(MONTH($A66)-1)/12)*$C66 -> 0 | L66: =(SUM('3.0 LRAMVA Register'!L$12:L$18)+SUM('3.0 LRAMVA Register'!L$20:L$21)*(MONTH($A66)-1)/12)*$C66 -> 0 | M66: =(SUM('3.0 LRAMVA Register'!M$12:M$18)+SUM('3.0 LRAMVA Register'!M$20:M$21)*(MONTH($A66)-1)/12)*$C66 -> 0 | N66: 10.0106926
A67: 2013-04-01 | B67: Q2 | C67: =H$21/12 -> 0.001225 | D67: =(SUM('3.0 LRAMVA Register'!D$12:D$18)+SUM('3.0 LRAMVA Register'!D$20:D$21)*(MONTH($A67)-1)/12)*$C67 -> -2.055310768 | E67: =(SUM('3.0 LRAMVA Register'!E$12:E$18)+SUM('3.0 LRAMVA Register'!E$20:E$21)*(MONTH($A67)-1)/12)*$C67 -> 3.964162199 | F67: =(SUM('3.0 LRAMVA Register'!F$12:F$18)+SUM('3.0 LRAMVA Register'!F$20:F$21)*(MONTH($A67)-1)/12)*$C67 -> 8.566151479 | G67: =(SUM('3.0 LRAMVA Register'!G$12:G$18)+SUM('3.0 LRAMVA Register'!G$20:G$21)*(MONTH($A67)-1)/12)*$C67 -> 0 | H67: =(SUM('3.0 LRAMVA Register'!H$12:H$18)+SUM('3.0 LRAMVA Register'!H$20:H$21)*(MONTH($A67)-1)/12)*$C67 -> 0 | I67: =(SUM('3.0 LRAMVA Register'!I$12:I$18)+SUM('3.0 LRAMVA Register'!I$20:I$21)*(MONTH($A67)-1)/12)*$C67 -> 0 | J67: =(SUM('3.0 LRAMVA Register'!J$12:J$18)+SUM('3.0 LRAMVA Register'!J$20:J$21)*(MONTH($A67)-1)/12)*$C67 -> 0 | K67: =(SUM('3.0 LRAMVA Register'!K$12:K$18)+SUM('3.0 LRAMVA Register'!K$20:K$21)*(MONTH($A67)-1)/12)*$C67 -> 0 | L67: =(SUM('3.0 LRAMVA Register'!L$12:L$18)+SUM('3.0 LRAMVA Register'!L$20:L$21)*(MONTH($A67)-1)/12)*$C67 -> 0 | M67: =(SUM('3.0 LRAMVA Register'!M$12:M$18)+SUM('3.0 LRAMVA Register'!M$20:M$21)*(MONTH($A67)-1)/12)*$C67 -> 0 | N67: 10.47500291
A68: Total for rate year 2012 | D68: =SUM(D55:D67) -> 23.46039073 | E68: =SUM(E55:E67) -> 55.04404119 | F68: 95.20391595 | G68: 0 | H68: 0 | I68: 0 | J68: 0 | K68: =SUM(K55:K67) -> 0 | L68: 0 | M68: 0 | N68: =SUM(N55:N67) -> 173.7083479
A69: Amount Cleared | N69: =SUM(D69:M69) -> 0
A70: Opening Balance for rate year 2013 | D70: =D68+D69 -> 23.46039073 | E70: 55.04404119 | F70: 95.20391595 | G70: 0 | H70: 0 | I70: 0 | J70: 0 | K70: 0 | L70: 0 | M70: 0 | N70: =N68+N69 -> 173.7083479
A71: 2013-05-01 | B71: Q2 | C71: =H$21/12 -> 0.001225 | D71: =(SUM('3.0 LRAMVA Register'!D$12:D$18)+SUM('3.0 LRAMVA Register'!D$20:D$21)*(MONTH($A71)-1)/12)*$C71 -> -2.260948858 | E71: =(SUM('3.0 LRAMVA Register'!E$12:E$18)+SUM('3.0 LRAMVA Register'!E$20:E$21)*(MONTH($A71)-1)/12)*$C71 -> 4.163854554 | F71: =(SUM('3.0 LRAMVA Register'!F$12:F$18)+SUM('3.0 LRAMVA Register'!F$20:F$21)*(MONTH($A71)-1)/12)*$C71 -> 9.036407526 | G71: =(SUM('3.0 LRAMVA Register'!G$12:G$18)+SUM('3.0 LRAMVA Register'!G$20:G$21)*(MONTH($A71)-1)/12)*$C71 -> 0 | H71: =(SUM('3.0 LRAMVA Register'!H$12:H$18)+SUM('3.0 LRAMVA Register'!H$20:H$21)*(MONTH($A71)-1)/12)*$C71 -> 0 | I71: =(SUM('3.0 LRAMVA Register'!I$12:I$18)+SUM('3.0 LRAMVA Register'!I$20:I$21)*(MONTH($A71)-1)/12)*$C71 -> 0 | J71: =(SUM('3.0 LRAMVA Register'!J$12:J$18)+SUM('3.0 LRAMVA Register'!J$20:J$21)*(MONTH($A71)-1)/12)*$C71 -> 0 | K71: =(SUM('3.0 LRAMVA Register'!K$12:K$18)+SUM('3.0 LRAMVA Register'!K$20:K$21)*(MONTH($A71)-1)/12)*$C71 -> 0 | L71: =(SUM('3.0 LRAMVA Register'!L$12:L$18)+SUM('3.0 LRAMVA Register'!L$20:L$21)*(MONTH($A71)-1)/12)*$C71 -> 0 | M71: =(SUM('3.0 LRAMVA Register'!M$12:M$18)+SUM('3.0 LRAMVA Register'!M$20:M$21)*(MONTH($A71)-1)/12)*$C71 -> 0 | N71: =SUM(D71:M71) -> 10.93931322
A72: 2013-06-01 | B72: Q2 | C72: =H$21/12 -> 0.001225 | D72: =(SUM('3.0 LRAMVA Register'!D$12:D$18)+SUM('3.0 LRAMVA Register'!D$20:D$21)*(MONTH($A72)-1)/12)*$C72 -> -2.466586948 | E72: =(SUM('3.0 LRAMVA Register'!E$12:E$18)+SUM('3.0 LRAMVA Register'!E$20:E$21)*(MONTH($A72)-1)/12)*$C72 -> 4.36354691 | F72: =(SUM('3.0 LRAMVA Register'!F$12:F$18)+SUM('3.0 LRAMVA Register'!F$20:F$21)*(MONTH($A72)-1)/12)*$C72 -> 9.506663572 | G72: =(SUM('3.0 LRAMVA Register'!G$12:G$18)+SUM('3.0 LRAMVA Register'!G$20:G$21)*(MONTH($A72)-1)/12)*$C72 -> 0 | H72: =(SUM('3.0 LRAMVA Register'!H$12:H$18)+SUM('3.0 LRAMVA Register'!H$20:H$21)*(MONTH($A72)-1)/12)*$C72 -> 0 | I72: =(SUM('3.0 LRAMVA Register'!I$12:I$18)+SUM('3.0 LRAMVA Register'!I$20:I$21)*(MONTH($A72)-1)/12)*$C72 -> 0 | J72: =(SUM('3.0 LRAMVA Register'!J$12:J$18)+SUM('3.0 LRAMVA Register'!J$20:J$21)*(MONTH($A72)-1)/12)*$C72 -> 0 | K72: =(SUM('3.0 LRAMVA Register'!K$12:K$18)+SUM('3.0 LRAMVA Register'!K$20:K$21)*(MONTH($A72)-1)/12)*$C72 -> 0 | L72: =(SUM('3.0 LRAMVA Register'!L$12:L$18)+SUM('3.0 LRAMVA Register'!L$20:L$21)*(MONTH($A72)-1)/12)*$C72 -> 0 | M72: =(SUM('3.0 LRAMVA Register'!M$12:M$18)+SUM('3.0 LRAMVA Register'!M$20:M$21)*(MONTH($A72)-1)/12)*$C72 -> 0 | N72: 11.40362353
A73: 2013-07-01 | B73: Q3 | C73: =H$22/12 -> 0.001225 | D73: =(SUM('3.0 LRAMVA Register'!D$12:D$18)+SUM('3.0 LRAMVA Register'!D$20:D$21)*(MONTH($A73)-1)/12)*$C73 -> -2.672225038 | E73: =(SUM('3.0 LRAMVA Register'!E$12:E$18)+SUM('3.0 LRAMVA Register'!E$20:E$21)*(MONTH($A73)-1)/12)*$C73 -> 4.563239265 | F73: =(SUM('3.0 LRAMVA Register'!F$12:F$18)+SUM('3.0 LRAMVA Register'!F$20:F$21)*(MONTH($A73)-1)/12)*$C73 -> 9.976919619 | G73: =(SUM('3.0 LRAMVA Register'!G$12:G$18)+SUM('3.0 LRAMVA Register'!G$20:G$21)*(MONTH($A73)-1)/12)*$C73 -> 0 | H73: =(SUM('3.0 LRAMVA Register'!H$12:H$18)+SUM('3.0 LRAMVA Register'!H$20:H$21)*(MONTH($A73)-1)/12)*$C73 -> 0 | I73: =(SUM('3.0 LRAMVA Register'!I$12:I$18)+SUM('3.0 LRAMVA Register'!I$20:I$21)*(MONTH($A73)-1)/12)*$C73 -> 0 | J73: =(SUM('3.0 LRAMVA Register'!J$12:J$18)+SUM('3.0 LRAMVA Register'!J$20:J$21)*(MONTH($A73)-1)/12)*$C73 -> 0 | K73: =(SUM('3.0 LRAMVA Register'!K$12:K$18)+SUM('3.0 LRAMVA Register'!K$20:K$21)*(MONTH($A73)-1)/12)*$C73 -> 0 | L73: =(SUM('3.0 LRAMVA Register'!L$12:L$18)+SUM('3.0 LRAMVA Register'!L$20:L$21)*(MONTH($A73)-1)/12)*$C73 -> 0 | M73: =(SUM('3.0 LRAMVA Register'!M$12:M$18)+SUM('3.0 LRAMVA Register'!M$20:M$21)*(MONTH($A73)-1)/12)*$C73 -> 0 | N73: 11.86793385
A74: 2013-08-01 | B74: Q3 | C74: =H$22/12 -> 0.001225 | D74: =(SUM('3.0 LRAMVA Register'!D$12:D$18)+SUM('3.0 LRAMVA Register'!D$20:D$21)*(MONTH($A74)-1)/12)*$C74 -> -2.877863128 | E74: =(SUM('3.0 LRAMVA Register'!E$12:E$18)+SUM('3.0 LRAMVA Register'!E$20:E$21)*(MONTH($A74)-1)/12)*$C74 -> 4.762931621 | F74: =(SUM('3.0 LRAMVA Register'!F$12:F$18)+SUM('3.0 LRAMVA Register'!F$20:F$21)*(MONTH($A74)-1)/12)*$C74 -> 10.44717567 | G74: =(SUM('3.0 LRAMVA Register'!G$12:G$18)+SUM('3.0 LRAMVA Register'!G$20:G$21)*(MONTH($A74)-1)/12)*$C74 -> 0 | H74: =(SUM('3.0 LRAMVA Register'!H$12:H$18)+SUM('3.0 LRAMVA Register'!H$20:H$21)*(MONTH($A74)-1)/12)*$C74 -> 0 | I74: =(SUM('3.0 LRAMVA Register'!I$12:I$18)+SUM('3.0 LRAMVA Register'!I$20:I$21)*(MONTH($A74)-1)/12)*$C74 -> 0 | J74: =(SUM('3.0 LRAMVA Register'!J$12:J$18)+SUM('3.0 LRAMVA Register'!J$20:J$21)*(MONTH($A74)-1)/12)*$C74 -> 0 | K74: =(SUM('3.0 LRAMVA Register'!K$12:K$18)+SUM('3.0 LRAMVA Register'!K$20:K$21)*(MONTH($A74)-1)/12)*$C74 -> 0 | L74: =(SUM('3.0 LRAMVA Register'!L$12:L$18)+SUM('3.0 LRAMVA Register'!L$20:L$21)*(MONTH($A74)-1)/12)*$C74 -> 0 | M74: =(SUM('3.0 LRAMVA Register'!M$12:M$18)+SUM('3.0 LRAMVA Register'!M$20:M$21)*(MONTH($A74)-1)/12)*$C74 -> 0 | N74: 12.33224416
A75: 2013-09-01 | B75: Q3 | C75: =H$22/12 -> 0.001225 | D75: =(SUM('3.0 LRAMVA Register'!D$12:D$18)+SUM('3.0 LRAMVA Register'!D$20:D$21)*(MONTH($A75)-1)/12)*$C75 -> -3.083501218 | E75: =(SUM('3.0 LRAMVA Register'!E$12:E$18)+SUM('3.0 LRAMVA Register'!E$20:E$21)*(MONTH($A75)-1)/12)*$C75 -> 4.962623976 | F75: =(SUM('3.0 LRAMVA Register'!F$12:F$18)+SUM('3.0 LRAMVA Register'!F$20:F$21)*(MONTH($A75)-1)/12)*$C75 -> 10.91743171 | G75: =(SUM('3.0 LRAMVA Register'!G$12:G$18)+SUM('3.0 LRAMVA Register'!G$20:G$21)*(MONTH($A75)-1)/12)*$C75 -> 0 | H75: =(SUM('3.0 LRAMVA Register'!H$12:H$18)+SUM('3.0 LRAMVA Register'!H$20:H$21)*(MONTH($A75)-1)/12)*$C75 -> 0 | I75: =(SUM('3.0 LRAMVA Register'!I$12:I$18)+SUM('3.0 LRAMVA Register'!I$20:I$21)*(MONTH($A75)-1)/12)*$C75 -> 0 | J75: =(SUM('3.0 LRAMVA Register'!J$12:J$18)+SUM('3.0 LRAMVA Register'!J$20:J$21)*(MONTH($A75)-1)/12)*$C75 -> 0 | K75: =(SUM('3.0 LRAMVA Register'!K$12:K$18)+SUM('3.0 LRAMVA Register'!K$20:K$21)*(MONTH($A75)-1)/12)*$C75 -> 0 | L75: =(SUM('3.0 LRAMVA Register'!L$12:L$18)+SUM('3.0 LRAMVA Register'!L$20:L$21)*(MONTH($A75)-1)/12)*$C75 -> 0 | M75: =(SUM('3.0 LRAMVA Register'!M$12:M$18)+SUM('3.0 LRAMVA Register'!M$20:M$21)*(MONTH($A75)-1)/12)*$C75 -> 0 | N75: 12.79655447
A76: 2013-10-01 | B76: Q4 | C76: =H$23/12 -> 0.001225 | D76: =(SUM('3.0 LRAMVA Register'!D$12:D$18)+SUM('3.0 LRAMVA Register'!D$20:D$21)*(MONTH($A76)-1)/12)*$C76 -> -3.289139308 | E76: =(SUM('3.0 LRAMVA Register'!E$12:E$18)+SUM('3.0 LRAMVA Register'!E$20:E$21)*(MONTH($A76)-1)/12)*$C76 -> 5.162316332 | F76: =(SUM('3.0 LRAMVA Register'!F$12:F$18)+SUM('3.0 LRAMVA Register'!F$20:F$21)*(MONTH($A76)-1)/12)*$C76 -> 11.38768776 | G76: =(SUM('3.0 LRAMVA Register'!G$12:G$18)+SUM('3.0 LRAMVA Register'!G$20:G$21)*(MONTH($A76)-1)/12)*$C76 -> 0 | H76: =(SUM('3.0 LRAMVA Register'!H$12:H$18)+SUM('3.0 LRAMVA Register'!H$20:H$21)*(MONTH($A76)-1)/12)*$C76 -> 0 | I76: =(SUM('3.0 LRAMVA Register'!I$12:I$18)+SUM('3.0 LRAMVA Register'!I$20:I$21)*(MONTH($A76)-1)/12)*$C76 -> 0 | J76: =(SUM('3.0 LRAMVA Register'!J$12:J$18)+SUM('3.0 LRAMVA Register'!J$20:J$21)*(MONTH($A76)-1)/12)*$C76 -> 0 | K76: =(SUM('3.0 LRAMVA Register'!K$12:K$18)+SUM('3.0 LRAMVA Register'!K$20:K$21)*(MONTH($A76)-1)/12)*$C76 -> 0 | L76: =(SUM('3.0 LRAMVA Register'!L$12:L$18)+SUM('3.0 LRAMVA Register'!L$20:L$21)*(MONTH($A76)-1)/12)*$C76 -> 0 | M76: =(SUM('3.0 LRAMVA Register'!M$12:M$18)+SUM('3.0 LRAMVA Register'!M$20:M$21)*(MONTH($A76)-1)/12)*$C76 -> 0 | N76: 13.26086478
A77: 2013-11-01 | B77: Q4 | C77: =H$23/12 -> 0.001225 | D77: =(SUM('3.0 LRAMVA Register'!D$12:D$18)+SUM('3.0 LRAMVA Register'!D$20:D$21)*(MONTH($A77)-1)/12)*$C77 -> -3.494777398 | E77: =(SUM('3.0 LRAMVA Register'!E$12:E$18)+SUM('3.0 LRAMVA Register'!E$20:E$21)*(MONTH($A77)-1)/12)*$C77 -> 5.362008687 | F77: =(SUM('3.0 LRAMVA Register'!F$12:F$18)+SUM('3.0 LRAMVA Register'!F$20:F$21)*(MONTH($A77)-1)/12)*$C77 -> 11.8579438 | G77: =(SUM('3.0 LRAMVA Register'!G$12:G$18)+SUM('3.0 LRAMVA Register'!G$20:G$21)*(MONTH($A77)-1)/12)*$C77 -> 0 | H77: =(SUM('3.0 LRAMVA Register'!H$12:H$18)+SUM('3.0 LRAMVA Register'!H$20:H$21)*(MONTH($A77)-1)/12)*$C77 -> 0 | I77: =(SUM('3.0 LRAMVA Register'!I$12:I$18)+SUM('3.0 LRAMVA Register'!I$20:I$21)*(MONTH($A77)-1)/12)*$C77 -> 0 | J77: =(SUM('3.0 LRAMVA Register'!J$12:J$18)+SUM('3.0 LRAMVA Register'!J$20:J$21)*(MONTH($A77)-1)/12)*$C77 -> 0 | K77: =(SUM('3.0 LRAMVA Register'!K$12:K$18)+SUM('3.0 LRAMVA Register'!K$20:K$21)*(MONTH($A77)-1)/12)*$C77 -> 0 | L77: =(SUM('3.0 LRAMVA Register'!L$12:L$18)+SUM('3.0 LRAMVA Register'!L$20:L$21)*(MONTH($A77)-1)/12)*$C77 -> 0 | M77: =(SUM('3.0 LRAMVA Register'!M$12:M$18)+SUM('3.0 LRAMVA Register'!M$20:M$21)*(MONTH($A77)-1)/12)*$C77 -> 0 | N77: 13.72517509
A78: 2013-12-01 | B78: Q4 | C78: =H$23/12 -> 0.001225 | D78: =(SUM('3.0 LRAMVA Register'!D$12:D$18)+SUM('3.0 LRAMVA Register'!D$20:D$21)*(MONTH($A78)-1)/12)*$C78 -> -3.700415489 | E78: =(SUM('3.0 LRAMVA Register'!E$12:E$18)+SUM('3.0 LRAMVA Register'!E$20:E$21)*(MONTH($A78)-1)/12)*$C78 -> 5.561701042 | F78: =(SUM('3.0 LRAMVA Register'!F$12:F$18)+SUM('3.0 LRAMVA Register'!F$20:F$21)*(MONTH($A78)-1)/12)*$C78 -> 12.32819985 | G78: =(SUM('3.0 LRAMVA Register'!G$12:G$18)+SUM('3.0 LRAMVA Register'!G$20:G$21)*(MONTH($A78)-1)/12)*$C78 -> 0 | H78: =(SUM('3.0 LRAMVA Register'!H$12:H$18)+SUM('3.0 LRAMVA Register'!H$20:H$21)*(MONTH($A78)-1)/12)*$C78 -> 0 | I78: =(SUM('3.0 LRAMVA Register'!I$12:I$18)+SUM('3.0 LRAMVA Register'!I$20:I$21)*(MONTH($A78)-1)/12)*$C78 -> 0 | J78: =(SUM('3.0 LRAMVA Register'!J$12:J$18)+SUM('3.0 LRAMVA Register'!J$20:J$21)*(MONTH($A78)-1)/12)*$C78 -> 0 | K78: =(SUM('3.0 LRAMVA Register'!K$12:K$18)+SUM('3.0 LRAMVA Register'!K$20:K$21)*(MONTH($A78)-1)/12)*$C78 -> 0 | L78: =(SUM('3.0 LRAMVA Register'!L$12:L$18)+SUM('3.0 LRAMVA Register'!L$20:L$21)*(MONTH($A78)-1)/12)*$C78 -> 0 | M78: =(SUM('3.0 LRAMVA Register'!M$12:M$18)+SUM('3.0 LRAMVA Register'!M$20:M$21)*(MONTH($A78)-1)/12)*$C78 -> 0 | N78: 14.18948541
A79: 2014-01-01 | B79: Q1 | C79: =H$24/12 -> 0.001225 | D79: =(SUM('3.0 LRAMVA Register'!D$12:D$22)+SUM('3.0 LRAMVA Register'!D$24:D$25)*(MONTH($A79)-1)/12)*$C79 -> -3.906053579 | E79: =(SUM('3.0 LRAMVA Register'!E$12:E$22)+SUM('3.0 LRAMVA Register'!E$24:E$25)*(MONTH($A79)-1)/12)*$C79 -> 5.761393398 | F79: =(SUM('3.0 LRAMVA Register'!F$12:F$22)+SUM('3.0 LRAMVA Register'!F$24:F$25)*(MONTH($A79)-1)/12)*$C79 -> 12.7984559 | G79: =(SUM('3.0 LRAMVA Register'!G$12:G$22)+SUM('3.0 LRAMVA Register'!G$24:G$25)*(MONTH($A79)-1)/12)*$C79 -> 0 | H79: =(SUM('3.0 LRAMVA Register'!H$12:H$22)+SUM('3.0 LRAMVA Register'!H$24:H$25)*(MONTH($A79)-1)/12)*$C79 -> 0 | I79: =(SUM('3.0 LRAMVA Register'!I$12:I$22)+SUM('3.0 LRAMVA Register'!I$24:I$25)*(MONTH($A79)-1)/12)*$C79 -> 0 | J79: =(SUM('3.0 LRAMVA Register'!J$12:J$22)+SUM('3.0 LRAMVA Register'!J$24:J$25)*(MONTH($A79)-1)/12)*$C79 -> 0 | K79: =(SUM('3.0 LRAMVA Register'!K$12:K$22)+SUM('3.0 LRAMVA Register'!K$24:K$25)*(MONTH($A79)-1)/12)*$C79 -> 0 | L79: =(SUM('3.0 LRAMVA Register'!L$12:L$22)+SUM('3.0 LRAMVA Register'!L$24:L$25)*(MONTH($A79)-1)/12)*$C79 -> 0 | M79: =(SUM('3.0 LRAMVA Register'!M$12:M$22)+SUM('3.0 LRAMVA Register'!M$24:M$25)*(MONTH($A79)-1)/12)*$C79 -> 0 | N79: 14.65379572
A80: 2014-02-01 | B80: Q1 | C80: =H$24/12 -> 0.001225 | D80: =(SUM('3.0 LRAMVA Register'!D$12:D$22)+SUM('3.0 LRAMVA Register'!D$24:D$25)*(MONTH($A80)-1)/12)*$C80 -> -3.580624315 | E80: =(SUM('3.0 LRAMVA Register'!E$12:E$22)+SUM('3.0 LRAMVA Register'!E$24:E$25)*(MONTH($A80)-1)/12)*$C80 -> 6.215941125 | F80: =(SUM('3.0 LRAMVA Register'!F$12:F$22)+SUM('3.0 LRAMVA Register'!F$24:F$25)*(MONTH($A80)-1)/12)*$C80 -> 13.30238426 | G80: =(SUM('3.0 LRAMVA Register'!G$12:G$22)+SUM('3.0 LRAMVA Register'!G$24:G$25)*(MONTH($A80)-1)/12)*$C80 -> 0 | H80: =(SUM('3.0 LRAMVA Register'!H$12:H$22)+SUM('3.0 LRAMVA Register'!H$24:H$25)*(MONTH($A80)-1)/12)*$C80 -> 0 | I80: =(SUM('3.0 LRAMVA Register'!I$12:I$22)+SUM('3.0 LRAMVA Register'!I$24:I$25)*(MONTH($A80)-1)/12)*$C80 -> 0 | J80: =(SUM('3.0 LRAMVA Register'!J$12:J$22)+SUM('3.0 LRAMVA Register'!J$24:J$25)*(MONTH($A80)-1)/12)*$C80 -> 0 | K80: =(SUM('3.0 LRAMVA Register'!K$12:K$22)+SUM('3.0 LRAMVA Register'!K$24:K$25)*(MONTH($A80)-1)/12)*$C80 -> 0 | L80: =(SUM('3.0 LRAMVA Register'!L$12:L$22)+SUM('3.0 LRAMVA Register'!L$24:L$25)*(MONTH($A80)-1)/12)*$C80 -> 0 | M80: =(SUM('3.0 LRAMVA Register'!M$12:M$22)+SUM('3.0 LRAMVA Register'!M$24:M$25)*(MONTH($A80)-1)/12)*$C80 -> 0 | N80: 15.93770107
A81: 2014-03-01 | B81: Q1 | C81: =H$24/12 -> 0.001225 | D81: =(SUM('3.0 LRAMVA Register'!D$12:D$22)+SUM('3.0 LRAMVA Register'!D$24:D$25)*(MONTH($A81)-1)/12)*$C81 -> -3.255195051 | E81: =(SUM('3.0 LRAMVA Register'!E$12:E$22)+SUM('3.0 LRAMVA Register'!E$24:E$25)*(MONTH($A81)-1)/12)*$C81 -> 6.670488852 | F81: =(SUM('3.0 LRAMVA Register'!F$12:F$22)+SUM('3.0 LRAMVA Register'!F$24:F$25)*(MONTH($A81)-1)/12)*$C81 -> 13.80631262 | G81: =(SUM('3.0 LRAMVA Register'!G$12:G$22)+SUM('3.0 LRAMVA Register'!G$24:G$25)*(MONTH($A81)-1)/12)*$C81 -> 0 | H81: =(SUM('3.0 LRAMVA Register'!H$12:H$22)+SUM('3.0 LRAMVA Register'!H$24:H$25)*(MONTH($A81)-1)/12)*$C81 -> 0 | I81: =(SUM('3.0 LRAMVA Register'!I$12:I$22)+SUM('3.0 LRAMVA Register'!I$24:I$25)*(MONTH($A81)-1)/12)*$C81 -> 0 | J81: =(SUM('3.0 LRAMVA Register'!J$12:J$22)+SUM('3.0 LRAMVA Register'!J$24:J$25)*(MONTH($A81)-1)/12)*$C81 -> 0 | K81: =(SUM('3.0 LRAMVA Register'!K$12:K$22)+SUM('3.0 LRAMVA Register'!K$24:K$25)*(MONTH($A81)-1)/12)*$C81 -> 0 | L81: =(SUM('3.0 LRAMVA Register'!L$12:L$22)+SUM('3.0 LRAMVA Register'!L$24:L$25)*(MONTH($A81)-1)/12)*$C81 -> 0 | M81: =(SUM('3.0 LRAMVA Register'!M$12:M$22)+SUM('3.0 LRAMVA Register'!M$24:M$25)*(MONTH($A81)-1)/12)*$C81 -> 0 | N81: 17.22160642
A82: 2014-04-01 | B82: Q2 | C82: =H$25/12 -> 0.001225 | D82: =(SUM('3.0 LRAMVA Register'!D$12:D$22)+SUM('3.0 LRAMVA Register'!D$24:D$25)*(MONTH($A82)-1)/12)*$C82 -> -2.929765787 | E82: =(SUM('3.0 LRAMVA Register'!E$12:E$22)+SUM('3.0 LRAMVA Register'!E$24:E$25)*(MONTH($A82)-1)/12)*$C82 -> 7.125036579 | F82: =(SUM('3.0 LRAMVA Register'!F$12:F$22)+SUM('3.0 LRAMVA Register'!F$24:F$25)*(MONTH($A82)-1)/12)*$C82 -> 14.31024098 | G82: =(SUM('3.0 LRAMVA Register'!G$12:G$22)+SUM('3.0 LRAMVA Register'!G$24:G$25)*(MONTH($A82)-1)/12)*$C82 -> 0 | H82: =(SUM('3.0 LRAMVA Register'!H$12:H$22)+SUM('3.0 LRAMVA Register'!H$24:H$25)*(MONTH($A82)-1)/12)*$C82 -> 0 | I82: =(SUM('3.0 LRAMVA Register'!I$12:I$22)+SUM('3.0 LRAMVA Register'!I$24:I$25)*(MONTH($A82)-1)/12)*$C82 -> 0 | J82: =(SUM('3.0 LRAMVA Register'!J$12:J$22)+SUM('3.0 LRAMVA Register'!J$24:J$25)*(MONTH($A82)-1)/12)*$C82 -> 0 | K82: =(SUM('3.0 LRAMVA Register'!K$12:K$22)+SUM('3.0 LRAMVA Register'!K$24:K$25)*(MONTH($A82)-1)/12)*$C82 -> 0 | L82: =(SUM('3.0 LRAMVA Register'!L$12:L$22)+SUM('3.0 LRAMVA Register'!L$24:L$25)*(MONTH($A82)-1)/12)*$C82 -> 0 | M82: =(SUM('3.0 LRAMVA Register'!M$12:M$22)+SUM('3.0 LRAMVA Register'!M$24:M$25)*(MONTH($A82)-1)/12)*$C82 -> 0 | N82: 18.50551177
A83: Total for rate year 2013 | D83: =SUM(D70:D82) -> -14.05670539 | E83: =SUM(E70:E82) -> 119.7191235 | F83: =SUM(F70:F82) -> 234.8797392 | G83: =SUM(G70:G82) -> 0 | H83: =SUM(H70:H82) -> 0 | I83: =SUM(I70:I82) -> 0 | J83: =SUM(J70:J82) -> 0 | K83: 0 | L83: 0 | M83: 0 | N83: =SUM(N70:N82) -> 340.5421573
A84: Amount Cleared | N84: =SUM(D84:M84) -> 0
A85: Opening Balance for rate year 2014 | D85: =D83+D84 -> -14.05670539 | E85: =E83+E84 -> 119.7191235 | F85: 234.8797392 | G85: 0 | H85: 0 | I85: 0 | J85: 0 | K85: 0 | L85: 0 | M85: 0 | N85: =N83+N84 -> 340.5421573
A86: 2014-05-01 | B86: Q2 | C86: =H$25/12 -> 0.001225 | D86: =(SUM('3.0 LRAMVA Register'!D$12:D$22)+SUM('3.0 LRAMVA Register'!D$24:D$25)*(MONTH($A86)-1)/12)*$C86 -> -2.604336524 | E86: =(SUM('3.0 LRAMVA Register'!E$12:E$22)+SUM('3.0 LRAMVA Register'!E$24:E$25)*(MONTH($A86)-1)/12)*$C86 -> 7.579584305 | F86: =(SUM('3.0 LRAMVA Register'!F$12:F$22)+SUM('3.0 LRAMVA Register'!F$24:F$25)*(MONTH($A86)-1)/12)*$C86 -> 14.81416934 | G86: =(SUM('3.0 LRAMVA Register'!G$12:G$22)+SUM('3.0 LRAMVA Register'!G$24:G$25)*(MONTH($A86)-1)/12)*$C86 -> 0 | H86: =(SUM('3.0 LRAMVA Register'!H$12:H$22)+SUM('3.0 LRAMVA Register'!H$24:H$25)*(MONTH($A86)-1)/12)*$C86 -> 0 | I86: =(SUM('3.0 LRAMVA Register'!I$12:I$22)+SUM('3.0 LRAMVA Register'!I$24:I$25)*(MONTH($A86)-1)/12)*$C86 -> 0 | J86: =(SUM('3.0 LRAMVA Register'!J$12:J$22)+SUM('3.0 LRAMVA Register'!J$24:J$25)*(MONTH($A86)-1)/12)*$C86 -> 0 | K86: =(SUM('3.0 LRAMVA Register'!K$12:K$22)+SUM('3.0 LRAMVA Register'!K$24:K$25)*(MONTH($A86)-1)/12)*$C86 -> 0 | L86: =(SUM('3.0 LRAMVA Register'!L$12:L$22)+SUM('3.0 LRAMVA Register'!L$24:L$25)*(MONTH($A86)-1)/12)*$C86 -> 0 | M86: =(SUM('3.0 LRAMVA Register'!M$12:M$22)+SUM('3.0 LRAMVA Register'!M$24:M$25)*(MONTH($A86)-1)/12)*$C86 -> 0 | N86: =SUM(D86:M86) -> 19.78941712
A87: 2014-06-01 | B87: Q2 | C87: =H$25/12 -> 0.001225 | D87: =(SUM('3.0 LRAMVA Register'!D$12:D$22)+SUM('3.0 LRAMVA Register'!D$24:D$25)*(MONTH($A87)-1)/12)*$C87 -> -2.27890726 | E87: =(SUM('3.0 LRAMVA Register'!E$12:E$22)+SUM('3.0 LRAMVA Register'!E$24:E$25)*(MONTH($A87)-1)/12)*$C87 -> 8.034132032 | F87: =(SUM('3.0 LRAMVA Register'!F$12:F$22)+SUM('3.0 LRAMVA Register'!F$24:F$25)*(MONTH($A87)-1)/12)*$C87 -> 15.3180977 | G87: =(SUM('3.0 LRAMVA Register'!G$12:G$22)+SUM('3.0 LRAMVA Register'!G$24:G$25)*(MONTH($A87)-1)/12)*$C87 -> 0 | H87: =(SUM('3.0 LRAMVA Register'!H$12:H$22)+SUM('3.0 LRAMVA Register'!H$24:H$25)*(MONTH($A87)-1)/12)*$C87 -> 0 | I87: =(SUM('3.0 LRAMVA Register'!I$12:I$22)+SUM('3.0 LRAMVA Register'!I$24:I$25)*(MONTH($A87)-1)/12)*$C87 -> 0 | J87: =(SUM('3.0 LRAMVA Register'!J$12:J$22)+SUM('3.0 LRAMVA Register'!J$24:J$25)*(MONTH($A87)-1)/12)*$C87 -> 0 | K87: =(SUM('3.0 LRAMVA Register'!K$12:K$22)+SUM('3.0 LRAMVA Register'!K$24:K$25)*(MONTH($A87)-1)/12)*$C87 -> 0 | L87: =(SUM('3.0 LRAMVA Register'!L$12:L$22)+SUM('3.0 LRAMVA Register'!L$24:L$25)*(MONTH($A87)-1)/12)*$C87 -> 0 | M87: =(SUM('3.0 LRAMVA Register'!M$12:M$22)+SUM('3.0 LRAMVA Register'!M$24:M$25)*(MONTH($A87)-1)/12)*$C87 -> 0 | N87: 21.07332247
A88: 2014-07-01 | B88: Q3 | C88: =H$26/12 -> 0.001225 | D88: =(SUM('3.0 LRAMVA Register'!D$12:D$22)+SUM('3.0 LRAMVA Register'!D$24:D$25)*(MONTH($A88)-1)/12)*$C88 -> -1.953477996 | E88: =(SUM('3.0 LRAMVA Register'!E$12:E$22)+SUM('3.0 LRAMVA Register'!E$24:E$25)*(MONTH($A88)-1)/12)*$C88 -> 8.488679759 | F88: =(SUM('3.0 LRAMVA Register'!F$12:F$22)+SUM('3.0 LRAMVA Register'!F$24:F$25)*(MONTH($A88)-1)/12)*$C88 -> 15.82202606 | G88: =(SUM('3.0 LRAMVA Register'!G$12:G$22)+SUM('3.0 LRAMVA Register'!G$24:G$25)*(MONTH($A88)-1)/12)*$C88 -> 0 | H88: =(SUM('3.0 LRAMVA Register'!H$12:H$22)+SUM('3.0 LRAMVA Register'!H$24:H$25)*(MONTH($A88)-1)/12)*$C88 -> 0 | I88: =(SUM('3.0 LRAMVA Register'!I$12:I$22)+SUM('3.0 LRAMVA Register'!I$24:I$25)*(MONTH($A88)-1)/12)*$C88 -> 0 | J88: =(SUM('3.0 LRAMVA Register'!J$12:J$22)+SUM('3.0 LRAMVA Register'!J$24:J$25)*(MONTH($A88)-1)/12)*$C88 -> 0 | K88: =(SUM('3.0 LRAMVA Register'!K$12:K$22)+SUM('3.0 LRAMVA Register'!K$24:K$25)*(MONTH($A88)-1)/12)*$C88 -> 0 | L88: =(SUM('3.0 LRAMVA Register'!L$12:L$22)+SUM('3.0 LRAMVA Register'!L$24:L$25)*(MONTH($A88)-1)/12)*$C88 -> 0 | M88: =(SUM('3.0 LRAMVA Register'!M$12:M$22)+SUM('3.0 LRAMVA Register'!M$24:M$25)*(MONTH($A88)-1)/12)*$C88 -> 0 | N88: 22.35722782
A89: 2014-08-01 | B89: Q3 | C89: =H$26/12 -> 0.001225 | D89: =(SUM('3.0 LRAMVA Register'!D$12:D$22)+SUM('3.0 LRAMVA Register'!D$24:D$25)*(MONTH($A89)-1)/12)*$C89 -> -1.628048732 | E89: =(SUM('3.0 LRAMVA Register'!E$12:E$22)+SUM('3.0 LRAMVA Register'!E$24:E$25)*(MONTH($A89)-1)/12)*$C89 -> 8.943227486 | F89: =(SUM('3.0 LRAMVA Register'!F$12:F$22)+SUM('3.0 LRAMVA Register'!F$24:F$25)*(MONTH($A89)-1)/12)*$C89 -> 16.32595442 | G89: =(SUM('3.0 LRAMVA Register'!G$12:G$22)+SUM('3.0 LRAMVA Register'!G$24:G$25)*(MONTH($A89)-1)/12)*$C89 -> 0 | H89: =(SUM('3.0 LRAMVA Register'!H$12:H$22)+SUM('3.0 LRAMVA Register'!H$24:H$25)*(MONTH($A89)-1)/12)*$C89 -> 0 | I89: =(SUM('3.0 LRAMVA Register'!I$12:I$22)+SUM('3.0 LRAMVA Register'!I$24:I$25)*(MONTH($A89)-1)/12)*$C89 -> 0 | J89: =(SUM('3.0 LRAMVA Register'!J$12:J$22)+SUM('3.0 LRAMVA Register'!J$24:J$25)*(MONTH($A89)-1)/12)*$C89 -> 0 | K89: =(SUM('3.0 LRAMVA Register'!K$12:K$22)+SUM('3.0 LRAMVA Register'!K$24:K$25)*(MONTH($A89)-1)/12)*$C89 -> 0 | L89: =(SUM('3.0 LRAMVA Register'!L$12:L$22)+SUM('3.0 LRAMVA Register'!L$24:L$25)*(MONTH($A89)-1)/12)*$C89 -> 0 | M89: =(SUM('3.0 LRAMVA Register'!M$12:M$22)+SUM('3.0 LRAMVA Register'!M$24:M$25)*(MONTH($A89)-1)/12)*$C89 -> 0 | N89: 23.64113317
A90: 2014-09-01 | B90: Q3 | C90: =H$26/12 -> 0.001225 | D90: =(SUM('3.0 LRAMVA Register'!D$12:D$22)+SUM('3.0 LRAMVA Register'!D$24:D$25)*(MONTH($A90)-1)/12)*$C90 -> -1.302619468 | E90: =(SUM('3.0 LRAMVA Register'!E$12:E$22)+SUM('3.0 LRAMVA Register'!E$24:E$25)*(MONTH($A90)-1)/12)*$C90 -> 9.397775213 | F90: =(SUM('3.0 LRAMVA Register'!F$12:F$22)+SUM('3.0 LRAMVA Register'!F$24:F$25)*(MONTH($A90)-1)/12)*$C90 -> 16.82988278 | G90: =(SUM('3.0 LRAMVA Register'!G$12:G$22)+SUM('3.0 LRAMVA Register'!G$24:G$25)*(MONTH($A90)-1)/12)*$C90 -> 0 | H90: =(SUM('3.0 LRAMVA Register'!H$12:H$22)+SUM('3.0 LRAMVA Register'!H$24:H$25)*(MONTH($A90)-1)/12)*$C90 -> 0 | I90: =(SUM('3.0 LRAMVA Register'!I$12:I$22)+SUM('3.0 LRAMVA Register'!I$24:I$25)*(MONTH($A90)-1)/12)*$C90 -> 0 | J90: =(SUM('3.0 LRAMVA Register'!J$12:J$22)+SUM('3.0 LRAMVA Register'!J$24:J$25)*(MONTH($A90)-1)/12)*$C90 -> 0 | K90: =(SUM('3.0 LRAMVA Register'!K$12:K$22)+SUM('3.0 LRAMVA Register'!K$24:K$25)*(MONTH($A90)-1)/12)*$C90 -> 0 | L90: =(SUM('3.0 LRAMVA Register'!L$12:L$22)+SUM('3.0 LRAMVA Register'!L$24:L$25)*(MONTH($A90)-1)/12)*$C90 -> 0 | M90: =(SUM('3.0 LRAMVA Register'!M$12:M$22)+SUM('3.0 LRAMVA Register'!M$24:M$25)*(MONTH($A90)-1)/12)*$C90 -> 0 | N90: 24.92503852
A91: 2014-10-01 | B91: Q4 | C91: =H$27/12 -> 0.001225 | D91: =(SUM('3.0 LRAMVA Register'!D$12:D$22)+SUM('3.0 LRAMVA Register'!D$24:D$25)*(MONTH($A91)-1)/12)*$C91 -> -0.9771902047 | E91: =(SUM('3.0 LRAMVA Register'!E$12:E$22)+SUM('3.0 LRAMVA Register'!E$24:E$25)*(MONTH($A91)-1)/12)*$C91 -> 9.85232294 | F91: =(SUM('3.0 LRAMVA Register'!F$12:F$22)+SUM('3.0 LRAMVA Register'!F$24:F$25)*(MONTH($A91)-1)/12)*$C91 -> 17.33381114 | G91: =(SUM('3.0 LRAMVA Register'!G$12:G$22)+SUM('3.0 LRAMVA Register'!G$24:G$25)*(MONTH($A91)-1)/12)*$C91 -> 0 | H91: =(SUM('3.0 LRAMVA Register'!H$12:H$22)+SUM('3.0 LRAMVA Register'!H$24:H$25)*(MONTH($A91)-1)/12)*$C91 -> 0 | I91: =(SUM('3.0 LRAMVA Register'!I$12:I$22)+SUM('3.0 LRAMVA Register'!I$24:I$25)*(MONTH($A91)-1)/12)*$C91 -> 0 | J91: =(SUM('3.0 LRAMVA Register'!J$12:J$22)+SUM('3.0 LRAMVA Register'!J$24:J$25)*(MONTH($A91)-1)/12)*$C91 -> 0 | K91: =(SUM('3.0 LRAMVA Register'!K$12:K$22)+SUM('3.0 LRAMVA Register'!K$24:K$25)*(MONTH($A91)-1)/12)*$C91 -> 0 | L91: =(SUM('3.0 LRAMVA Register'!L$12:L$22)+SUM('3.0 LRAMVA Register'!L$24:L$25)*(MONTH($A91)-1)/12)*$C91 -> 0 | M91: =(SUM('3.0 LRAMVA Register'!M$12:M$22)+SUM('3.0 LRAMVA Register'!M$24:M$25)*(MONTH($A91)-1)/12)*$C91 -> 0 | N91: 26.20894387
A92: 2014-11-01 | B92: Q4 | C92: =H$27/12 -> 0.001225 | D92: =(SUM('3.0 LRAMVA Register'!D$12:D$22)+SUM('3.0 LRAMVA Register'!D$24:D$25)*(MONTH($A92)-1)/12)*$C92 -> -0.6517609409 | E92: =(SUM('3.0 LRAMVA Register'!E$12:E$22)+SUM('3.0 LRAMVA Register'!E$24:E$25)*(MONTH($A92)-1)/12)*$C92 -> 10.30687067 | F92: =(SUM('3.0 LRAMVA Register'!F$12:F$22)+SUM('3.0 LRAMVA Register'!F$24:F$25)*(MONTH($A92)-1)/12)*$C92 -> 17.8377395 | G92: =(SUM('3.0 LRAMVA Register'!G$12:G$22)+SUM('3.0 LRAMVA Register'!G$24:G$25)*(MONTH($A92)-1)/12)*$C92 -> 0 | H92: =(SUM('3.0 LRAMVA Register'!H$12:H$22)+SUM('3.0 LRAMVA Register'!H$24:H$25)*(MONTH($A92)-1)/12)*$C92 -> 0 | I92: =(SUM('3.0 LRAMVA Register'!I$12:I$22)+SUM('3.0 LRAMVA Register'!I$24:I$25)*(MONTH($A92)-1)/12)*$C92 -> 0 | J92: =(SUM('3.0 LRAMVA Register'!J$12:J$22)+SUM('3.0 LRAMVA Register'!J$24:J$25)*(MONTH($A92)-1)/12)*$C92 -> 0 | K92: =(SUM('3.0 LRAMVA Register'!K$12:K$22)+SUM('3.0 LRAMVA Register'!K$24:K$25)*(MONTH($A92)-1)/12)*$C92 -> 0 | L92: =(SUM('3.0 LRAMVA Register'!L$12:L$22)+SUM('3.0 LRAMVA Register'!L$24:L$25)*(MONTH($A92)-1)/12)*$C92 -> 0 | M92: =(SUM('3.0 LRAMVA Register'!M$12:M$22)+SUM('3.0 LRAMVA Register'!M$24:M$25)*(MONTH($A92)-1)/12)*$C92 -> 0 | N92: 27.49284922
A93: 2014-12-01 | B93: Q4 | C93: =H$27/12 -> 0.001225 | D93: =(SUM('3.0 LRAMVA Register'!D$12:D$22)+SUM('3.0 LRAMVA Register'!D$24:D$25)*(MONTH($A93)-1)/12)*$C93 -> -0.3263316772 | E93: =(SUM('3.0 LRAMVA Register'!E$12:E$22)+SUM('3.0 LRAMVA Register'!E$24:E$25)*(MONTH($A93)-1)/12)*$C93 -> 10.76141839 | F93: =(SUM('3.0 LRAMVA Register'!F$12:F$22)+SUM('3.0 LRAMVA Register'!F$24:F$25)*(MONTH($A93)-1)/12)*$C93 -> 18.34166786 | G93: =(SUM('3.0 LRAMVA Register'!G$12:G$22)+SUM('3.0 LRAMVA Register'!G$24:G$25)*(MONTH($A93)-1)/12)*$C93 -> 0 | H93: =(SUM('3.0 LRAMVA Register'!H$12:H$22)+SUM('3.0 LRAMVA Register'!H$24:H$25)*(MONTH($A93)-1)/12)*$C93 -> 0 | I93: =(SUM('3.0 LRAMVA Register'!I$12:I$22)+SUM('3.0 LRAMVA Register'!I$24:I$25)*(MONTH($A93)-1)/12)*$C93 -> 0 | J93: =(SUM('3.0 LRAMVA Register'!J$12:J$22)+SUM('3.0 LRAMVA Register'!J$24:J$25)*(MONTH($A93)-1)/12)*$C93 -> 0 | K93: =(SUM('3.0 LRAMVA Register'!K$12:K$22)+SUM('3.0 LRAMVA Register'!K$24:K$25)*(MONTH($A93)-1)/12)*$C93 -> 0 | L93: =(SUM('3.0 LRAMVA Register'!L$12:L$22)+SUM('3.0 LRAMVA Register'!L$24:L$25)*(MONTH($A93)-1)/12)*$C93 -> 0 | M93: =(SUM('3.0 LRAMVA Register'!M$12:M$22)+SUM('3.0 LRAMVA Register'!M$24:M$25)*(MONTH($A93)-1)/12)*$C93 -> 0 | N93: 28.77675457
A94: 2015-01-01 | B94: Q1 | C94: =H$28/12 -> 0.001225 | D94: =(SUM('3.0 LRAMVA Register'!D$12:D$25)+SUM('3.0 LRAMVA Register'!D$28:D$29)*(MONTH($A94)-1)/12)*$C94 -> -0.0009024134 | E94: =(SUM('3.0 LRAMVA Register'!E$12:E$25)+SUM('3.0 LRAMVA Register'!E$28:E$29)*(MONTH($A94)-1)/12)*$C94 -> 11.21596612 | F94: =(SUM('3.0 LRAMVA Register'!F$12:F$25)+SUM('3.0 LRAMVA Register'!F$28:F$29)*(MONTH($A94)-1)/12)*$C94 -> 18.84559622 | G94: =SUM('3.0 LRAMVA Register'!G$12:G$25)*$C94 -> 0 | H94: =SUM('3.0 LRAMVA Register'!H$12:H$25)*$C94 -> 0 | I94: =SUM('3.0 LRAMVA Register'!I$12:I$25)*$C94 -> 0 | J94: =SUM('3.0 LRAMVA Register'!J$12:J$25)*$C94 -> 0 | K94: =SUM('3.0 LRAMVA Register'!K$12:K$25)*$C94 -> 0 | L94: =SUM('3.0 LRAMVA Register'!L$12:L$25)*$C94 -> 0 | M94: =SUM('3.0 LRAMVA Register'!M$12:M$25)*$C94 -> 0 | N94: 30.06065993
A95: 2015-02-01 | B95: Q1 | C95: =H$28/12 -> 0.001225 | D95: =(SUM('3.0 LRAMVA Register'!D$12:D$25)+SUM('3.0 LRAMVA Register'!D$28:D$29)*(MONTH($A95)-1)/12)*$C95 -> 0.2527937334 | E95: =(SUM('3.0 LRAMVA Register'!E$12:E$25)+SUM('3.0 LRAMVA Register'!E$28:E$29)*(MONTH($A95)-1)/12)*$C95 -> 11.62808647 | F95: =(SUM('3.0 LRAMVA Register'!F$12:F$25)+SUM('3.0 LRAMVA Register'!F$28:F$29)*(MONTH($A95)-1)/12)*$C95 -> 19.18903709 | G95: =SUM('3.0 LRAMVA Register'!G$12:G$25)*$C95 -> 0 | H95: =SUM('3.0 LRAMVA Register'!H$12:H$25)*$C95 -> 0 | I95: =SUM('3.0 LRAMVA Register'!I$12:I$25)*$C95 -> 0 | J95: =SUM('3.0 LRAMVA Register'!J$12:J$25)*$C95 -> 0 | K95: =SUM('3.0 LRAMVA Register'!K$12:K$25)*$C95 -> 0 | L95: =SUM('3.0 LRAMVA Register'!L$12:L$25)*$C95 -> 0 | M95: =SUM('3.0 LRAMVA Register'!M$12:M$25)*$C95 -> 0 | N95: 31.06991729
A96: 2015-03-01 | B96: Q1 | C96: =H$28/12 -> 0.001225 | D96: =(SUM('3.0 LRAMVA Register'!D$12:D$25)+SUM('3.0 LRAMVA Register'!D$28:D$29)*(MONTH($A96)-1)/12)*$C96 -> 0.5064898802 | E96: =(SUM('3.0 LRAMVA Register'!E$12:E$25)+SUM('3.0 LRAMVA Register'!E$28:E$29)*(MONTH($A96)-1)/12)*$C96 -> 12.04020681 | F96: =(SUM('3.0 LRAMVA Register'!F$12:F$25)+SUM('3.0 LRAMVA Register'!F$28:F$29)*(MONTH($A96)-1)/12)*$C96 -> 19.53247795 | G96: =SUM('3.0 LRAMVA Register'!G$12:G$25)*$C96 -> 0 | H96: =SUM('3.0 LRAMVA Register'!H$12:H$25)*$C96 -> 0 | I96: =SUM('3.0 LRAMVA Register'!I$12:I$25)*$C96 -> 0 | J96: =SUM('3.0 LRAMVA Register'!J$12:J$25)*$C96 -> 0 | K96: =SUM('3.0 LRAMVA Register'!K$12:K$25)*$C96 -> 0 | L96: =SUM('3.0 LRAMVA Register'!L$12:L$25)*$C96 -> 0 | M96: =SUM('3.0 LRAMVA Register'!M$12:M$25)*$C96 -> 0 | N96: 32.07917465
A97: 2015-04-01 | B97: Q2 | C97: =H$29/12 -> 0.0009166666667 | D97: =(SUM('3.0 LRAMVA Register'!D$12:D$25)+SUM('3.0 LRAMVA Register'!D$28:D$29)*(MONTH($A97)-1)/12)*$C97 -> 0.5688466869 | E97: =(SUM('3.0 LRAMVA Register'!E$12:E$25)+SUM('3.0 LRAMVA Register'!E$28:E$29)*(MONTH($A97)-1)/12)*$C97 -> 9.318067944 | F97: =(SUM('3.0 LRAMVA Register'!F$12:F$25)+SUM('3.0 LRAMVA Register'!F$28:F$29)*(MONTH($A97)-1)/12)*$C97 -> 14.87313653 | G97: =SUM('3.0 LRAMVA Register'!G$12:G$25)*$C97 -> 0 | H97: =SUM('3.0 LRAMVA Register'!H$12:H$25)*$C97 -> 0 | I97: =SUM('3.0 LRAMVA Register'!I$12:I$25)*$C97 -> 0 | J97: =SUM('3.0 LRAMVA Register'!J$12:J$25)*$C97 -> 0 | K97: =SUM('3.0 LRAMVA Register'!K$12:K$25)*$C97 -> 0 | L97: =SUM('3.0 LRAMVA Register'!L$12:L$25)*$C97 -> 0 | M97: =SUM('3.0 LRAMVA Register'!M$12:M$25)*$C97 -> 0 | N97: 24.76005117
A98: Total for rate year 2014 | D98: =SUM(D85:D97) -> -24.4521503 | E98: =SUM(E85:E97) -> 237.2854617 | F98: =SUM(F85:F97) -> 439.9433358 | G98: =SUM(G85:G97) -> 0 | H98: =SUM(H85:H97) -> 0 | I98: =SUM(I85:I97) -> 0 | J98: =SUM(J85:J97) -> 0 | K98: 0 | L98: 0 | M98: 0 | N98: =SUM(N85:N97) -> 652.7766472
A100: Opening Balance for rate year 2015 | D100: =D98+D99 -> -24.4521503 | E100: =E98+E99 -> 237.2854617 | F100: 439.9433358 | G100: 0 | H100: 0 | I100: 0 | J100: 0 | K100: 0 | L100: 0 | M100: 0 | N100: =N98+N99 -> 652.7766472
A101: 2015-05-01 | B101: Q2 | C101: =H$29/12 -> 0.0009166666667 | D101: =(SUM('3.0 LRAMVA Register'!D$12:D$25)+SUM('3.0 LRAMVA Register'!D$28:D$29)*(MONTH($A101)-1)/12)*$C101 -> 0.758687341 | E101: =(SUM('3.0 LRAMVA Register'!E$12:E$25)+SUM('3.0 LRAMVA Register'!E$28:E$29)*(MONTH($A101)-1)/12)*$C101 -> 9.62645732 | F101: =(SUM('3.0 LRAMVA Register'!F$12:F$25)+SUM('3.0 LRAMVA Register'!F$28:F$29)*(MONTH($A101)-1)/12)*$C101 -> 15.1301331 | G101: =(SUM('3.0 LRAMVA Register'!G$12:G$22)+SUM('3.0 LRAMVA Register'!G$24:G$25)*(MONTH($A101)-1)/12)*$C101 -> 0 | H101: =(SUM('3.0 LRAMVA Register'!H$12:H$22)+SUM('3.0 LRAMVA Register'!H$24:H$25)*(MONTH($A101)-1)/12)*$C101 -> 0 | I101: =(SUM('3.0 LRAMVA Register'!I$12:I$22)+SUM('3.0 LRAMVA Register'!I$24:I$25)*(MONTH($A101)-1)/12)*$C101 -> 0 | J101: =(SUM('3.0 LRAMVA Register'!J$12:J$22)+SUM('3.0 LRAMVA Register'!J$24:J$25)*(MONTH($A101)-1)/12)*$C101 -> 0 | K101: =(SUM('3.0 LRAMVA Register'!K$12:K$22)+SUM('3.0 LRAMVA Register'!K$24:K$25)*(MONTH($A101)-1)/12)*$C101 -> 0 | L101: =(SUM('3.0 LRAMVA Register'!L$12:L$22)+SUM('3.0 LRAMVA Register'!L$24:L$25)*(MONTH($A101)-1)/12)*$C101 -> 0 | M101: =(SUM('3.0 LRAMVA Register'!M$12:M$22)+SUM('3.0 LRAMVA Register'!M$24:M$25)*(MONTH($A101)-1)/12)*$C101 -> 0 | N101: =SUM(D101:M101) -> 25.51527776
A102: 2015-06-01 | B102: Q2 | C102: =H$29/12 -> 0.0009166666667 | D102: =(SUM('3.0 LRAMVA Register'!D$12:D$25)+SUM('3.0 LRAMVA Register'!D$28:D$29)*(MONTH($A102)-1)/12)*$C102 -> 0.9485279951 | E102: =(SUM('3.0 LRAMVA Register'!E$12:E$25)+SUM('3.0 LRAMVA Register'!E$28:E$29)*(MONTH($A102)-1)/12)*$C102 -> 9.934846695 | F102: =(SUM('3.0 LRAMVA Register'!F$12:F$25)+SUM('3.0 LRAMVA Register'!F$28:F$29)*(MONTH($A102)-1)/12)*$C102 -> 15.38712967 | G102: =(SUM('3.0 LRAMVA Register'!G$12:G$22)+SUM('3.0 LRAMVA Register'!G$24:G$25)*(MONTH($A102)-1)/12)*$C102 -> 0 | H102: =(SUM('3.0 LRAMVA Register'!H$12:H$22)+SUM('3.0 LRAMVA Register'!H$24:H$25)*(MONTH($A102)-1)/12)*$C102 -> 0 | I102: =(SUM('3.0 LRAMVA Register'!I$12:I$22)+SUM('3.0 LRAMVA Register'!I$24:I$25)*(MONTH($A102)-1)/12)*$C102 -> 0 | J102: =(SUM('3.0 LRAMVA Register'!J$12:J$22)+SUM('3.0 LRAMVA Register'!J$24:J$25)*(MONTH($A102)-1)/12)*$C102 -> 0 | K102: =(SUM('3.0 LRAMVA Register'!K$12:K$22)+SUM('3.0 LRAMVA Register'!K$24:K$25)*(MONTH($A102)-1)/12)*$C102 -> 0 | L102: =(SUM('3.0 LRAMVA Register'!L$12:L$22)+SUM('3.0 LRAMVA Register'!L$24:L$25)*(MONTH($A102)-1)/12)*$C102 -> 0 | M102: =(SUM('3.0 LRAMVA Register'!M$12:M$22)+SUM('3.0 LRAMVA Register'!M$24:M$25)*(MONTH($A102)-1)/12)*$C102 -> 0 | N102: 26.27050436
A103: 2015-07-01 | B103: Q3 | C103: 0.0009166666667 | D103: =(SUM('3.0 LRAMVA Register'!D$12:D$25)+SUM('3.0 LRAMVA Register'!D$28:D$29)*(MONTH($A103)-1)/12)*$C103 -> 1.138368649 | E103: =(SUM('3.0 LRAMVA Register'!E$12:E$25)+SUM('3.0 LRAMVA Register'!E$28:E$29)*(MONTH($A103)-1)/12)*$C103 -> 10.24323607 | F103: =(SUM('3.0 LRAMVA Register'!F$12:F$25)+SUM('3.0 LRAMVA Register'!F$28:F$29)*(MONTH($A103)-1)/12)*$C103 -> 15.64412624 | G103: =(SUM('3.0 LRAMVA Register'!G$12:G$22)+SUM('3.0 LRAMVA Register'!G$24:G$25)*(MONTH($A103)-1)/12)*$C103 -> 0 | H103: =(SUM('3.0 LRAMVA Register'!H$12:H$22)+SUM('3.0 LRAMVA Register'!H$24:H$25)*(MONTH($A103)-1)/12)*$C103 -> 0 | I103: =(SUM('3.0 LRAMVA Register'!I$12:I$22)+SUM('3.0 LRAMVA Register'!I$24:I$25)*(MONTH($A103)-1)/12)*$C103 -> 0 | J103: =(SUM('3.0 LRAMVA Register'!J$12:J$22)+SUM('3.0 LRAMVA Register'!J$24:J$25)*(MONTH($A103)-1)/12)*$C103 -> 0 | K103: =(SUM('3.0 LRAMVA Register'!K$12:K$22)+SUM('3.0 LRAMVA Register'!K$24:K$25)*(MONTH($A103)-1)/12)*$C103 -> 0 | L103: =(SUM('3.0 LRAMVA Register'!L$12:L$22)+SUM('3.0 LRAMVA Register'!L$24:L$25)*(MONTH($A103)-1)/12)*$C103 -> 0 | M103: =(SUM('3.0 LRAMVA Register'!M$12:M$22)+SUM('3.0 LRAMVA Register'!M$24:M$25)*(MONTH($A103)-1)/12)*$C103 -> 0 | N103: 27.02573096
A104: 2015-08-01 | B104: Q3 | C104: 0.0009166666667 | D104: =(SUM('3.0 LRAMVA Register'!D$12:D$25)+SUM('3.0 LRAMVA Register'!D$28:D$29)*(MONTH($A104)-1)/12)*$C104 -> 1.328209303 | E104: =(SUM('3.0 LRAMVA Register'!E$12:E$25)+SUM('3.0 LRAMVA Register'!E$28:E$29)*(MONTH($A104)-1)/12)*$C104 -> 10.55162545 | F104: =(SUM('3.0 LRAMVA Register'!F$12:F$25)+SUM('3.0 LRAMVA Register'!F$28:F$29)*(MONTH($A104)-1)/12)*$C104 -> 15.90112281 | G104: =(SUM('3.0 LRAMVA Register'!G$12:G$22)+SUM('3.0 LRAMVA Register'!G$24:G$25)*(MONTH($A104)-1)/12)*$C104 -> 0 | H104: =(SUM('3.0 LRAMVA Register'!H$12:H$22)+SUM('3.0 LRAMVA Register'!H$24:H$25)*(MONTH($A104)-1)/12)*$C104 -> 0 | I104: =(SUM('3.0 LRAMVA Register'!I$12:I$22)+SUM('3.0 LRAMVA Register'!I$24:I$25)*(MONTH($A104)-1)/12)*$C104 -> 0 | J104: =(SUM('3.0 LRAMVA Register'!J$12:J$22)+SUM('3.0 LRAMVA Register'!J$24:J$25)*(MONTH($A104)-1)/12)*$C104 -> 0 | K104: =(SUM('3.0 LRAMVA Register'!K$12:K$22)+SUM('3.0 LRAMVA Register'!K$24:K$25)*(MONTH($A104)-1)/12)*$C104 -> 0 | L104: =(SUM('3.0 LRAMVA Register'!L$12:L$22)+SUM('3.0 LRAMVA Register'!L$24:L$25)*(MONTH($A104)-1)/12)*$C104 -> 0 | M104: =(SUM('3.0 LRAMVA Register'!M$12:M$22)+SUM('3.0 LRAMVA Register'!M$24:M$25)*(MONTH($A104)-1)/12)*$C104 -> 0 | N104: 27.78095756
A105: 2015-09-01 | B105: Q3 | C105: 0.0009166666667 | D105: =(SUM('3.0 LRAMVA Register'!D$12:D$25)+SUM('3.0 LRAMVA Register'!D$28:D$29)*(MONTH($A105)-1)/12)*$C105 -> 1.518049957 | E105: =(SUM('3.0 LRAMVA Register'!E$12:E$25)+SUM('3.0 LRAMVA Register'!E$28:E$29)*(MONTH($A105)-1)/12)*$C105 -> 10.86001482 | F105: =(SUM('3.0 LRAMVA Register'!F$12:F$25)+SUM('3.0 LRAMVA Register'!F$28:F$29)*(MONTH($A105)-1)/12)*$C105 -> 16.15811937 | G105: =(SUM('3.0 LRAMVA Register'!G$12:G$22)+SUM('3.0 LRAMVA Register'!G$24:G$25)*(MONTH($A105)-1)/12)*$C105 -> 0 | H105: =(SUM('3.0 LRAMVA Register'!H$12:H$22)+SUM('3.0 LRAMVA Register'!H$24:H$25)*(MONTH($A105)-1)/12)*$C105 -> 0 | I105: =(SUM('3.0 LRAMVA Register'!I$12:I$22)+SUM('3.0 LRAMVA Register'!I$24:I$25)*(MONTH($A105)-1)/12)*$C105 -> 0 | J105: =(SUM('3.0 LRAMVA Register'!J$12:J$22)+SUM('3.0 LRAMVA Register'!J$24:J$25)*(MONTH($A105)-1)/12)*$C105 -> 0 | K105: =(SUM('3.0 LRAMVA Register'!K$12:K$22)+SUM('3.0 LRAMVA Register'!K$24:K$25)*(MONTH($A105)-1)/12)*$C105 -> 0 | L105: =(SUM('3.0 LRAMVA Register'!L$12:L$22)+SUM('3.0 LRAMVA Register'!L$24:L$25)*(MONTH($A105)-1)/12)*$C105 -> 0 | M105: =(SUM('3.0 LRAMVA Register'!M$12:M$22)+SUM('3.0 LRAMVA Register'!M$24:M$25)*(MONTH($A105)-1)/12)*$C105 -> 0 | N105: 28.53618415
A106: 2015-10-01 | B106: Q4 | C106: 0.0009166666667 | D106: =(SUM('3.0 LRAMVA Register'!D$12:D$25)+SUM('3.0 LRAMVA Register'!D$28:D$29)*(MONTH($A106)-1)/12)*$C106 -> 1.707890611 | E106: =(SUM('3.0 LRAMVA Register'!E$12:E$25)+SUM('3.0 LRAMVA Register'!E$28:E$29)*(MONTH($A106)-1)/12)*$C106 -> 11.1684042 | F106: =(SUM('3.0 LRAMVA Register'!F$12:F$25)+SUM('3.0 LRAMVA Register'!F$28:F$29)*(MONTH($A106)-1)/12)*$C106 -> 16.41511594 | G106: =(SUM('3.0 LRAMVA Register'!G$12:G$22)+SUM('3.0 LRAMVA Register'!G$24:G$25)*(MONTH($A106)-1)/12)*$C106 -> 0 | H106: =(SUM('3.0 LRAMVA Register'!H$12:H$22)+SUM('3.0 LRAMVA Register'!H$24:H$25)*(MONTH($A106)-1)/12)*$C106 -> 0 | I106: =(SUM('3.0 LRAMVA Register'!I$12:I$22)+SUM('3.0 LRAMVA Register'!I$24:I$25)*(MONTH($A106)-1)/12)*$C106 -> 0 | J106: =(SUM('3.0 LRAMVA Register'!J$12:J$22)+SUM('3.0 LRAMVA Register'!J$24:J$25)*(MONTH($A106)-1)/12)*$C106 -> 0 | K106: =(SUM('3.0 LRAMVA Register'!K$12:K$22)+SUM('3.0 LRAMVA Register'!K$24:K$25)*(MONTH($A106)-1)/12)*$C106 -> 0 | L106: =(SUM('3.0 LRAMVA Register'!L$12:L$22)+SUM('3.0 LRAMVA Register'!L$24:L$25)*(MONTH($A106)-1)/12)*$C106 -> 0 | M106: =(SUM('3.0 LRAMVA Register'!M$12:M$22)+SUM('3.0 LRAMVA Register'!M$24:M$25)*(MONTH($A106)-1)/12)*$C106 -> 0 | N106: 29.29141075
A107: 2015-11-01 | B107: Q4 | C107: 0.0009166666667 | D107: =(SUM('3.0 LRAMVA Register'!D$12:D$25)+SUM('3.0 LRAMVA Register'!D$28:D$29)*(MONTH($A107)-1)/12)*$C107 -> 1.897731266 | E107: =(SUM('3.0 LRAMVA Register'!E$12:E$25)+SUM('3.0 LRAMVA Register'!E$28:E$29)*(MONTH($A107)-1)/12)*$C107 -> 11.47679357 | F107: =(SUM('3.0 LRAMVA Register'!F$12:F$25)+SUM('3.0 LRAMVA Register'!F$28:F$29)*(MONTH($A107)-1)/12)*$C107 -> 16.67211251 | G107: =(SUM('3.0 LRAMVA Register'!G$12:G$22)+SUM('3.0 LRAMVA Register'!G$24:G$25)*(MONTH($A107)-1)/12)*$C107 -> 0 | H107: =(SUM('3.0 LRAMVA Register'!H$12:H$22)+SUM('3.0 LRAMVA Register'!H$24:H$25)*(MONTH($A107)-1)/12)*$C107 -> 0 | I107: =(SUM('3.0 LRAMVA Register'!I$12:I$22)+SUM('3.0 LRAMVA Register'!I$24:I$25)*(MONTH($A107)-1)/12)*$C107 -> 0 | J107: =(SUM('3.0 LRAMVA Register'!J$12:J$22)+SUM('3.0 LRAMVA Register'!J$24:J$25)*(MONTH($A107)-1)/12)*$C107 -> 0 | K107: =(SUM('3.0 LRAMVA Register'!K$12:K$22)+SUM('3.0 LRAMVA Register'!K$24:K$25)*(MONTH($A107)-1)/12)*$C107 -> 0 | L107: =(SUM('3.0 LRAMVA Register'!L$12:L$22)+SUM('3.0 LRAMVA Register'!L$24:L$25)*(MONTH($A107)-1)/12)*$C107 -> 0 | M107: =(SUM('3.0 LRAMVA Register'!M$12:M$22)+SUM('3.0 LRAMVA Register'!M$24:M$25)*(MONTH($A107)-1)/12)*$C107 -> 0 | N107: 30.04663735
A108: 2015-12-01 | B108: Q4 | C108: 0.0009166666667 | D108: =(SUM('3.0 LRAMVA Register'!D$12:D$25)+SUM('3.0 LRAMVA Register'!D$28:D$29)*(MONTH($A108)-1)/12)*$C108 -> 2.08757192 | E108: =(SUM('3.0 LRAMVA Register'!E$12:E$25)+SUM('3.0 LRAMVA Register'!E$28:E$29)*(MONTH($A108)-1)/12)*$C108 -> 11.78518295 | F108: =(SUM('3.0 LRAMVA Register'!F$12:F$25)+SUM('3.0 LRAMVA Register'!F$28:F$29)*(MONTH($A108)-1)/12)*$C108 -> 16.92910908 | G108: =(SUM('3.0 LRAMVA Register'!G$12:G$22)+SUM('3.0 LRAMVA Register'!G$24:G$25)*(MONTH($A108)-1)/12)*$C108 -> 0 | H108: =(SUM('3.0 LRAMVA Register'!H$12:H$22)+SUM('3.0 LRAMVA Register'!H$24:H$25)*(MONTH($A108)-1)/12)*$C108 -> 0 | I108: =(SUM('3.0 LRAMVA Register'!I$12:I$22)+SUM('3.0 LRAMVA Register'!I$24:I$25)*(MONTH($A108)-1)/12)*$C108 -> 0 | J108: =(SUM('3.0 LRAMVA Register'!J$12:J$22)+SUM('3.0 LRAMVA Register'!J$24:J$25)*(MONTH($A108)-1)/12)*$C108 -> 0 | K108: =(SUM('3.0 LRAMVA Register'!K$12:K$22)+SUM('3.0 LRAMVA Register'!K$24:K$25)*(MONTH($A108)-1)/12)*$C108 -> 0 | L108: =(SUM('3.0 LRAMVA Register'!L$12:L$22)+SUM('3.0 LRAMVA Register'!L$24:L$25)*(MONTH($A108)-1)/12)*$C108 -> 0 | M108: =(SUM('3.0 LRAMVA Register'!M$12:M$22)+SUM('3.0 LRAMVA Register'!M$24:M$25)*(MONTH($A108)-1)/12)*$C108 -> 0 | N108: 30.80186395
A109: 2016-01-01 | B109: Q1 | C109: 0.0009166666667 | D109: =(SUM('3.0 LRAMVA Register'!D$12:D$29)*$C109) -> 2.277412574 | E109: =(SUM('3.0 LRAMVA Register'!E$12:E$29)*$C109) -> 12.09357232 | F109: =(SUM('3.0 LRAMVA Register'!F$12:F$29)*$C109) -> 17.18610565 | G109: =SUM('3.0 LRAMVA Register'!G$12:G$25)*$C109 -> 0 | H109: =SUM('3.0 LRAMVA Register'!H$12:H$25)*$C109 -> 0 | I109: =SUM('3.0 LRAMVA Register'!I$12:I$25)*$C109 -> 0 | J109: =SUM('3.0 LRAMVA Register'!J$12:J$25)*$C109 -> 0 | K109: =SUM('3.0 LRAMVA Register'!K$12:K$25)*$C109 -> 0 | L109: =SUM('3.0 LRAMVA Register'!L$12:L$25)*$C109 -> 0 | M109: =SUM('3.0 LRAMVA Register'!M$12:M$25)*$C109 -> 0 | N109: 31.55709054
A110: 2016-02-01 | B110: Q1 | C110: 0.0009166666667 | D110: =(SUM('3.0 LRAMVA Register'!D$12:D$29)*$C110) -> 2.277412574 | E110: =(SUM('3.0 LRAMVA Register'!E$12:E$29)*$C110) -> 12.09357232 | F110: =(SUM('3.0 LRAMVA Register'!F$12:F$29)*$C110) -> 17.18610565 | G110: =SUM('3.0 LRAMVA Register'!G$12:G$25)*$C110 -> 0 | H110: =SUM('3.0 LRAMVA Register'!H$12:H$25)*$C110 -> 0 | I110: =SUM('3.0 LRAMVA Register'!I$12:I$25)*$C110 -> 0 | J110: =SUM('3.0 LRAMVA Register'!J$12:J$25)*$C110 -> 0 | K110: =SUM('3.0 LRAMVA Register'!K$12:K$25)*$C110 -> 0 | L110: =SUM('3.0 LRAMVA Register'!L$12:L$25)*$C110 -> 0 | M110: =SUM('3.0 LRAMVA Register'!M$12:M$25)*$C110 -> 0 | N110: 31.55709054
A111: 2016-03-01 | B111: Q1 | C111: 0.0009166666667 | D111: =(SUM('3.0 LRAMVA Register'!D$12:D$29)*$C111) -> 2.277412574 | E111: =(SUM('3.0 LRAMVA Register'!E$12:E$29)*$C111) -> 12.09357232 | F111: =(SUM('3.0 LRAMVA Register'!F$12:F$29)*$C111) -> 17.18610565 | G111: =SUM('3.0 LRAMVA Register'!G$12:G$25)*$C111 -> 0 | H111: =SUM('3.0 LRAMVA Register'!H$12:H$25)*$C111 -> 0 | I111: =SUM('3.0 LRAMVA Register'!I$12:I$25)*$C111 -> 0 | J111: =SUM('3.0 LRAMVA Register'!J$12:J$25)*$C111 -> 0 | K111: =SUM('3.0 LRAMVA Register'!K$12:K$25)*$C111 -> 0 | L111: =SUM('3.0 LRAMVA Register'!L$12:L$25)*$C111 -> 0 | M111: =SUM('3.0 LRAMVA Register'!M$12:M$25)*$C111 -> 0 | N111: 31.55709054
A112: 2016-04-01 | B112: Q2 | C112: 0.0009166666667 | D112: =(SUM('3.0 LRAMVA Register'!D$12:D$29)*$C112) -> 2.277412574 | E112: =(SUM('3.0 LRAMVA Register'!E$12:E$29)*$C112) -> 12.09357232 | F112: =(SUM('3.0 LRAMVA Register'!F$12:F$29)*$C112) -> 17.18610565 | G112: =SUM('3.0 LRAMVA Register'!G$12:G$25)*$C112 -> 0 | H112: =SUM('3.0 LRAMVA Register'!H$12:H$25)*$C112 -> 0 | I112: =SUM('3.0 LRAMVA Register'!I$12:I$25)*$C112 -> 0 | J112: =SUM('3.0 LRAMVA Register'!J$12:J$25)*$C112 -> 0 | K112: =SUM('3.0 LRAMVA Register'!K$12:K$25)*$C112 -> 0 | L112: =SUM('3.0 LRAMVA Register'!L$12:L$25)*$C112 -> 0 | M112: =SUM('3.0 LRAMVA Register'!M$12:M$25)*$C112 -> 0 | N112: 31.55709054
A113: Amount Cleared | N113: =SUM(D113:M113) -> 0
A114: Opening Balance for rate year 2015 | D114: =SUM(D100:D113) -> -3.957462966 | E114: =SUM(E100:E113) -> 371.306312 | F114: =SUM(F100:F113) -> 636.9247271 | G114: =G98+G113 -> 0 | H114: 0 | I114: 0 | J114: 0 | K114: 0 | L114: 0 | M114: 0 | N114: =SUM(N100:N112) -> 1004.273576

Sheet 6.0 Rates
A1: LRAMVA Model version 1.0 © CHEC
A8: Table 6 - Distribution Rates
A10: Rate Class | B10: Billing Unit | C10: 2011 | D10: 2012 | E10: 2013 | F10: 2014 | G10: 2015 | H10: May 1, 2010 to Apr 30, 2011 | I10: May 1, 2011 to Apr 30, 2012 | J10: May 1, 2012 to November 30, 2013 | K10: December 1, 2012 to Apr 30, 2013 | L10: May 1, 2013 to Apr 30, 2014 | M10: May 1, 2014 to Apr 30, 2015 | N10: May 1, 2015 to Apr 30, 2016
A11: For "Calendar" rate year | I11: 2011 | J11: 2012 | K11: 2012 | L11: 2013 | M11: 2014 | N11: 2014
A12: Pro-ratio of Rates (months) - Period 1 | I12: 4 | J12: 4 | K12: 1 | L12: 4 | M12: 4 | N12: 4
A13: Pro-ratio of Rates (months) - Period 2 | I13: 8 | J13: 7 | K13: 0 | L13: 8 | M13: 8 | N13: 8
A15: ='4.0 Approved Load Forecast'!D21 -> Residential | B15: ='2.0 Customer Classes'!D13 -> kWh | C15: =SUM(H15*$I$12+I15*$I$13)/12 -> 0.0147 | D15: =SUM(I15*$J$12+J15*$J$13+$K$12*K15)/12 -> 0.01428333333 | E15: =SUM(K15*$L$12+L15*$L$13)/12 -> 0.01396666667 | F15: =SUM(L15*$M$12+M15*$M$13)/12 -> 0.01413333333 | G15: =SUM(M15*$M$12+N15*$M$13)/12 -> 0.01433333333 | H15: 0.0147 | I15: 0.0147 | J15: 0.0141 | K15: 0.0139 | L15: 0.014 | M15: 0.0142 | N15: 0.0144
A16: ='4.0 Approved Load Forecast'!E21 -> General Service < 50 kW | B16: ='2.0 Customer Classes'!D14 -> kWh | C16: =SUM(H16*$I$12+I16*$I$13)/12 -> 0.0138 | D16: =SUM(I16*$J$12+J16*$J$13+$K$12*K16)/12 -> 0.0134 | E16: =SUM(K16*$L$12+L16*$L$13)/12 -> 0.01326666667 | F16: =SUM(L16*$M$12+M16*$M$13)/12 -> 0.01343333333 | G16: 0.01363333333 | H16: 0.0138 | I16: 0.0138 | J16: 0.0132 | K16: 0.0132 | L16: 0.0133 | M16: 0.0135 | N16: 0.0137
A17: ='4.0 Approved Load Forecast'!F21 -> General Service > 50 to 4999 kW | B17: ='2.0 Customer Classes'!D15 -> kW | C17: 4.745633333 | D17: =SUM(I17*$J$12+J17*$J$13+$K$12*K17)/12 -> 4.607933333 | E17: 4.552833333 | F17: 4.611766667 | G17: 4.687066667 | H17: 4.7425 | I17: 4.7472 | J17: 4.5383 | K17: 4.5383 | L17: 4.5601 | M17: 4.6376 | N17: 4.7118
A18: ='4.0 Approved Load Forecast'!G21 -> Standy Power - Approved on an Interim Basis | B18: ='2.0 Customer Classes'!D16 -> kW | C18: 0 | D18: 0 | E18: 0 | F18: 0 | G18: 0
A19: ='4.0 Approved Load Forecast'!H21 -> Unmetered Scattered Load | B19: ='2.0 Customer Classes'!D17 -> kWh | C19: 0.0138 | D19: 0.01293333333 | E19: 0.0076 | F19: 0.007666666667 | G19: 0.007766666667 | H19: 0.0138 | I19: 0.0138 | J19: 0.0132 | K19: 0.0076 | L19: 0.0076 | M19: 0.0077 | N19: 0.0078
A20: ='4.0 Approved Load Forecast'!I21 -> Sentinel Lighting | B20: ='2.0 Customer Classes'!D18 -> kW | C20: 0 | D20: 0 | E20: 0 | F20: 0 | G20: 0
A21: ='4.0 Approved Load Forecast'!J21 -> Street Lighting | B21: ='2.0 Customer Classes'!D19 -> kW | C21: 0.1435666667 | D21: 0.1985666667 | E21: 0.8500333333 | F21: 0.8610666667 | G21: 0.8751666667 | H21: 0.1435 | I21: 0.1436 | J21: 0.1373 | K21: 0.8473 | L21: 0.8514 | M21: 0.8659 | N21: 0.8798
A22: ='4.0 Approved Load Forecast'!K21 -> other | B22: ='2.0 Customer Classes'!D20 -> 0
A23: ='4.0 Approved Load Forecast'!L21 -> other | B23: ='2.0 Customer Classes'!D21 -> 0
A24: ='4.0 Approved Load Forecast'!M21 -> other | B24: ='2.0 Customer Classes'!D22 -> 0 | C24: =IF((H24*4+I24*8)/12=0," ",(H24*4+I24*8)/12) ->  | D24: =IF((I24*4+K24*8)/12=0," ",(I24*4+K24*8)/12) ->  | E24: =IF((K24*4+L24*8)/12=0," ",(K24*4+L24*8)/12) ->  | F24: =IF((L24*4+M24*8)/12=0," ",(L24*4+M24*8)/12) -> 
A26: References:
A27: Decision & Orders relating to rates: | H27: EB-2009-0209 | I27: EB-2010-0143 | J27: EB-2011-0103 | K27: EB-2011-0103 | L27: EB-2012-0171 | M27: EB-2013-0175 | N27: EB-2014-0118

Sheet 7.0 2011LostRev
A1: LRAMVA Model version 1.0 © CHEC
B6: Table 7: Allocation of Program Savings Across Rate Classes
G7: 2011
A10: # | B10: Initiative | C10: Results Status | D10: Net Incremental Peak Demand Savings (kW) | E10: Net Incremental Energy Savings (kWh) | F10: Rate Allocation for LRAMVA
D11: 2011 kW Saved | E11: 2011 kWh Saved | F11: ='3.0 LRAMVA Register'!D11 -> Residential | G11: ='3.0 LRAMVA Register'!E11 -> General Service < 50 kW | H11: ='3.0 LRAMVA Register'!F11 -> General Service > 50 to 4999 kW | I11: ='3.0 LRAMVA Register'!G11 -> Standy Power - Approved on an Interim Basis | J11: ='3.0 LRAMVA Register'!H11 -> Unmetered Scattered Load | K11: ='3.0 LRAMVA Register'!I11 -> Sentinel Lighting | L11: ='3.0 LRAMVA Register'!J11 -> Street Lighting | M11: ='3.0 LRAMVA Register'!M11 -> other | N11: ='3.0 LRAMVA Register'!N11 -> Total
B12: Consumer Program
A13: 1 | B13: Appliance Retirement | C13: Verified | D13: 5.36 | E13: 39547.27 | F13: 1 | N13: =SUM(F13:M13) -> 1
A14: 2 | B14: Appliance Exchange | C14: Verified | D14: 0.85 | E14: 1075.616 | F14: 1 | N14: =SUM(F14:M14) -> 1
A15: 3 | B15: HVAC Incentives | C15: Verified | D15: 28.85 | E15: =53127.539-8027 -> 45100.539 | F15: 1 | N15: 1
A16: 4 | B16: Conservation Instant Coupon Booklet | C16: Verified | D16: 2.127 | E16: =34491.336+496 -> 34987.336 | F16: 1 | N16: 1
A17: 5 | B17: Bi-Annual Retailer Event | C17: Verified | D17: 3.025 | E17: =52875.173+3928 -> 56803.173 | F17: 1 | N17: 1
A20: 6 | B20: Retailer Co-op | C20: Verified | F20: 1 | N20: 1
A21: 7 | B21: Residential Demand Response | C21: Verified | F21: 1 | N21: 1
A22: 8 | B22: Residential New Construction | C22: Verified | F22: 1 | N22: 1
B23: Business Program
A24: 9 | B24: Retrofit | C24: Verified | D24: 0 | E24: 56159.126 | G24: 1 | H24: 0 | N24: =SUM(F24:M24) -> 1
A25: 10 | B25: Direct Install Lighting | C25: Verified | D25: 18.194 | E25: 51686.572 | G25: 1 | N25: 1
A26: 11 | B26: Building Commissioning | C26: Verified | N26: 0
A27: 12 | B27: New Construction | C27: Verified | N27: 0
A28: 13 | B28: Energy Audit | C28: Verified | N28: 0
A29: 14 | B29: Commercial Demand Response (part of residential program) | C29: Verified | N29: 0
A30: 15 | B30: Demand Response 3 | C30: Verified | D30: 67.504 | E30: 2635.551 | H30: 1 | N30: 1
B31: Industrial Program
A32: 16 | B32: Process & System Upgrades | C32: Verified | N32: =SUM(F32:M32) -> 0
A33: 17 | B33: Monitoring & Targeting | C33: Verified | N33: 0
A34: 18 | B34: Energy Manager | C34: Verified | N34: 0
A35: 19 | B35: Retrofit | C35: Verified | N35: 0
A36: 20 | B36: Demand Response 3 | C36: Verified | H36: 1 | N36: 1
B37: Home Assistance Program
A38: 21 | B38: Home Assistance Program | C38: Verified | F38: 1 | N38: =SUM(F38:M38) -> 1
B39: Pre-2011 Programs completed in 2011
A40: 22 | B40: Electricity Retrofit Incentive Program | C40: Verified | D40: 1 | E40: =1838.017+29113 -> 30951.017 | H40: 1 | N40: =SUM(F40:M40) -> 1
A41: 23 | B41: High Performance New Construction | C41: Verified | D41: 0.028 | E41: 141.624 | H41: 1 | N41: 1
A42: 24 | B42: Toronto Comprehensive | C42: Verified | N42: 0
A43: 25 | B43: Multifamily Energy Efficiency Rebates | C43: Verified | N43: 0
B44: Total kWh | D44: =SUM(D13:D22,D24:D29,D32:D35,D38,D40:D43) -> 59.434 | E44: =SUM(E13:E22,E24:E29,E32:E35,E38,E40:E43) -> 316452.273 | F44: =SUM(E13*F13,E14*F14,E15*F15,E16*F16,E17*F17,E20*F20,E21*F21,E22*F22,E38*F38) -> 177513.934 | G44: =SUM(E24*G24,E25*G25) -> 107845.698 | H44: =SUM($E$24*H24,$E$40*H40,$E$41*H41) -> 31092.641 | I44: =SUM($E$24*I24,$E$40*I40,$E$41*I41) -> 0 | J44: =SUM($E$24*J24,$E$40*J40,$E$41*J41) -> 0 | K44: 0 | L44: 0 | N44: =SUM(F44:M44) -> 316452.273
A45: 12 | B45: Total GS > 50 kW excluding Demand Response 3 | H45: =SUM($D$24*H24,$D$40*H40,$D$41*H41)*$A45 -> 12.336 | I45: =SUM($D$24*I24,$D$40*I40,$D$41*I41)*$A45 -> 0 | J45: 0 | K45: 0 | L45: 0 | N45: =SUM(F45:M45) -> 12.336
A46: 5 | B46: Demand Response Total (Scenario 1) | D46: =SUM(D30,D36) -> 67.504 | E46: =SUM(E30,E36) -> 2635.551 | H46: =SUM($D$30*H30,$D$36*H36)*$A46 -> 337.52 | I46: =SUM($D$30*I30,$D$36*I36)*$A46 -> 0 | J46: 0 | K46: 0 | L46: 0 | N46: =SUM(F46:M46) -> 337.52
B47: OPA-Contracted LDC Portfolio Total | D47: =SUM(D44:D46) -> 126.938 | E47: =SUM(E44:E46) -> 319087.824
B48: Rate | F48: ='6.0 Rates'!C15 -> 0.0147 | G48: ='6.0 Rates'!C16 -> 0.0138 | H48: ='6.0 Rates'!C17 -> 4.745633333 | I48: ='6.0 Rates'!C18 -> 0 | J48: ='6.0 Rates'!C19 -> 0.0138 | K48: ='6.0 Rates'!C20 -> 0 | L48: ='6.0 Rates'!C21 -> 0.1435666667
B49: Lost Revenue in 2011 | F49: =F44*F48 -> 2609.45483 | G49: =G44*G48 -> 1488.270632 | H49: =SUM(H45,H46)*H48 -> 1660.288295 | I49: =I45*I48 -> 0 | J49: 0 | K49: 0 | L49: 0 | N49: =SUM(F49:M49) -> 5758.013758
B50: 2011 Savings Persisting in 2012 | F50: =F44*'12.0 Persistence '!C44 -> 175702.5673 | G50: =G44*'12.0 Persistence '!C44 -> 106745.2317 | H50: =H45*'12.0 Persistence '!C25 -> 12.21012245 | I50: =I45*'12.0 Persistence '!C25 -> 0 | J50: =J45*'12.0 Persistence '!C25 -> 0 | K50: =K45*'12.0 Persistence '!C25 -> 0 | L50: =L45*'12.0 Persistence '!C44 -> 0
B51: 2011 Savings Persisting in 2013 | F51: =F44*'12.0 Persistence '!D44 -> 175702.5673 | G51: =G44*'12.0 Persistence '!D44 -> 106745.2317 | H51: =H45*'12.0 Persistence '!D25 -> 12.21012245 | I51: =I45*'12.0 Persistence '!D25 -> 0 | J51: =J45*'12.0 Persistence '!D25 -> 0 | K51: =K45*'12.0 Persistence '!D25 -> 0 | L51: =L45*'12.0 Persistence '!D44 -> 0
B52: 2011 Savings Persisting in 2014 | F52: =F44*'12.0 Persistence '!E44 -> 157588.9006 | G52: =G44*'12.0 Persistence '!E44 -> 95740.56863 | H52: =H45*'12.0 Persistence '!E25 -> 10.95134694 | I52: =I45*'12.0 Persistence '!E25 -> 0 | J52: =J45*'12.0 Persistence '!E25 -> 0 | K52: =K45*'12.0 Persistence '!E25 -> 0 | L52: =L45*'12.0 Persistence '!E44 -> 0
B54: Input program details, report status, kWh and kW net savings from OPA 2011 Final Annual Report Data - Table 5
B55: Input % allocation where applicable based on LDC information
B57: 2011 savings persisting - OPA 2011 Final Annual Report Data - Tables 6 and 7

Sheet 8.0 2012LostRev
A1: LRAMVA Model version 1.0 © CHEC
B6: Table 8: Allocation of Program Savings Across Rate Classes
G7: 2012
A10: # | B10: Initiative | C10: Results Status | D10: Net Incremental Peak Demand Savings (kW) | E10: Net Incremental Energy Savings (kWh) | F10: Rate Allocation for LRAMVA
D11: 2012 kW Saved | E11: 2012 kWh Saved | F11: ='3.0 LRAMVA Register'!D11 -> Residential | G11: ='3.0 LRAMVA Register'!E11 -> General Service < 50 kW | H11: ='3.0 LRAMVA Register'!F11 -> General Service > 50 to 4999 kW | I11: ='3.0 LRAMVA Register'!G11 -> Standy Power - Approved on an Interim Basis | J11: ='3.0 LRAMVA Register'!H11 -> Unmetered Scattered Load | K11: ='3.0 LRAMVA Register'!I11 -> Sentinel Lighting | L11: ='3.0 LRAMVA Register'!J11 -> Street Lighting | M11: ='3.0 LRAMVA Register'!M11 -> other | N11: ='3.0 LRAMVA Register'!N11 -> Total
B12: Consumer Program
A13: 1 | B13: Appliance Retirement | C13: Verified | D13: 2.064 | E13: 15566.909 | F13: 1 | N13: =SUM(F13:M13) -> 1
A14: 2 | B14: Appliance Exchange | C14: Verified | D14: 0.1 | E14: 174.495 | F14: 1 | N14: =SUM(F14:M14) -> 1
A15: 3 | B15: HVAC Incentives | C15: Verified | D15: 20.144 | E15: =35480.533+2342 -> 37822.533 | F15: 1 | N15: 1
A16: 4 | B16: Conservation Instant Coupon Booklet | C16: Verified | D16: 0.415 | E16: 2515.704 | F16: 1 | N16: 1
A17: 5 | B17: Bi-Annual Retailer Event | C17: Verified | D17: 2.663 | E17: 48186.718 | F17: 1 | N17: 1
A18: 6 | B18: Retailer Co-op | C18: Verified | F18: 1 | N18: 1
A19: 7 | B19: Residential Demand Response (switch/pstat) | C19: Verified | F19: 1 | N19: 1
A20: 8 | B20: Residential Demand Response (IHD) | C20: Verified | F20: 1 | N20: =SUM(F20:M20) -> 1
A21: 9 | B21: Residential New Construction | C21: Verified | F21: 1 | N21: 1
B22: 2011 True-up (Verified Errors & Omissions)
A23: 3a | B23: HVAC Incentives | C23: True-Up | F23: 1 | N23: 1
A24: 4a | B24: Conservation Instant Coupon Booklet | C24: True-Up | F24: 1 | N24: 1
A25: 5a | B25: Bi-Annual Retailer Event | C25: True-Up | F25: 1 | N25: 1
B26: Business Program
A27: 10 | B27: Retrofit | C27: Verified | D27: 70.645 | E27: 395203.306 | G27: 0 | H27: 1 | N27: =SUM(F27:M27) -> 1
A28: 11 | B28: Direct Install Lighting | C28: Verified | D28: 24.451 | E28: 102205.413 | G28: 1 | N28: 1
A29: 12 | B29: Building Commissioning | C29: Verified | N29: 0
A30: 13 | B30: New Construction | C30: Verified | N30: 0
A31: 14 | B31: Energy Audit | C31: Verified | N31: 0
A32: 15 | B32: Small Commercial Demand Response (switch/pstat)* | C32: Verified | N32: =SUM(F32:M32) -> 0
A33: 16 | B33: Small Commercial Demand Response (IHD) | C33: Verified | N33: 0
A34: 17 | B34: Demand Response 3 | C34: Verified | H34: 1 | N34: 1
B35: 2011 True-up (Verified Errors & Omissions)
A36: 11a | B36: Direct Install Lighting | C36: True-Up | G36: 1 | N36: 1
B37: Industrial Program
A38: 18 | B38: Process & System Upgrades | C38: Verified | N38: =SUM(F38:M38) -> 0
A39: 19 | B39: Monitoring & Targeting | C39: Verified | N39: 0
A40: 20 | B40: Energy Manager | C40: Verified | N40: 0
A41: 21 | B41: Retrofit | C41: Verified | N41: 0
A42: 22 | B42: Demand Response 3 | C42: Verified | D42: 67.703 | E42: 984.082 | H42: 1 | N42: 1
B43: Home Assistance Program
A44: 23 | B44: Home Assistance Program | C44: Verified | D44: 1 | E44: 14418 | F44: 1 | N44: =SUM(F44:M44) -> 1
B45: Pre-2011 Programs completed in 2011
A46: 24 | B46: Electricity Retrofit Incentive Program | C46: Verified | H46: 1 | N46: =SUM(F46:M46) -> 1
A47: 25 | B47: High Performance New Construction | C47: Verified | E47: 197 | H47: 1 | N47: 1
A48: 26 | B48: Toronto Comprehensive | C48: Verified | N48: 0
A49: 27 | B49: Multifamily Energy Efficiency Rebates | C49: Verified | N49: 0
A50: 28 | B50: LDC Custom Programs | C50: Verified | N50: 0
B51: 2011 True-up (Verified Errors & Omissions)
A52: 22a | B52: High Performance New Construction | C52: True-Up | H52: 1 | N52: =SUM(F52:M52) -> 1
B53: Other
A54: 29 | B54: Program Enabled Savings | C54: Verified | N54: =SUM(F54:M54) -> 0
A55: 30 | B55: Time-of-Use Savings | C55: Verified | N55: 0
B56: Total kWh | D56: =SUM(D13:D25,D27:D33,D35:D36,D38:D41,D44,D46:D52,D54:D55) -> 121.482 | E56: =SUM(E13:E25,E27:E33,E35:E36,E38:E41,E44,E46:E52,E54:E55) -> 616290.078 | F56: =SUM(E13*F13,E14*F14,E15*F15,E16*F16,E17*F17,E18*F18,E19*F19,E21*F21,E23*F23,E24*F24,E25*F25,E44*F44) -> 118684.359 | G56: =SUM(E27*G27,E28*G28,E36*G36) -> 102205.413 | H56: =SUM($E$27*H27,$E$46*H46,$E$47*H47,$E$52*H52) -> 395400.306 | I56: =SUM($E$27*I27,$E$46*I46,$E$47*I47,$E$52*I52) -> 0 | J56: =SUM($E$27*J27,$E$46*J46,$E$47*J47,$E$52*J52) -> 0 | K56: =SUM($E$27*K27,$E$46*K46,$E$47*K47,$E$52*K52) -> 0 | L56: =SUM($E$27*L27,$E$46*L46,$E$47*L47,$E$52*L52) -> 0 | N56: =SUM(F56:M56) -> 616290.078
A57: 12 | B57: Total GS > 50 kW excluding Demand Response 3 | H57: =SUM($D$27*H27,$D$46*H46,$D$47*H47,$D$52*H52)*$A$57 -> 847.74 | I57: =SUM($D$27*I27,$D$46*I46,$D$47*I47,$D$52*I52)*$A$57 -> 0 | J57: =SUM($D$27*J27,$D$46*J46,$D$47*J47,$D$52*J52)*$A$57 -> 0 | K57: 0 | L57: 0 | N57: =SUM(F57:M57) -> 847.74
A58: 5 | B58: Demand Response Total (Scenario 1) | D58: =SUM(D34,D42) -> 67.703 | E58: =SUM(E34,E42) -> 984.082 | H58: =SUM($D$34*H34,$D$42*H42)*$A$58 -> 338.515 | I58: =SUM($D$34*I34,$D$42*I42)*$A$58 -> 0 | J58: 0 | K58: 0 | L58: 0 | N58: =SUM(F58:M58) -> 338.515
B59: OPA-Contracted LDC Portfolio Total | D59: =SUM(D56:D58) -> 189.185 | E59: =SUM(E56:E58) -> 617274.16
B60: Rate | F60: ='6.0 Rates'!D15 -> 0.01428333333 | G60: ='6.0 Rates'!D16 -> 0.0134 | H60: ='6.0 Rates'!D17 -> 4.607933333 | I60: ='6.0 Rates'!D18 -> 0 | J60: ='6.0 Rates'!D19 -> 0.01293333333 | K60: ='6.0 Rates'!D20 -> 0 | L60: ='6.0 Rates'!D21 -> 0.1985666667
B61: Lost Revenue in 2012 from 2012 | F61: =F56*F60 -> 1695.208261 | G61: =G56*G60 -> 1369.552534 | H61: =SUM(H57,H58)*H60 -> 5466.183956 | I61: =SUM(I57,I58)*I60 -> 0 | J61: =J57*J60 -> 0 | K61: 0 | L61: 0 | N61: =SUM(F61:M61) -> 8530.944752
B62: Lost Revenue in 2012 from 2011 | F62: ='7.0 2011LostRev'!F50*F60 -> 2509.618337 | G62: ='7.0 2011LostRev'!G50*G60 -> 1430.386105 | H62: ='7.0 2011LostRev'!H50*H60 -> 56.26343024 | I62: ='7.0 2011LostRev'!I50*I60 -> 0 | J62: ='7.0 2011LostRev'!J50*J60 -> 0 | K62: ='7.0 2011LostRev'!K50*K60 -> 0 | L62: ='7.0 2011LostRev'!L50*L60 -> 0 | N62: =SUM(F62:M62) -> 3996.267872
B63: Total Lost Revenue in 2012 | F63: =SUM(F61:F62) -> 4204.826598 | G63: =SUM(G61:G62) -> 2799.938639 | H63: 5522.447387 | I63: 0 | J63: 0 | K63: 0 | L63: 0 | N63: =SUM(N61:N62) -> 12527.21262
B64: 2012 Savings Persisting in 2013 | F64: =F56*'12.0 Persistence '!D45 -> 118494.7674 | G64: =G56*'12.0 Persistence '!D45 -> 102042.1456 | H64: =H57*'12.0 Persistence '!D26 -> 846.3857827 | I64: =I57*'12.0 Persistence '!D26 -> 0 | J64: =J57*'12.0 Persistence '!D26 -> 0 | K64: =K57*'12.0 Persistence '!D26 -> 0 | L64: =L57*'12.0 Persistence '!D45 -> 0
B65: 2012 Savings Persisting in 2014 | F65: =F56*'12.0 Persistence '!E45 -> 118494.7674 | G65: =G56*'12.0 Persistence '!E45 -> 102042.1456 | H65: =H57*'12.0 Persistence '!E26 -> 846.3857827 | I65: =I57*'12.0 Persistence '!E26 -> 0 | J65: =J57*'12.0 Persistence '!E26 -> 0 | K65: =K57*'12.0 Persistence '!E26 -> 0 | L65: =L57*'12.0 Persistence '!E45 -> 0
B67: Input program details, report status, kWh and kW net savings from Final Verified Annual 2012 CDM Report_Orillia Power Distribution Corporation/Table 1 2012 Savings & Table 2 (Adjustments due to Errors and Omissions)
B68: Input % allocation where applicable based on LDC information
B70: 2012 savings persisting - OPA 2012 Gross to Net Savings Report Data

Sheet 9.0 2013LostRev
A1: LRAMVA Model version 1.0 © CHEC
A6: Table 10: Allocation of Program Savings Across Rate Classes
G7: 2013
A10: # | B10: Initiative | C10: Results Status | D10: Net Incremental Peak Demand Savings (kW) | E10: Net Incremental Energy Savings (kWh) | F10: Rate Allocation for LRAMVA
D11: 2013 kW Saved | E11: 2013 kWh Saved | F11: ='3.0 LRAMVA Register'!D11 -> Residential | G11: ='3.0 LRAMVA Register'!E11 -> General Service < 50 kW | H11: ='3.0 LRAMVA Register'!F11 -> General Service > 50 to 4999 kW | I11: ='3.0 LRAMVA Register'!G11 -> Standy Power - Approved on an Interim Basis | J11: ='3.0 LRAMVA Register'!H11 -> Unmetered Scattered Load | K11: ='3.0 LRAMVA Register'!I11 -> Sentinel Lighting | L11: ='3.0 LRAMVA Register'!J11 -> Street Lighting | M11: ='3.0 LRAMVA Register'!M11 -> other | N11: ='3.0 LRAMVA Register'!N11 -> Total
B12: Consumer Program
A13: 1 | B13: Appliance Retirement | C13: Verified | D13: =0.00149*1000 -> 1.49 | E13: =10.42293*1000 -> 10422.93 | F13: 1 | N13: =SUM(F13:M13) -> 1
A14: 2 | B14: Appliance Exchange | C14: Verified | D14: =0.00104*1000 -> 1.04 | E14: =1.8472*1000 -> 1847.2 | F14: 1 | N14: =SUM(F14:M14) -> 1
A15: 3 | B15: HVAC Incentives | C15: Verified | D15: =0.03057*1000 -> 30.57 | E15: =53319+3768 -> 57087 | F15: 1 | N15: 1
A16: 4 | B16: Conservation Instant Coupon Booklet | C16: Verified | D16: =0.00093*1000 -> 0.93 | E16: =13868+42 -> 13910 | F16: 1 | N16: 1
A17: 5 | B17: Bi-Annual Retailer Event | C17: Verified | D17: =0.00213*1000 -> 2.13 | E17: =30.91069*1000 -> 30910.69 | F17: 1 | N17: 1
A18: 6 | B18: Retailer Co-op | C18: Verified | F18: 1 | N18: 1
A19: 7 | B19: Residential Demand Response (switch/pstat) | C19: Verified | F19: 1 | N19: 1
A20: 8 | B20: Residential Demand Response (IHD) | C20: Verified | F20: 1 | N20: 1
A21: 9 | B21: Residential New Construction | C21: Verified | F21: 1 | N21: 1
B22: 2012 True-up (Verified Errors & Omissions)
C23: True-up
C24: True-up
C25: True-up
B26: Business Program
A27: 10 | B27: Retrofit | C27: Verified | D27: =0.01257*1000 -> 12.57 | E27: =77.70189*1000 -> 77701.89 | G27: 0.33 | H27: 0.67 | N27: =SUM(F27:M27) -> 1
A28: 11 | B28: Direct Install Lighting | C28: Verified | D28: =0.00625*1000 -> 6.25 | E28: 28036 | G28: 1 | N28: 1
A29: 12 | B29: Building Commissioning | C29: Verified | N29: 0
A30: 13 | B30: New Construction | C30: Verified | N30: 0
A31: 14 | B31: Energy Audit | C31: Verified | N31: 0
A32: 15 | B32: Small Commercial Demand Response (switch/pstat)* | C32: Verified | N32: 0
A33: 16 | B33: Small Commercial Demand Response (IHD) | C33: Verified | N33: 0
A34: 17 | B34: Demand Response 3 | C34: Verified | D34: =0.06866*1000 -> 68.66 | E34: =0.91683*1000 -> 916.83 | H34: 1 | N34: 1
B35: 2012 True-up (Verified Errors & Omissions)
C36: True-up
C37: True-up
C38: True-up
B39: Industrial Program
A40: 18 | B40: Process & System Upgrades | C40: Verified | N40: =SUM(F40:M40) -> 0
A41: 19 | B41: Monitoring & Targeting | C41: Verified | N41: 0
A42: 20 | B42: Energy Manager | C42: Verified | N42: 0
A43: 21 | B43: Retrofit | C43: Verified | N43: 0
A44: 22 | B44: Demand Response 3 | C44: Verified | H44: 1 | N44: 1
B45: 2012 True-up (Verified Errors & Omissions)
C46: True-up
B47: Home Assistance Program
A48: 23 | B48: Home Assistance Program | C48: Verified | D48: =0.00143*1000 -> 1.43 | E48: =6.68173*1000 -> 6681.73 | F48: 1 | N48: =SUM(F48:M48) -> 1
B49: 2012 True-up (Verified Errors & Omissions)
C50: True-up
B51: Pre-2011 Programs completed in 2011
A52: 24 | B52: Electricity Retrofit Incentive Program | C52: Verified | H52: 1 | N52: =SUM(F52:M52) -> 1
A53: 25 | B53: High Performance New Construction | C53: Verified | H53: 1 | N53: 1
A54: 26 | B54: Toronto Comprehensive | C54: Verified | N54: 0
A55: 27 | B55: Multifamily Energy Efficiency Rebates | C55: Verified | N55: 0
A56: 28 | B56: LDC Custom Programs | C56: Verified | N56: 0
B57: 2012 True-up (Verified Errors & Omissions)
C58: True-up
B59: Other
A60: 29 | B60: Program Enabled Savings | C60: Verified | N60: =SUM(F60:M60) -> 0
A61: 30 | B61: Time-of-Use Savings | C61: Verified | N61: 0
B62: Total kWh | D62: =SUM(D13:D21,D27:D33,D40:D43,D48,D52:D56,D60:D61) -> 56.41 | E62: =SUM(E13:E21,E27:E33,E40:E43,E48,E52:E56,E60:E61) -> 226597.44 | F62: =SUM($E$13*F13,$E$14*F14,$E$15*F15,$E$16*F16,$E$17*F17,$E$18*F18,$E$19*F19,$E$21*F21,$E$48*F48,$E$23*F23,$E$24*F24,$E$25*F25,$E$50*F50) -> 120859.55 | G62: =SUM($E$27*G27,$E$28*G28,$E$29*G29,$E$30*G30,$E$31*G31,$E$36*G36,$E$37*G37,$E$38*G38) -> 53677.6237 | H62: =SUM($E$27*H27,$E$34*H34,$E$44*H44,$E$52*H52,$E$53*H53,$E$28*H28,$E$29*H29,$E$30*H30,$E$31*H31,$E$36*H36,$E$37*H37,$E$38*H38,$E$46*H46,$E$58*H58) -> 52977.0963 | I62: =SUM($E$27*I27,$E$34*I34,$E$44*I44,$E$52*I52,$E$53*I53,$E$28*I28,$E$29*I29,$E$30*I30,$E$31*I31,$E$36*I36,$E$37*I37,$E$38*I38,$E$46*I46,$E$58*I58) -> 0 | J62: =SUM($E$27*J27,$E$34*J34,$E$44*J44,$E$52*J52,$E$53*J53,$E$28*J28,$E$29*J29,$E$30*J30,$E$31*J31,$E$36*J36,$E$37*J37,$E$38*J38,$E$46*J46,$E$58*J58) -> 0 | K62: =SUM($E$27*K27,$E$34*K34,$E$44*K44,$E$52*K52,$E$53*K53,$E$28*K28,$E$29*K29,$E$30*K30,$E$31*K31,$E$36*K36,$E$37*K37,$E$38*K38,$E$46*K46,$E$58*K58) -> 0 | L62: =SUM($E$27*L27,$E$34*L34,$E$44*L44,$E$52*L52,$E$53*L53,$E$28*L28,$E$29*L29,$E$30*L30,$E$31*L31,$E$36*L36,$E$37*L37,$E$38*L38,$E$46*L46,$E$58*L58) -> 0 | N62: =SUM(F62:M62) -> 227514.27
A63: 12 | B63: Total GS > 50 kW excluding Demand Response 3 | H63: =SUM($D$27*H27,$D$52*H52,$D$53*H53)*$A63 -> 101.0628 | I63: =SUM($D$27*I27,$D$52*I52,$D$53*I53)*$A63 -> 0 | J63: =SUM($D$27*J27,$D$52*J52,$D$53*J53)*$A63 -> 0 | K63: =SUM($D$27*K27,$D$52*K52,$D$53*K53)*$A63 -> 0 | L63: =SUM($D$27*L27,$D$52*L52,$D$53*L53)*$A63 -> 0 | N63: =SUM(F63:M63) -> 101.0628
A64: 5 | B64: Demand Response Total (Scenario 1) | D64: =SUM(D34,D44) -> 68.66 | E64: =SUM(E34,E44) -> 916.83 | H64: =SUM($D$34*H34,$D$44*H44)*$A64 -> 343.3 | I64: =SUM($D$34*I34,$D$44*I44)*$A64 -> 0 | J64: =SUM($D$34*J34,$D$44*J44)*$A64 -> 0 | K64: =SUM($D$34*K34,$D$44*K44)*$A64 -> 0 | L64: =SUM($D$34*L34,$D$44*L44)*$A64 -> 0 | N64: =SUM(F64:M64) -> 343.3
B65: OPA-Contracted LDC Portfolio Total | D65: =SUM(D62:D64) -> 125.07 | E65: =SUM(E62:E64) -> 227514.27
B66: Rate | F66: ='6.0 Rates'!E15 -> 0.01396666667 | G66: ='6.0 Rates'!E16 -> 0.01326666667 | H66: ='6.0 Rates'!E17 -> 4.552833333 | I66: ='6.0 Rates'!E18 -> 0 | J66: ='6.0 Rates'!E19 -> 0.0076 | K66: ='6.0 Rates'!E20 -> 0 | L66: ='6.0 Rates'!E21 -> 0.8500333333
B67: Lost Revenue in 2013 from 2013 | F67: =F62*F66 -> 1688.005048 | G67: =G62*G66 -> 712.1231411 | H67: =SUM(H63,H64)*H66 -> 2023.109768 | I67: =SUM(I63,I64)*I66 -> 0 | J67: =J63*J66 -> 0 | K67: 0 | L67: 0 | N67: =SUM(F67:M67) -> 4423.237957
B68: Lost Revenue in 2013 from 2012 | F68: ='8.0 2012LostRev'!F64*F66 -> 1654.976918 | G68: ='8.0 2012LostRev'!G64*G66 -> 1353.759131 | H68: ='8.0 2012LostRev'!H64*H66 -> 3853.453405 | I68: ='8.0 2012LostRev'!I64*I66 -> 0 | J68: ='8.0 2012LostRev'!J64*J66 -> 0 | K68: ='8.0 2012LostRev'!K64*K66 -> 0 | L68: ='8.0 2012LostRev'!L64*L66 -> 0 | N68: =SUM(F68:M68) -> 6862.189453
B69: Lost Revenue in 2013 from 2011 | F69: ='7.0 2011LostRev'!F51*F66 -> 2453.97919 | G69: ='7.0 2011LostRev'!G51*G66 -> 1416.153407 | H69: ='7.0 2011LostRev'!H51*H66 -> 55.59065249 | I69: ='7.0 2011LostRev'!I51*I66 -> 0 | J69: ='7.0 2011LostRev'!J51*J66 -> 0 | K69: ='7.0 2011LostRev'!K51*K66 -> 0 | L69: ='7.0 2011LostRev'!L51*L66 -> 0 | N69: 3925.72325
B70: Total Lost Revenue in 2013 | F70: =SUM(F67:F69) -> 5796.961156 | G70: =SUM(G67:G69) -> 3482.035679 | H70: 5932.153825 | I70: 0 | J70: 0 | K70: 0 | L70: 0 | N70: =SUM(N67:N69) -> 15211.15066
B71: 2013 Savings Persisting in 2014 | F71: =F62*'12.0 Persistence '!E46 -> 120324.7732 | G71: =G62*'12.0 Persistence '!E46 -> 53440.11209 | H71: =H63*'12.0 Persistence '!E27 -> 100.6156195 | I71: =I63*'12.0 Persistence '!E27 -> 0 | J71: =J63*'12.0 Persistence '!E27 -> 0 | K71: =K63*'12.0 Persistence '!E27 -> 0 | L71: =L63*'12.0 Persistence '!E46 -> 0
B73: Input program details, report status, kWh and kW net savings from OPA Final Annual Report
B74: Input % allocation where applicable based on LDC information
B76: 2013 savings persisting -

Sheet 10.0 2014LostRev
A1: LRAMVA Model version 1.0 © CHEC
A6: Table 11: Allocation of Program Savings Across Rate Classes
G7: 2014
A10: # | B10: Initiative | C10: Results Status | D10: Net Incremental Peak Demand Savings (kW) | E10: Net Incremental Energy Savings (kWh) | F10: Rate Allocation for LRAMVA
D11: 2014 kW Saved | E11: 2014 kWh Saved | F11: ='3.0 LRAMVA Register'!D11 -> Residential | G11: ='3.0 LRAMVA Register'!E11 -> General Service < 50 kW | H11: ='3.0 LRAMVA Register'!F11 -> General Service > 50 to 4999 kW | I11: ='3.0 LRAMVA Register'!G11 -> Standy Power - Approved on an Interim Basis | J11: ='3.0 LRAMVA Register'!H11 -> Unmetered Scattered Load | K11: ='3.0 LRAMVA Register'!I11 -> Sentinel Lighting | L11: ='3.0 LRAMVA Register'!J11 -> Street Lighting | M11: ='3.0 LRAMVA Register'!M11 -> other | N11: ='3.0 LRAMVA Register'!N11 -> Total
B12: Consumer Program
A13: 1 | B13: Appliance Retirement | C13: Verified | E13: 3565 | F13: 1 | N13: =SUM(F13:M13) -> 1
A14: 2 | B14: Appliance Exchange | C14: Verified | E14: 5542 | F14: 1 | N14: =SUM(F14:M14) -> 1
A15: 3 | B15: HVAC Incentives | C15: Verified | E15: 85574 | F15: 1 | N15: 1
A16: 4 | B16: Conservation Instant Coupon Booklet | C16: Verified | E16: 71252 | F16: 1 | N16: 1
A17: 5 | B17: Bi-Annual Retailer Event | C17: Verified | E17: 221132 | F17: 1 | N17: 1
A18: 6 | B18: Retailer Co-op | C18: Verified | F18: 1 | N18: 1
A19: 7 | B19: Residential Demand Response (switch/pstat) | C19: Verified | F19: 1 | N19: 1
A20: 8 | B20: Residential Demand Response (IHD) | C20: Verified | F20: 1 | N20: 1
A21: 9 | B21: Residential New Construction | C21: Verified | F21: 1 | N21: 1
B22: Business Program
A23: 10 | B23: Retrofit | C23: Verified | D23: 16 | E23: 165138 | G23: 0.2 | H23: 0.8 | N23: =SUM(F23:M23) -> 1
A24: 11 | B24: Direct Install Lighting | C24: Verified | D24: 40 | E24: 162232 | G24: 1 | N24: 1
A25: 12 | B25: Building Commissioning | C25: Verified | N25: 0
A26: 13 | B26: New Construction | C26: Verified | N26: 0
A27: 14 | B27: Energy Audit | C27: Verified | E27: 65274 | N27: 0
A28: 15 | B28: Small Commercial Demand Response (switch/pstat)* | C28: Verified | N28: 0
A29: 16 | B29: Small Commercial Demand Response (IHD) | C29: Verified | N29: 0
A30: 17 | B30: Demand Response 3 | C30: Verified | H30: 1 | N30: 1
B31: Industrial Program
A32: 18 | B32: Process & System Upgrades | C32: Verified | N32: =SUM(F32:M32) -> 0
A33: 19 | B33: Monitoring & Targeting | C33: Verified | N33: 0
A34: 20 | B34: Energy Manager | C34: Verified | N34: 0
A35: 21 | B35: Retrofit | C35: Verified | N35: 0
A36: 22 | B36: Demand Response 3 | C36: Verified | D36: 50 | E36: 0 | H36: 1 | N36: 1
B37: Home Assistance Program
A38: 23 | B38: Home Assistance Program | C38: Verified | E38: 1371 | F38: 1 | N38: =SUM(F38:M38) -> 1
B39: Pre-2011 Programs completed in 2011
A40: 24 | B40: Electricity Retrofit Incentive Program | C40: Verified | H40: 1 | N40: =SUM(F40:M40) -> 1
A41: 25 | B41: High Performance New Construction | C41: Verified | H41: 1 | N41: 1
A42: 26 | B42: Toronto Comprehensive | C42: Verified | N42: 0
A43: 27 | B43: Multifamily Energy Efficiency Rebates | C43: Verified | N43: 0
A44: 28 | B44: LDC Custom Programs | C44: Verified | N44: 0
B45: Other
A46: 29 | B46: Program Enabled Savings | C46: Verified | N46: =SUM(F46:M46) -> 0
A47: 30 | B47: Time-of-Use Savings | C47: Verified | N47: 0
B48: Total kWh | D48: =SUM(D13:D21,D23:D29,D32:D35,D38,D40:D44,D46:D47) -> 56 | E48: =SUM(E13:E21,E23:E29,E32:E35,E38,E40:E44,E46:E47) -> 781080 | F48: =SUM(E13*F13,E14*F14,E15*F15,E16*F16,E17*F17,E18*F18,E19*F19,E21*F21,E38*F38) -> 388436 | G48: =SUM(E23*G23,E24*G24) -> 195259.6 | H48: =SUM(E23*H23,E30*H30,E36*H36,E40*H40,E41*H41) -> 132110.4 | N48: =SUM(F48:M48) -> 715806
A49: 12 | B49: Total GS > 50 kW excluding Demand Response 3 | H49: =SUM(D23*H23,D40*H40,D41*H41)*$A49 -> 153.6 | N49: =SUM(F49:M49) -> 153.6
A50: 5 | B50: Demand Response Total (Scenario 1) | D50: =SUM(D30,D36) -> 50 | E50: =SUM(E30,E36) -> 0 | H50: =SUM(D30*H30,D36*H36)*$A50 -> 250 | N50: =SUM(F50:M50) -> 250
B51: OPA-Contracted LDC Portfolio Total | D51: =SUM(D48:D50) -> 106 | E51: =SUM(E48:E50) -> 781080
B52: Rate | F52: ='6.0 Rates'!F15 -> 0.01413333333 | G52: ='6.0 Rates'!F16 -> 0.01343333333 | H52: ='6.0 Rates'!F17 -> 4.611766667 | I52: ='6.0 Rates'!F18 -> 0 | J52: ='6.0 Rates'!F19 -> 0.007666666667 | K52: ='6.0 Rates'!F20 -> 0 | L52: ='6.0 Rates'!F21 -> 0.8610666667
B53: Lost Revenue in 2014 from 2014 | F53: =F48*F52 -> 5489.895467 | G53: =G48*G52 -> 2622.987293 | H53: =SUM(H49,H50)*H52 -> 1861.309027 | I53: =SUM(I49,I50)*I52 -> 0 | J53: =J49*J52 -> 0 | K53: 0 | L53: 0 | N53: =SUM(F53:M53) -> 9974.191787
B54: Lost Revenue in 2014 from 2013 | F54: ='9.0 2013LostRev'!F71*F52 -> 1700.590128 | G54: ='9.0 2013LostRev'!G71*G52 -> 717.8788391 | H54: ='9.0 2013LostRev'!H71*H52 -> 464.01576 | I54: ='9.0 2013LostRev'!I71*I52 -> 0 | J54: ='9.0 2013LostRev'!J71*J52 -> 0 | K54: ='9.0 2013LostRev'!K71*K52 -> 0 | L54: ='9.0 2013LostRev'!L71*L52 -> 0 | N54: =SUM(F54:M54) -> 2882.484727
B55: Lost Revenue in 2014 from 2012 | F55: ='8.0 2012LostRev'!F65*F52 -> 1674.726046 | G55: ='8.0 2012LostRev'!G65*G52 -> 1370.766155 | H55: ='8.0 2012LostRev'!H65*H52 -> 3903.33374 | I55: ='8.0 2012LostRev'!I65*I52 -> 0 | J55: ='8.0 2012LostRev'!J65*J52 -> 0 | K55: ='8.0 2012LostRev'!K65*K52 -> 0 | L55: ='8.0 2012LostRev'!L65*L52 -> 0 | N55: =SUM(F55:M55) -> 6948.825941
B56: Lost Revenue in 2014 from 2011 | F56: ='7.0 2011LostRev'!F52*F52 -> 2227.256462 | G56: ='7.0 2011LostRev'!G52*G52 -> 1286.114972 | H56: ='7.0 2011LostRev'!H52*H52 -> 50.50505677 | I56: ='7.0 2011LostRev'!I52*I52 -> 0 | J56: ='7.0 2011LostRev'!J52*J52 -> 0 | K56: ='7.0 2011LostRev'!K52*K52 -> 0 | L56: ='7.0 2011LostRev'!L52*L52 -> 0 | N56: 3563.87649
B57: Total Lost Revenue in 2014 | F57: =SUM(F53:F56) -> 11092.4681 | G57: =SUM(G53:G56) -> 5997.74726 | H57: 6279.163583 | I57: 0 | J57: 0 | K57: 0 | L57: 0 | N57: =SUM(N53:N56) -> 23369.37895
B59: Input program details, report status, kWh and kW net savings from OPA Final Annual Report
B60: Input % allocation where applicable based on LDC information

Sheet 11.0 2015 Lost Revenue
A1: LRAMVA Model version 1.0 © CHEC
A6: Table 12: 2015 Persistence Savings from 2011-2014 CDM Programs
E9: Residential | F9: GS<50 kW | G9: GS>50 kW
D10: Rates ($) | E10: ='6.0 Rates'!G15 -> 0.01433333333 | F10: ='6.0 Rates'!G16 -> 0.01363333333 | G10: ='6.0 Rates'!G17 -> 4.687066667
E11: (kWh) | F11: (kWh) | G11: (kW)
D12: Lost Revenue in 2015 from 2014 | E12: ='10.0 2014LostRev'!F48*'12.0 Persistence '!F47 -> 388436 | F12: ='10.0 2014LostRev'!G48*'12.0 Persistence '!F47 -> 195259.6 | G12: ='10.0 2014LostRev'!H49*'12.0 Persistence '!F28 -> 153.6
D13: Lost Revenue in 2015 from 2013 | E13: ='9.0 2013LostRev'!F62*'12.0 Persistence '!F46 -> 120859.55 | F13: ='9.0 2013LostRev'!G62*'12.0 Persistence '!F46 -> 53677.6237 | G13: ='9.0 2013LostRev'!H63*'12.0 Persistence '!F27 -> 101.0628
D14: Lost Revenue in 2015 from 2012 | E14: ='8.0 2012LostRev'!F56*'12.0 Persistence '!F45 -> 104442.2359 | F14: ='8.0 2012LostRev'!G56*'12.0 Persistence '!F45 -> 89940.76344 | G14: ='8.0 2012LostRev'!H57*'12.0 Persistence '!F26 -> 746.0112
D15: Lost Revenue in 2015 from 2011 | E15: ='7.0 2011LostRev'!F44*'12.0 Persistence '!F44 -> 118934.3358 | F15: ='7.0 2011LostRev'!G44*'12.0 Persistence '!F44 -> 72256.61766 | G15: ='7.0 2011LostRev'!H45*'12.0 Persistence '!F25 -> 8.26512
D16: Total kWh/kW | E16: =SUM(E12:E15) -> 732672.1217 | F16: =SUM(F12:F15) -> 411134.6048 | G16: 1008.93912
D17: Total Lost Revenue in 2015 | E17: =E16*E10 -> 10501.63374 | F17: =F16*F10 -> 5605.135112 | G17: 4728.964918

Sheet 12.0 Persistence
A1: LRAMVA Model version 1.0 © CHEC
A9: Progress Towards CDM Targets
A10: Results are attributed to target using current OPA reporting policies. Energy efficiency resources persist for the duration of the effective useful life. Any upcoming code changes are taken into account. Demand response resources persist for 1 year. Please see methodology tab for more detailed information.
A11: Table 12: Net Peak Demand Savings at the End User Level (MW)
A13: Implementation Period | B13: Annual
B14: 2011 | C14: 2012 | D14: 2013 | E14: 2014
A15: 2011 - Verified | B15: 0.126 | C15: 0.059 | D15: 0.059 | E15: 0.048
A16: 2012 - Verified | B16: 0.001 | C16: 0.189 | D16: 0.121 | E16: 0.121
A17: 2013 | B17: 0 | C17: 0.001 | D17: 0.125 | E17: 0.056
A18: 2014 | B18: 0 | C18: 0.001 | D18: 0.003 | E18: 0.338
A19: Verified Net Annual Peak Demand Savings Persisting in 2014: | E19: =SUM(E15:E18) -> 0.563
A20: 2011-2014 CDM Capacity Target | E20: 1.34
A21: Verified Portion of Peak Demand Savings Target Achieved in 2014(%): | E21: =E19/E20 -> 0.4201492537
A23: Persistence Factor (MW)
B24: 2011 | C24: 2012 | D24: 2013 | E24: 2014 | F24: 2015 | H24: (ADJUSTED)
A25: 2011 | C25: =C44 -> 0.9897959184 | D25: =D44 -> 0.9897959184 | E25: =E44 -> 0.887755102 | F25: =F44 -> 0.67 | H25: USED kWH - Above removes Persistence on Demand Response.
A26: 2012 | D26: =D45 -> 0.9984025559 | E26: =E45 -> 0.9984025559 | F26: 0.88
A27: 2013 | E27: =E46 -> 0.9955752212 | F27: 1
A28: 2014 | F28: =F47 -> 1
A30: Table 13: Net Energy Savings at the End User Level (GWh)
A32: Implementation Period | B32: Annual | F32: Cumulative
B33: 2011 | C33: 2012 | D33: 2013 | E33: 2014 | F33: 2011-2014
A34: 2011 - Verified | B34: 0.294 | C34: 0.291 | D34: 0.291 | E34: 0.261 | F34: 1.137
A35: 2012 - Verified | B35: 0.026 | C35: 0.626 | D35: 0.625 | E35: 0.625 | F35: 1.902
A36: 2013 | B36: 0 | C36: 0.002 | D36: 0.226 | E36: 0.225 | F36: 0.453
A37: 2014 | B37: 0 | C37: 0.014 | D37: 0.019 | E37: 0.8 | F37: 0.833
A38: Verified Net Cumulative Energy Savings 2011-2014: | F38: =SUM(F34:F37) -> 4.325
A39: 2011-2014 CDM Energy Target | F39: 4.01
A40: Verified Portion of Cumulative Energy Target Achieved (%): | F40: =F38/F39 -> 1.078553616
A42: Persistence Factor (KWh)
B43: 2011 | C43: 2012 | D43: 2013 | E43: 2014 | F43: 2015
A44: 2011 | C44: =C34/$B$34 -> 0.9897959184 | D44: =D34/$B$34 -> 0.9897959184 | E44: =E34/$B$34 -> 0.887755102 | F44: 0.67
A45: 2012 | D45: =D35/$C$35 -> 0.9984025559 | E45: =E35/$C$35 -> 0.9984025559 | F45: 0.88
A46: 2013 | E46: =E36/D36 -> 0.9955752212 | F46: 1
A47: 2014 | F47: 1
